Workbook

Sheet Guidance

Sheet Inputs
C3: Universal parameters
D4: Default | E4: User input
C5: Target LCOE (€/MWh): | D5: 150 | E5: 200
C6: Power capture
C7: Degree of freedom: | E7: Heave
C8: Improvement potential: | E8: Medium
C9: Cost centre breakdown
C10: Structure (% of CAPEX): | D10: 0.34
C11: PTO: | D11: 0.27
C12: Moorings: | D12: 0.12
C13: Connection: | D13: 0.14
C14: Installation: | D14: 0.13
C15: Total: | D15: =SUM(D10:D14) -> 1 | E15: =SUM(E10:E14) -> 0
C18: What if? parameters | M18: Material options | N18: key (#)
M19: =Lookup_Materials!C10 -> Steel | N19: 1
D20: Ranges | E20: Scale (m) | F20: Resource (kW/m) | G20: Efficiency (%) | H20: CAPEX (€) | M20: =Lookup_Materials!C11 -> R. Concrete | N20: 2
D21: Lower bound: | E21: 10 | F21: 55 | G21: 0.01 | H21: 2000000 | M21: =Lookup_Materials!C12 -> GRP | N21: 3
D22: Upper bound: | E22: 40 | F22: 65 | G22: 1 | H22: 3000000 | M22: =Lookup_Materials!C13 -> Rubber | N22: 4
D23: Number of steps: | E23: 2 | F23: 2 | G23: 2 | H23: 2 | M23: =Lookup_Materials!C14 -> PU-nylon | N23: 5
C25: Values
C26: Shape | D26: Material | E26: Scale (m) | F26: Resource (kW/m) | G26: Efficiency (%) | H26: CAPEX (€) | M26: Shape options | N26: key (#)
C27: Cuboid | D27: Steel | E27: =linspace(E21,E22,E23) -> 10 | F27: =linspace(F21,F22,F23) -> 55 | G27: =linspace(G21,G22,G23) -> 0.01 | H27: =linspace(H21,H22,H23) -> 2000000 | M27: =Assumptions!B22 -> Cuboid | N27: 1
D28: PU-nylon | E28: 40 | F28: 65 | G28: 1 | H28: 3000000 | M28: =Assumptions!B23 -> HCylinder | N28: 2
M29: =Assumptions!B24 -> VCylinder | N29: 3
M30: =Assumptions!B25 -> Sphere | N30: 4
M33: Power capture options
M34: Degree of freedom | N34: Improvement potential
M35: Heave | N35: =Assumptions!B17 -> Low
M36: Surge | N36: =Assumptions!B18 -> Medium
C37: =SUM(IF(ISTEXT(C27:C36),1/COUNTIF(C27:C36, C27:C36), 0)) -> 1 | D37: =SUM(IF(ISTEXT(D27:D36),1/COUNTIF(D27:D36, D27:D36), 0)) -> 2 | E37: =SUM(IF(ISNUMBER(E27:E36),1/COUNTIF(E27:E36, E27:E36), 0)) -> 2 | F37: =SUM(IF(ISNUMBER(F27:F36),1/COUNTIF(F27:F36, F27:F36), 0)) -> 2 | G37: =SUM(IF(ISNUMBER(G27:G36),1/COUNTIF(G27:G36, G27:G36), 0)) -> 2 | H37: =SUM(IF(ISNUMBER(H27:H36),1/COUNTIF(H27:H36, H27:H36), 0)) -> 2 | J37: Total no. of scenarios: | K37: =PRODUCT(C37:H37) -> 32 | M37: Pitch | N37: =Assumptions!B19 -> High
M38: Roll
M39: Surge_Heave
M40: Heave_Pitch

Sheet Scenarios
A1: 1 | B1: 2 | C1: 3 | D1: 4 | E1: 5 | F1: 6 | G1: 7 | H1: 8 | I1: 9 | J1: 10 | K1: 11 | L1: 12 | M1: 13 | N1: 14 | O1: 15 | P1: 16 | Q1: 17 | R1: 18 | S1: 19 | T1: 20 | U1: 21 | V1: 22 | W1: 23 | X1: 24 | Y1: 25 | Z1: 26 | AA1: 27 | AB1: 28 | AC1: 29 | AD1: 30 | AE1: 31 | AF1: 32 | AG1: 33 | AH1: 34
A2: Scenarios | I2: Scenario characteristics | W2: Possible thresholds | Y2: State-of-the-art thresholds | AA2: Scores | AE2: Filters | AH2: Check
A3: 0 | B3: Degree of Freedom | C3: Shape | D3: Material | E3: Scale (m) | F3: Resource (kW/m) | G3: Efficiency (%) | H3: CAPEX (€) | I3: Availability (-) | J3: Shape key (#) | K3: Volume (m3) | L3: Material key (#) | M3: Material mass (kg) | N3: Av. Power (kW) | O3: Rated power (kW) | P3: LCOE (€/MWh) | Q3: Structure (€) | R3: PTO (€) | S3: Mooring (€) | T3: Connection (€) | U3: Installation (€) | V3: OPEX (€/a) | W3: Possible Av. Power (kW) | X3: Possible Structure Cost (€) | Y3: SOA Av. Power (kW) | Z3: SOA Structure Cost (€) | AA3: CA score | AB3: Power TA score | AC3: Cost TA score | AD3: TA score | AE3: Attractive (?) | AF3: Possible (?) | AG3: Achievable (?) | AH3: Meets minimums?
A4: 1 | B4: =Inputs!$E$7 -> Heave | C4: Cuboid | D4: PU-nylon | E4: 10 | F4: 55 | G4: 0.01 | H4: 2000000 | I4: =LinInterpolate(TabScenarios[[#This Row],[Resource (kW/m)]],Assumptions!$K$3:$S$3,Assumptions!$K$5:$S$5) -> 0.7680670319 | J4: =MATCH(TabScenarios[[#This Row],[Shape]],Inputs!$M$27:$M$30,0) -> 1 | K4: =TabScenarios[[#This Row],[Scale (m)]]^3 -> 1000 | L4: =MATCH(TabScenarios[[#This Row],[Material]],Inputs!$M$19:$M$23,0) -> 5 | M4: =TabScenarios[[#This Row],[Volume (m3)]]*INDEX(Lookup_Materials!$D$10:$D$15,TabScenarios[[#This Row],[Material key ('#)]])*(1+(TabScenarios[[#This Row],[Resource (kW/m)]]-Inputs!$F$21)/5*INDEX(Lookup_Materials!$G$10:$G$15,TabScenarios[[#This Row],[Material key ('#)]])) -> 5126.879699 | N4: =TabScenarios[[#This Row],[Scale (m)]]*TabScenarios[[#This Row],[Resource (kW/m)]]*TabScenarios[[#This Row],[Efficiency (%)]] -> 5.5 | O4: =TabScenarios[[#This Row],[Av. Power (kW)]]/Assumptions!$C$7 -> 18.33333333 | P4: =IF(TabScenarios[[#This Row],[Av. Power (kW)]]>0,(TabScenarios[[#This Row],[CAPEX (€)]]/(1-'Used Values'!$D$15))/(TabScenarios[[#This Row],[Av. Power (kW)]]*TabScenarios[[#This Row],[Availability (-)]]*8.766*'Used Values'!$C$7),NA()) -> 8504.248223 | Q4: =TabScenarios[[#This Row],[CAPEX (€)]]*'Used Values'!$C$10 -> 680000 | R4: =TabScenarios[[#This Row],[CAPEX (€)]]*'Used Values'!$C$11 -> 540000 | S4: =TabScenarios[[#This Row],[CAPEX (€)]]*'Used Values'!$C$12 -> 240000 | T4: =TabScenarios[[#This Row],[CAPEX (€)]]*'Used Values'!$C$13 -> 280000 | U4: =TabScenarios[[#This Row],[CAPEX (€)]]*'Used Values'!$C$14 -> 260000 | V4: =TabScenarios[[#This Row],[CAPEX (€)]]*Assumptions!$C$5 -> 80000 | W4: =INDEX(('Used Values'!$M$5:$V$14,'Used Values'!$M$18:$V$27,'Used Values'!$M$31:$V$40,'Used Values'!$M$44:$V$53),MATCH(TabScenarios[[#This Row],[Scale (m)]],Inputs!$E$27:$E$36,0),MATCH(TabScenarios[[#This Row],[Resource (kW/m)]],Inputs!$F$27:$F$36,0),TabScenarios[[#This Row],[Shape key ('#)]]) -> 433.5393207 | X4: =TabScenarios[[#This Row],[Material mass (kg)]]*INDEX(Lookup_Materials!$E$10:$E$15,TabScenarios[[#This Row],[Material key ('#)]]) -> 15021.75752 | Y4: =INDEX('Used Values'!$M$58:$V$67,MATCH(TabScenarios[[#This Row],[Scale (m)]],Inputs!$E$27:$E$36,0),MATCH(TabScenarios[[#This Row],[Resource (kW/m)]],Inputs!$F$27:$F$36,0)) -> 69.243407 | Z4: =TabScenarios[[#This Row],[Material mass (kg)]]*INDEX(Lookup_Materials!$F$10:$F$15,TabScenarios[[#This Row],[Material key ('#)]]) -> 59112.92293 | AA4: =_xlfn.IFNA('Used Values'!$C$4/TabScenarios[[#This Row],[LCOE (€/MWh)]],0) -> 0.02351765785 | AB4: =(TabScenarios[[#This Row],[Possible Av. Power (kW)]]-TabScenarios[[#This Row],[Av. Power (kW)]])/(TabScenarios[[#This Row],[Possible Av. Power (kW)]]-TabScenarios[[#This Row],[SOA Av. Power (kW)]])*('Used Values'!$C$6) -> 2.349954005 | AC4: =(TabScenarios[[#This Row],[Structure (€)]]-TabScenarios[[#This Row],[Possible Structure Cost (€)]])/(TabScenarios[[#This Row],[SOA Structure Cost (€)]]-TabScenarios[[#This Row],[Possible Structure Cost (€)]])*INDEX(Lookup_Materials!$H$10:$H$15,TabScenarios[[#This Row],[Material key ('#)]]) -> 15.08189308 | AD4: =TabScenarios[[#This Row],[Power TA score]]+TabScenarios[[#This Row],[Cost TA score]] -> 17.43184708 | AE4: =IF(TabScenarios[[#This Row],[CA score]]<>"",TabScenarios[[#This Row],[CA score]]>=1,NA()) -> FALSE | AF4: =AND(TabScenarios[[#This Row],[Possible Av. Power (kW)]]-TabScenarios[[#This Row],[Av. Power (kW)]]>=0,TabScenarios[[#This Row],[Structure (€)]]-TabScenarios[[#This Row],[Possible Structure Cost (€)]]>=0) -> TRUE | AG4: =AND(TabScenarios[[#This Row],[SOA Av. Power (kW)]]-TabScenarios[[#This Row],[Av. Power (kW)]]>=0,TabScenarios[[#This Row],[Structure (€)]]-TabScenarios[[#This Row],[SOA Structure Cost (€)]]>=0,TabScenarios[[#This Row],[Possible (?)]]) -> TRUE | AH4: =AND(TabScenarios[[#This Row],[Rated power (kW)]]*Assumptions!$C$10<=TabScenarios[[#This Row],[PTO (€)]],TabScenarios[[#This Row],[Rated power (kW)]]*Assumptions!$C$11<=TabScenarios[[#This Row],[Mooring (€)]],TabScenarios[[#This Row],[Rated power (kW)]]*Assumptions!$C$12<=TabScenarios[[#This Row],[Connection (€)]],TabScenarios[[#This Row],[Rated power (kW)]]*Assumptions!$C$13<=TabScenarios[[#This Row],[Installation (€)]],TabScenarios[[#This Row],[Rated power (kW)]]*Assumptions!$C$14<=TabScenarios[[#This Row],[OPEX (€/a)]]) -> TRUE
A5: 2 | B5: =Inputs!$E$7 -> Heave | C5: Cuboid | D5: PU-nylon | E5: 10 | F5: 55 | G5: 0.01 | H5: 3000000 | I5: =LinInterpolate(TabScenarios[[#This Row],[Resource (kW/m)]],Assumptions!$K$3:$S$3,Assumptions!$K$5:$S$5) -> 0.7680670319 | J5: =MATCH(TabScenarios[[#This Row],[Shape]],Inputs!$M$27:$M$30,0) -> 1 | K5: =TabScenarios[[#This Row],[Scale (m)]]^3 -> 1000 | L5: =MATCH(TabScenarios[[#This Row],[Material]],Inputs!$M$19:$M$23,0) -> 5 | M5: =TabScenarios[[#This Row],[Volume (m3)]]*INDEX(Lookup_Materials!$D$10:$D$15,TabScenarios[[#This Row],[Material key ('#)]])*(1+(TabScenarios[[#This Row],[Resource (kW/m)]]-Inputs!$F$21)/5*INDEX(Lookup_Materials!$G$10:$G$15,TabScenarios[[#This Row],[Material key ('#)]])) -> 5126.879699 | N5: =TabScenarios[[#This Row],[Scale (m)]]*TabScenarios[[#This Row],[Resource (kW/m)]]*TabScenarios[[#This Row],[Efficiency (%)]] -> 5.5 | O5: =TabScenarios[[#This Row],[Av. Power (kW)]]/Assumptions!$C$7 -> 18.33333333 | P5: =IF(TabScenarios[[#This Row],[Av. Power (kW)]]>0,(TabScenarios[[#This Row],[CAPEX (€)]]/(1-'Used Values'!$D$15))/(TabScenarios[[#This Row],[Av. Power (kW)]]*TabScenarios[[#This Row],[Availability (-)]]*8.766*'Used Values'!$C$7),NA()) -> 12756.37233 | Q5: =TabScenarios[[#This Row],[CAPEX (€)]]*'Used Values'!$C$10 -> 1020000 | R5: =TabScenarios[[#This Row],[CAPEX (€)]]*'Used Values'!$C$11 -> 810000 | S5: =TabScenarios[[#This Row],[CAPEX (€)]]*'Used Values'!$C$12 -> 360000 | T5: =TabScenarios[[#This Row],[CAPEX (€)]]*'Used Values'!$C$13 -> 420000 | U5: =TabScenarios[[#This Row],[CAPEX (€)]]*'Used Values'!$C$14 -> 390000 | V5: =TabScenarios[[#This Row],[CAPEX (€)]]*Assumptions!$C$5 -> 120000 | W5: =INDEX(('Used Values'!$M$5:$V$14,'Used Values'!$M$18:$V$27,'Used Values'!$M$31:$V$40,'Used Values'!$M$44:$V$53),MATCH(TabScenarios[[#This Row],[Scale (m)]],Inputs!$E$27:$E$36,0),MATCH(TabScenarios[[#This Row],[Resource (kW/m)]],Inputs!$F$27:$F$36,0),TabScenarios[[#This Row],[Shape key ('#)]]) -> 433.5393207 | X5: =TabScenarios[[#This Row],[Material mass (kg)]]*INDEX(Lookup_Materials!$E$10:$E$15,TabScenarios[[#This Row],[Material key ('#)]]) -> 15021.75752 | Y5: =INDEX('Used Values'!$M$58:$V$67,MATCH(TabScenarios[[#This Row],[Scale (m)]],Inputs!$E$27:$E$36,0),MATCH(TabScenarios[[#This Row],[Resource (kW/m)]],Inputs!$F$27:$F$36,0)) -> 69.243407 | Z5: =TabScenarios[[#This Row],[Material mass (kg)]]*INDEX(Lookup_Materials!$F$10:$F$15,TabScenarios[[#This Row],[Material key ('#)]]) -> 59112.92293 | AA5: =_xlfn.IFNA('Used Values'!$C$4/TabScenarios[[#This Row],[LCOE (€/MWh)]],0) -> 0.01567843857 | AB5: =(TabScenarios[[#This Row],[Possible Av. Power (kW)]]-TabScenarios[[#This Row],[Av. Power (kW)]])/(TabScenarios[[#This Row],[Possible Av. Power (kW)]]-TabScenarios[[#This Row],[SOA Av. Power (kW)]])*('Used Values'!$C$6) -> 2.349954005 | AC5: =(TabScenarios[[#This Row],[Structure (€)]]-TabScenarios[[#This Row],[Possible Structure Cost (€)]])/(TabScenarios[[#This Row],[SOA Structure Cost (€)]]-TabScenarios[[#This Row],[Possible Structure Cost (€)]])*INDEX(Lookup_Materials!$H$10:$H$15,TabScenarios[[#This Row],[Material key ('#)]]) -> 22.79318846 | AD5: =TabScenarios[[#This Row],[Power TA score]]+TabScenarios[[#This Row],[Cost TA score]] -> 25.14314246 | AE5: =IF(TabScenarios[[#This Row],[CA score]]<>"",TabScenarios[[#This Row],[CA score]]>=1,NA()) -> FALSE | AF5: =AND(TabScenarios[[#This Row],[Possible Av. Power (kW)]]-TabScenarios[[#This Row],[Av. Power (kW)]]>=0,TabScenarios[[#This Row],[Structure (€)]]-TabScenarios[[#This Row],[Possible Structure Cost (€)]]>=0) -> TRUE | AG5: =AND(TabScenarios[[#This Row],[SOA Av. Power (kW)]]-TabScenarios[[#This Row],[Av. Power (kW)]]>=0,TabScenarios[[#This Row],[Structure (€)]]-TabScenarios[[#This Row],[SOA Structure Cost (€)]]>=0,TabScenarios[[#This Row],[Possible (?)]]) -> TRUE | AH5: =AND(TabScenarios[[#This Row],[Rated power (kW)]]*Assumptions!$C$10<=TabScenarios[[#This Row],[PTO (€)]],TabScenarios[[#This Row],[Rated power (kW)]]*Assumptions!$C$11<=TabScenarios[[#This Row],[Mooring (€)]],TabScenarios[[#This Row],[Rated power (kW)]]*Assumptions!$C$12<=TabScenarios[[#This Row],[Connection (€)]],TabScenarios[[#This Row],[Rated power (kW)]]*Assumptions!$C$13<=TabScenarios[[#This Row],[Installation (€)]],TabScenarios[[#This Row],[Rated power (kW)]]*Assumptions!$C$14<=TabScenarios[[#This Row],[OPEX (€/a)]]) -> TRUE
A6: 3 | B6: =Inputs!$E$7 -> Heave | C6: Cuboid | D6: PU-nylon | E6: 10 | F6: 55 | G6: 1 | H6: 2000000 | I6: =LinInterpolate(TabScenarios[[#This Row],[Resource (kW/m)]],Assumptions!$K$3:$S$3,Assumptions!$K$5:$S$5) -> 0.7680670319 | J6: =MATCH(TabScenarios[[#This Row],[Shape]],Inputs!$M$27:$M$30,0) -> 1 | K6: =TabScenarios[[#This Row],[Scale (m)]]^3 -> 1000 | L6: =MATCH(TabScenarios[[#This Row],[Material]],Inputs!$M$19:$M$23,0) -> 5 | M6: =TabScenarios[[#This Row],[Volume (m3)]]*INDEX(Lookup_Materials!$D$10:$D$15,TabScenarios[[#This Row],[Material key ('#)]])*(1+(TabScenarios[[#This Row],[Resource (kW/m)]]-Inputs!$F$21)/5*INDEX(Lookup_Materials!$G$10:$G$15,TabScenarios[[#This Row],[Material key ('#)]])) -> 5126.879699 | N6: =TabScenarios[[#This Row],[Scale (m)]]*TabScenarios[[#This Row],[Resource (kW/m)]]*TabScenarios[[#This Row],[Efficiency (%)]] -> 550 | O6: =TabScenarios[[#This Row],[Av. Power (kW)]]/Assumptions!$C$7 -> 1833.333333 | P6: =IF(TabScenarios[[#This Row],[Av. Power (kW)]]>0,(TabScenarios[[#This Row],[CAPEX (€)]]/(1-'Used Values'!$D$15))/(TabScenarios[[#This Row],[Av. Power (kW)]]*TabScenarios[[#This Row],[Availability (-)]]*8.766*'Used Values'!$C$7),NA()) -> 85.04248223 | Q6: =TabScenarios[[#This Row],[CAPEX (€)]]*'Used Values'!$C$10 -> 680000 | R6: =TabScenarios[[#This Row],[CAPEX (€)]]*'Used Values'!$C$11 -> 540000 | S6: =TabScenarios[[#This Row],[CAPEX (€)]]*'Used Values'!$C$12 -> 240000 | T6: =TabScenarios[[#This Row],[CAPEX (€)]]*'Used Values'!$C$13 -> 280000 | U6: =TabScenarios[[#This Row],[CAPEX (€)]]*'Used Values'!$C$14 -> 260000 | V6: =TabScenarios[[#This Row],[CAPEX (€)]]*Assumptions!$C$5 -> 80000 | W6: =INDEX(('Used Values'!$M$5:$V$14,'Used Values'!$M$18:$V$27,'Used Values'!$M$31:$V$40,'Used Values'!$M$44:$V$53),MATCH(TabScenarios[[#This Row],[Scale (m)]],Inputs!$E$27:$E$36,0),MATCH(TabScenarios[[#This Row],[Resource (kW/m)]],Inputs!$F$27:$F$36,0),TabScenarios[[#This Row],[Shape key ('#)]]) -> 433.5393207 | X6: =TabScenarios[[#This Row],[Material mass (kg)]]*INDEX(Lookup_Materials!$E$10:$E$15,TabScenarios[[#This Row],[Material key ('#)]]) -> 15021.75752 | Y6: =INDEX('Used Values'!$M$58:$V$67,MATCH(TabScenarios[[#This Row],[Scale (m)]],Inputs!$E$27:$E$36,0),MATCH(TabScenarios[[#This Row],[Resource (kW/m)]],Inputs!$F$27:$F$36,0)) -> 69.243407 | Z6: =TabScenarios[[#This Row],[Material mass (kg)]]*INDEX(Lookup_Materials!$F$10:$F$15,TabScenarios[[#This Row],[Material key ('#)]]) -> 59112.92293 | AA6: =_xlfn.IFNA('Used Values'!$C$4/TabScenarios[[#This Row],[LCOE (€/MWh)]],0) -> 2.351765785 | AB6: =(TabScenarios[[#This Row],[Possible Av. Power (kW)]]-TabScenarios[[#This Row],[Av. Power (kW)]])/(TabScenarios[[#This Row],[Possible Av. Power (kW)]]-TabScenarios[[#This Row],[SOA Av. Power (kW)]])*('Used Values'!$C$6) -> -0.6393740636 | AC6: =(TabScenarios[[#This Row],[Structure (€)]]-TabScenarios[[#This Row],[Possible Structure Cost (€)]])/(TabScenarios[[#This Row],[SOA Structure Cost (€)]]-TabScenarios[[#This Row],[Possible Structure Cost (€)]])*INDEX(Lookup_Materials!$H$10:$H$15,TabScenarios[[#This Row],[Material key ('#)]]) -> 15.08189308 | AD6: =TabScenarios[[#This Row],[Power TA score]]+TabScenarios[[#This Row],[Cost TA score]] -> 14.44251902 | AE6: =IF(TabScenarios[[#This Row],[CA score]]<>"",TabScenarios[[#This Row],[CA score]]>=1,NA()) -> TRUE | AF6: =AND(TabScenarios[[#This Row],[Possible Av. Power (kW)]]-TabScenarios[[#This Row],[Av. Power (kW)]]>=0,TabScenarios[[#This Row],[Structure (€)]]-TabScenarios[[#This Row],[Possible Structure Cost (€)]]>=0) -> FALSE | AG6: =AND(TabScenarios[[#This Row],[SOA Av. Power (kW)]]-TabScenarios[[#This Row],[Av. Power (kW)]]>=0,TabScenarios[[#This Row],[Structure (€)]]-TabScenarios[[#This Row],[SOA Structure Cost (€)]]>=0,TabScenarios[[#This Row],[Possible (?)]]) -> FALSE | AH6: =AND(TabScenarios[[#This Row],[Rated power (kW)]]*Assumptions!$C$10<=TabScenarios[[#This Row],[PTO (€)]],TabScenarios[[#This Row],[Rated power (kW)]]*Assumptions!$C$11<=TabScenarios[[#This Row],[Mooring (€)]],TabScenarios[[#This Row],[Rated power (kW)]]*Assumptions!$C$12<=TabScenarios[[#This Row],[Connection (€)]],TabScenarios[[#This Row],[Rated power (kW)]]*Assumptions!$C$13<=TabScenarios[[#This Row],[Installation (€)]],TabScenarios[[#This Row],[Rated power (kW)]]*Assumptions!$C$14<=TabScenarios[[#This Row],[OPEX (€/a)]]) -> FALSE
A7: 4 | B7: =Inputs!$E$7 -> Heave | C7: Cuboid | D7: PU-nylon | E7: 10 | F7: 55 | G7: 1 | H7: 3000000 | I7: =LinInterpolate(TabScenarios[[#This Row],[Resource (kW/m)]],Assumptions!$K$3:$S$3,Assumptions!$K$5:$S$5) -> 0.7680670319 | J7: =MATCH(TabScenarios[[#This Row],[Shape]],Inputs!$M$27:$M$30,0) -> 1 | K7: =TabScenarios[[#This Row],[Scale (m)]]^3 -> 1000 | L7: =MATCH(TabScenarios[[#This Row],[Material]],Inputs!$M$19:$M$23,0) -> 5 | M7: =TabScenarios[[#This Row],[Volume (m3)]]*INDEX(Lookup_Materials!$D$10:$D$15,TabScenarios[[#This Row],[Material key ('#)]])*(1+(TabScenarios[[#This Row],[Resource (kW/m)]]-Inputs!$F$21)/5*INDEX(Lookup_Materials!$G$10:$G$15,TabScenarios[[#This Row],[Material key ('#)]])) -> 5126.879699 | N7: =TabScenarios[[#This Row],[Scale (m)]]*TabScenarios[[#This Row],[Resource (kW/m)]]*TabScenarios[[#This Row],[Efficiency (%)]] -> 550 | O7: =TabScenarios[[#This Row],[Av. Power (kW)]]/Assumptions!$C$7 -> 1833.333333 | P7: =IF(TabScenarios[[#This Row],[Av. Power (kW)]]>0,(TabScenarios[[#This Row],[CAPEX (€)]]/(1-'Used Values'!$D$15))/(TabScenarios[[#This Row],[Av. Power (kW)]]*TabScenarios[[#This Row],[Availability (-)]]*8.766*'Used Values'!$C$7),NA()) -> 127.5637233 | Q7: =TabScenarios[[#This Row],[CAPEX (€)]]*'Used Values'!$C$10 -> 1020000 | R7: =TabScenarios[[#This Row],[CAPEX (€)]]*'Used Values'!$C$11 -> 810000 | S7: =TabScenarios[[#This Row],[CAPEX (€)]]*'Used Values'!$C$12 -> 360000 | T7: =TabScenarios[[#This Row],[CAPEX (€)]]*'Used Values'!$C$13 -> 420000 | U7: =TabScenarios[[#This Row],[CAPEX (€)]]*'Used Values'!$C$14 -> 390000 | V7: =TabScenarios[[#This Row],[CAPEX (€)]]*Assumptions!$C$5 -> 120000 | W7: =INDEX(('Used Values'!$M$5:$V$14,'Used Values'!$M$18:$V$27,'Used Values'!$M$31:$V$40,'Used Values'!$M$44:$V$53),MATCH(TabScenarios[[#This Row],[Scale (m)]],Inputs!$E$27:$E$36,0),MATCH(TabScenarios[[#This Row],[Resource (kW/m)]],Inputs!$F$27:$F$36,0),TabScenarios[[#This Row],[Shape key ('#)]]) -> 433.5393207 | X7: =TabScenarios[[#This Row],[Material mass (kg)]]*INDEX(Lookup_Materials!$E$10:$E$15,TabScenarios[[#This Row],[Material key ('#)]]) -> 15021.75752 | Y7: =INDEX('Used Values'!$M$58:$V$67,MATCH(TabScenarios[[#This Row],[Scale (m)]],Inputs!$E$27:$E$36,0),MATCH(TabScenarios[[#This Row],[Resource (kW/m)]],Inputs!$F$27:$F$36,0)) -> 69.243407 | Z7: =TabScenarios[[#This Row],[Material mass (kg)]]*INDEX(Lookup_Materials!$F$10:$F$15,TabScenarios[[#This Row],[Material key ('#)]]) -> 59112.92293 | AA7: =_xlfn.IFNA('Used Values'!$C$4/TabScenarios[[#This Row],[LCOE (€/MWh)]],0) -> 1.567843857 | AB7: =(TabScenarios[[#This Row],[Possible Av. Power (kW)]]-TabScenarios[[#This Row],[Av. Power (kW)]])/(TabScenarios[[#This Row],[Possible Av. Power (kW)]]-TabScenarios[[#This Row],[SOA Av. Power (kW)]])*('Used Values'!$C$6) -> -0.6393740636 | AC7: =(TabScenarios[[#This Row],[Structure (€)]]-TabScenarios[[#This Row],[Possible Structure Cost (€)]])/(TabScenarios[[#This Row],[SOA Structure Cost (€)]]-TabScenarios[[#This Row],[Possible Structure Cost (€)]])*INDEX(Lookup_Materials!$H$10:$H$15,TabScenarios[[#This Row],[Material key ('#)]]) -> 22.79318846 | AD7: =TabScenarios[[#This Row],[Power TA score]]+TabScenarios[[#This Row],[Cost TA score]] -> 22.15381439 | AE7: =IF(TabScenarios[[#This Row],[CA score]]<>"",TabScenarios[[#This Row],[CA score]]>=1,NA()) -> TRUE | AF7: =AND(TabScenarios[[#This Row],[Possible Av. Power (kW)]]-TabScenarios[[#This Row],[Av. Power (kW)]]>=0,TabScenarios[[#This Row],[Structure (€)]]-TabScenarios[[#This Row],[Possible Structure Cost (€)]]>=0) -> FALSE | AG7: =AND(TabScenarios[[#This Row],[SOA Av. Power (kW)]]-TabScenarios[[#This Row],[Av. Power (kW)]]>=0,TabScenarios[[#This Row],[Structure (€)]]-TabScenarios[[#This Row],[SOA Structure Cost (€)]]>=0,TabScenarios[[#This Row],[Possible (?)]]) -> FALSE | AH7: =AND(TabScenarios[[#This Row],[Rated power (kW)]]*Assumptions!$C$10<=TabScenarios[[#This Row],[PTO (€)]],TabScenarios[[#This Row],[Rated power (kW)]]*Assumptions!$C$11<=TabScenarios[[#This Row],[Mooring (€)]],TabScenarios[[#This Row],[Rated power (kW)]]*Assumptions!$C$12<=TabScenarios[[#This Row],[Connection (€)]],TabScenarios[[#This Row],[Rated power (kW)]]*Assumptions!$C$13<=TabScenarios[[#This Row],[Installation (€)]],TabScenarios[[#This Row],[Rated power (kW)]]*Assumptions!$C$14<=TabScenarios[[#This Row],[OPEX (€/a)]]) -> FALSE
A8: 5 | B8: =Inputs!$E$7 -> Heave | C8: Cuboid | D8: PU-nylon | E8: 10 | F8: 65 | G8: 0.01 | H8: 2000000 | I8: =LinInterpolate(TabScenarios[[#This Row],[Resource (kW/m)]],Assumptions!$K$3:$S$3,Assumptions!$K$5:$S$5) -> 0.7258071258 | J8: =MATCH(TabScenarios[[#This Row],[Shape]],Inputs!$M$27:$M$30,0) -> 1 | K8: =TabScenarios[[#This Row],[Scale (m)]]^3 -> 1000 | L8: =MATCH(TabScenarios[[#This Row],[Material]],Inputs!$M$19:$M$23,0) -> 5 | M8: =TabScenarios[[#This Row],[Volume (m3)]]*INDEX(Lookup_Materials!$D$10:$D$15,TabScenarios[[#This Row],[Material key ('#)]])*(1+(TabScenarios[[#This Row],[Resource (kW/m)]]-Inputs!$F$21)/5*INDEX(Lookup_Materials!$G$10:$G$15,TabScenarios[[#This Row],[Material key ('#)]])) -> 5126.879699 | N8: =TabScenarios[[#This Row],[Scale (m)]]*TabScenarios[[#This Row],[Resource (kW/m)]]*TabScenarios[[#This Row],[Efficiency (%)]] -> 6.5 | O8: =TabScenarios[[#This Row],[Av. Power (kW)]]/Assumptions!$C$7 -> 21.66666667 | P8: =IF(TabScenarios[[#This Row],[Av. Power (kW)]]>0,(TabScenarios[[#This Row],[CAPEX (€)]]/(1-'Used Values'!$D$15))/(TabScenarios[[#This Row],[Av. Power (kW)]]*TabScenarios[[#This Row],[Availability (-)]]*8.766*'Used Values'!$C$7),NA()) -> 7614.881637 | Q8: =TabScenarios[[#This Row],[CAPEX (€)]]*'Used Values'!$C$10 -> 680000 | R8: =TabScenarios[[#This Row],[CAPEX (€)]]*'Used Values'!$C$11 -> 540000 | S8: =TabScenarios[[#This Row],[CAPEX (€)]]*'Used Values'!$C$12 -> 240000 | T8: =TabScenarios[[#This Row],[CAPEX (€)]]*'Used Values'!$C$13 -> 280000 | U8: =TabScenarios[[#This Row],[CAPEX (€)]]*'Used Values'!$C$14 -> 260000 | V8: =TabScenarios[[#This Row],[CAPEX (€)]]*Assumptions!$C$5 -> 80000 | W8: =INDEX(('Used Values'!$M$5:$V$14,'Used Values'!$M$18:$V$27,'Used Values'!$M$31:$V$40,'Used Values'!$M$44:$V$53),MATCH(TabScenarios[[#This Row],[Scale (m)]],Inputs!$E$27:$E$36,0),MATCH(TabScenarios[[#This Row],[Resource (kW/m)]],Inputs!$F$27:$F$36,0),TabScenarios[[#This Row],[Shape key ('#)]]) -> 465.0783453 | X8: =TabScenarios[[#This Row],[Material mass (kg)]]*INDEX(Lookup_Materials!$E$10:$E$15,TabScenarios[[#This Row],[Material key ('#)]]) -> 15021.75752 | Y8: =INDEX('Used Values'!$M$58:$V$67,MATCH(TabScenarios[[#This Row],[Scale (m)]],Inputs!$E$27:$E$36,0),MATCH(TabScenarios[[#This Row],[Resource (kW/m)]],Inputs!$F$27:$F$36,0)) -> 76.11774053 | Z8: =TabScenarios[[#This Row],[Material mass (kg)]]*INDEX(Lookup_Materials!$F$10:$F$15,TabScenarios[[#This Row],[Material key ('#)]]) -> 59112.92293 | AA8: =_xlfn.IFNA('Used Values'!$C$4/TabScenarios[[#This Row],[LCOE (€/MWh)]],0) -> 0.02626436096 | AB8: =(TabScenarios[[#This Row],[Possible Av. Power (kW)]]-TabScenarios[[#This Row],[Av. Power (kW)]])/(TabScenarios[[#This Row],[Possible Av. Power (kW)]]-TabScenarios[[#This Row],[SOA Av. Power (kW)]])*('Used Values'!$C$6) -> 2.35796808 | AC8: =(TabScenarios[[#This Row],[Structure (€)]]-TabScenarios[[#This Row],[Possible Structure Cost (€)]])/(TabScenarios[[#This Row],[SOA Structure Cost (€)]]-TabScenarios[[#This Row],[Possible Structure Cost (€)]])*INDEX(Lookup_Materials!$H$10:$H$15,TabScenarios[[#This Row],[Material key ('#)]]) -> 15.08189308 | AD8: =TabScenarios[[#This Row],[Power TA score]]+TabScenarios[[#This Row],[Cost TA score]] -> 17.43986116 | AE8: =IF(TabScenarios[[#This Row],[CA score]]<>"",TabScenarios[[#This Row],[CA score]]>=1,NA()) -> FALSE | AF8: =AND(TabScenarios[[#This Row],[Possible Av. Power (kW)]]-TabScenarios[[#This Row],[Av. Power (kW)]]>=0,TabScenarios[[#This Row],[Structure (€)]]-TabScenarios[[#This Row],[Possible Structure Cost (€)]]>=0) -> TRUE | AG8: =AND(TabScenarios[[#This Row],[SOA Av. Power (kW)]]-TabScenarios[[#This Row],[Av. Power (kW)]]>=0,TabScenarios[[#This Row],[Structure (€)]]-TabScenarios[[#This Row],[SOA Structure Cost (€)]]>=0,TabScenarios[[#This Row],[Possible (?)]]) -> TRUE | AH8: =AND(TabScenarios[[#This Row],[Rated power (kW)]]*Assumptions!$C$10<=TabScenarios[[#This Row],[PTO (€)]],TabScenarios[[#This Row],[Rated power (kW)]]*Assumptions!$C$11<=TabScenarios[[#This Row],[Mooring (€)]],TabScenarios[[#This Row],[Rated power (kW)]]*Assumptions!$C$12<=TabScenarios[[#This Row],[Connection (€)]],TabScenarios[[#This Row],[Rated power (kW)]]*Assumptions!$C$13<=TabScenarios[[#This Row],[Installation (€)]],TabScenarios[[#This Row],[Rated power (kW)]]*Assumptions!$C$14<=TabScenarios[[#This Row],[OPEX (€/a)]]) -> TRUE
A9: 6 | B9: =Inputs!$E$7 -> Heave | C9: Cuboid | D9: PU-nylon | E9: 10 | F9: 65 | G9: 0.01 | H9: 3000000 | I9: =LinInterpolate(TabScenarios[[#This Row],[Resource (kW/m)]],Assumptions!$K$3:$S$3,Assumptions!$K$5:$S$5) -> 0.7258071258 | J9: =MATCH(TabScenarios[[#This Row],[Shape]],Inputs!$M$27:$M$30,0) -> 1 | K9: =TabScenarios[[#This Row],[Scale (m)]]^3 -> 1000 | L9: =MATCH(TabScenarios[[#This Row],[Material]],Inputs!$M$19:$M$23,0) -> 5 | M9: =TabScenarios[[#This Row],[Volume (m3)]]*INDEX(Lookup_Materials!$D$10:$D$15,TabScenarios[[#This Row],[Material key ('#)]])*(1+(TabScenarios[[#This Row],[Resource (kW/m)]]-Inputs!$F$21)/5*INDEX(Lookup_Materials!$G$10:$G$15,TabScenarios[[#This Row],[Material key ('#)]])) -> 5126.879699 | N9: =TabScenarios[[#This Row],[Scale (m)]]*TabScenarios[[#This Row],[Resource (kW/m)]]*TabScenarios[[#This Row],[Efficiency (%)]] -> 6.5 | O9: =TabScenarios[[#This Row],[Av. Power (kW)]]/Assumptions!$C$7 -> 21.66666667 | P9: =IF(TabScenarios[[#This Row],[Av. Power (kW)]]>0,(TabScenarios[[#This Row],[CAPEX (€)]]/(1-'Used Values'!$D$15))/(TabScenarios[[#This Row],[Av. Power (kW)]]*TabScenarios[[#This Row],[Availability (-)]]*8.766*'Used Values'!$C$7),NA()) -> 11422.32246 | Q9: =TabScenarios[[#This Row],[CAPEX (€)]]*'Used Values'!$C$10 -> 1020000 | R9: =TabScenarios[[#This Row],[CAPEX (€)]]*'Used Values'!$C$11 -> 810000 | S9: =TabScenarios[[#This Row],[CAPEX (€)]]*'Used Values'!$C$12 -> 360000 | T9: =TabScenarios[[#This Row],[CAPEX (€)]]*'Used Values'!$C$13 -> 420000 | U9: =TabScenarios[[#This Row],[CAPEX (€)]]*'Used Values'!$C$14 -> 390000 | V9: =TabScenarios[[#This Row],[CAPEX (€)]]*Assumptions!$C$5 -> 120000 | W9: =INDEX(('Used Values'!$M$5:$V$14,'Used Values'!$M$18:$V$27,'Used Values'!$M$31:$V$40,'Used Values'!$M$44:$V$53),MATCH(TabScenarios[[#This Row],[Scale (m)]],Inputs!$E$27:$E$36,0),MATCH(TabScenarios[[#This Row],[Resource (kW/m)]],Inputs!$F$27:$F$36,0),TabScenarios[[#This Row],[Shape key ('#)]]) -> 465.0783453 | X9: =TabScenarios[[#This Row],[Material mass (kg)]]*INDEX(Lookup_Materials!$E$10:$E$15,TabScenarios[[#This Row],[Material key ('#)]]) -> 15021.75752 | Y9: =INDEX('Used Values'!$M$58:$V$67,MATCH(TabScenarios[[#This Row],[Scale (m)]],Inputs!$E$27:$E$36,0),MATCH(TabScenarios[[#This Row],[Resource (kW/m)]],Inputs!$F$27:$F$36,0)) -> 76.11774053 | Z9: =TabScenarios[[#This Row],[Material mass (kg)]]*INDEX(Lookup_Materials!$F$10:$F$15,TabScenarios[[#This Row],[Material key ('#)]]) -> 59112.92293 | AA9: =_xlfn.IFNA('Used Values'!$C$4/TabScenarios[[#This Row],[LCOE (€/MWh)]],0) -> 0.01750957397 | AB9: =(TabScenarios[[#This Row],[Possible Av. Power (kW)]]-TabScenarios[[#This Row],[Av. Power (kW)]])/(TabScenarios[[#This Row],[Possible Av. Power (kW)]]-TabScenarios[[#This Row],[SOA Av. Power (kW)]])*('Used Values'!$C$6) -> 2.35796808 | AC9: =(TabScenarios[[#This Row],[Structure (€)]]-TabScenarios[[#This Row],[Possible Structure Cost (€)]])/(TabScenarios[[#This Row],[SOA Structure Cost (€)]]-TabScenarios[[#This Row],[Possible Structure Cost (€)]])*INDEX(Lookup_Materials!$H$10:$H$15,TabScenarios[[#This Row],[Material key ('#)]]) -> 22.79318846 | AD9: =TabScenarios[[#This Row],[Power TA score]]+TabScenarios[[#This Row],[Cost TA score]] -> 25.15115654 | AE9: =IF(TabScenarios[[#This Row],[CA score]]<>"",TabScenarios[[#This Row],[CA score]]>=1,NA()) -> FALSE | AF9: =AND(TabScenarios[[#This Row],[Possible Av. Power (kW)]]-TabScenarios[[#This Row],[Av. Power (kW)]]>=0,TabScenarios[[#This Row],[Structure (€)]]-TabScenarios[[#This Row],[Possible Structure Cost (€)]]>=0) -> TRUE | AG9: =AND(TabScenarios[[#This Row],[SOA Av. Power (kW)]]-TabScenarios[[#This Row],[Av. Power (kW)]]>=0,TabScenarios[[#This Row],[Structure (€)]]-TabScenarios[[#This Row],[SOA Structure Cost (€)]]>=0,TabScenarios[[#This Row],[Possible (?)]]) -> TRUE | AH9: =AND(TabScenarios[[#This Row],[Rated power (kW)]]*Assumptions!$C$10<=TabScenarios[[#This Row],[PTO (€)]],TabScenarios[[#This Row],[Rated power (kW)]]*Assumptions!$C$11<=TabScenarios[[#This Row],[Mooring (€)]],TabScenarios[[#This Row],[Rated power (kW)]]*Assumptions!$C$12<=TabScenarios[[#This Row],[Connection (€)]],TabScenarios[[#This Row],[Rated power (kW)]]*Assumptions!$C$13<=TabScenarios[[#This Row],[Installation (€)]],TabScenarios[[#This Row],[Rated power (kW)]]*Assumptions!$C$14<=TabScenarios[[#This Row],[OPEX (€/a)]]) -> TRUE
A10: 7 | B10: =Inputs!$E$7 -> Heave | C10: Cuboid | D10: PU-nylon | E10: 10 | F10: 65 | G10: 1 | H10: 2000000 | I10: =LinInterpolate(TabScenarios[[#This Row],[Resource (kW/m)]],Assumptions!$K$3:$S$3,Assumptions!$K$5:$S$5) -> 0.7258071258 | J10: =MATCH(TabScenarios[[#This Row],[Shape]],Inputs!$M$27:$M$30,0) -> 1 | K10: =TabScenarios[[#This Row],[Scale (m)]]^3 -> 1000 | L10: =MATCH(TabScenarios[[#This Row],[Material]],Inputs!$M$19:$M$23,0) -> 5 | M10: =TabScenarios[[#This Row],[Volume (m3)]]*INDEX(Lookup_Materials!$D$10:$D$15,TabScenarios[[#This Row],[Material key ('#)]])*(1+(TabScenarios[[#This Row],[Resource (kW/m)]]-Inputs!$F$21)/5*INDEX(Lookup_Materials!$G$10:$G$15,TabScenarios[[#This Row],[Material key ('#)]])) -> 5126.879699 | N10: =TabScenarios[[#This Row],[Scale (m)]]*TabScenarios[[#This Row],[Resource (kW/m)]]*TabScenarios[[#This Row],[Efficiency (%)]] -> 650 | O10: =TabScenarios[[#This Row],[Av. Power (kW)]]/Assumptions!$C$7 -> 2166.666667 | P10: =IF(TabScenarios[[#This Row],[Av. Power (kW)]]>0,(TabScenarios[[#This Row],[CAPEX (€)]]/(1-'Used Values'!$D$15))/(TabScenarios[[#This Row],[Av. Power (kW)]]*TabScenarios[[#This Row],[Availability (-)]]*8.766*'Used Values'!$C$7),NA()) -> 76.14881637 | Q10: =TabScenarios[[#This Row],[CAPEX (€)]]*'Used Values'!$C$10 -> 680000 | R10: =TabScenarios[[#This Row],[CAPEX (€)]]*'Used Values'!$C$11 -> 540000 | S10: =TabScenarios[[#This Row],[CAPEX (€)]]*'Used Values'!$C$12 -> 240000 | T10: =TabScenarios[[#This Row],[CAPEX (€)]]*'Used Values'!$C$13 -> 280000 | U10: =TabScenarios[[#This Row],[CAPEX (€)]]*'Used Values'!$C$14 -> 260000 | V10: =TabScenarios[[#This Row],[CAPEX (€)]]*Assumptions!$C$5 -> 80000 | W10: =INDEX(('Used Values'!$M$5:$V$14,'Used Values'!$M$18:$V$27,'Used Values'!$M$31:$V$40,'Used Values'!$M$44:$V$53),MATCH(TabScenarios[[#This Row],[Scale (m)]],Inputs!$E$27:$E$36,0),MATCH(TabScenarios[[#This Row],[Resource (kW/m)]],Inputs!$F$27:$F$36,0),TabScenarios[[#This Row],[Shape key ('#)]]) -> 465.0783453 | X10: =TabScenarios[[#This Row],[Material mass (kg)]]*INDEX(Lookup_Materials!$E$10:$E$15,TabScenarios[[#This Row],[Material key ('#)]]) -> 15021.75752 | Y10: =INDEX('Used Values'!$M$58:$V$67,MATCH(TabScenarios[[#This Row],[Scale (m)]],Inputs!$E$27:$E$36,0),MATCH(TabScenarios[[#This Row],[Resource (kW/m)]],Inputs!$F$27:$F$36,0)) -> 76.11774053 | Z10: =TabScenarios[[#This Row],[Material mass (kg)]]*INDEX(Lookup_Materials!$F$10:$F$15,TabScenarios[[#This Row],[Material key ('#)]]) -> 59112.92293 | AA10: =_xlfn.IFNA('Used Values'!$C$4/TabScenarios[[#This Row],[LCOE (€/MWh)]],0) -> 2.626436096 | AB10: =(TabScenarios[[#This Row],[Possible Av. Power (kW)]]-TabScenarios[[#This Row],[Av. Power (kW)]])/(TabScenarios[[#This Row],[Possible Av. Power (kW)]]-TabScenarios[[#This Row],[SOA Av. Power (kW)]])*('Used Values'!$C$6) -> -0.950850304 | AC10: =(TabScenarios[[#This Row],[Structure (€)]]-TabScenarios[[#This Row],[Possible Structure Cost (€)]])/(TabScenarios[[#This Row],[SOA Structure Cost (€)]]-TabScenarios[[#This Row],[Possible Structure Cost (€)]])*INDEX(Lookup_Materials!$H$10:$H$15,TabScenarios[[#This Row],[Material key ('#)]]) -> 15.08189308 | AD10: =TabScenarios[[#This Row],[Power TA score]]+TabScenarios[[#This Row],[Cost TA score]] -> 14.13104277 | AE10: =IF(TabScenarios[[#This Row],[CA score]]<>"",TabScenarios[[#This Row],[CA score]]>=1,NA()) -> TRUE | AF10: =AND(TabScenarios[[#This Row],[Possible Av. Power (kW)]]-TabScenarios[[#This Row],[Av. Power (kW)]]>=0,TabScenarios[[#This Row],[Structure (€)]]-TabScenarios[[#This Row],[Possible Structure Cost (€)]]>=0) -> FALSE | AG10: =AND(TabScenarios[[#This Row],[SOA Av. Power (kW)]]-TabScenarios[[#This Row],[Av. Power (kW)]]>=0,TabScenarios[[#This Row],[Structure (€)]]-TabScenarios[[#This Row],[SOA Structure Cost (€)]]>=0,TabScenarios[[#This Row],[Possible (?)]]) -> FALSE | AH10: =AND(TabScenarios[[#This Row],[Rated power (kW)]]*Assumptions!$C$10<=TabScenarios[[#This Row],[PTO (€)]],TabScenarios[[#This Row],[Rated power (kW)]]*Assumptions!$C$11<=TabScenarios[[#This Row],[Mooring (€)]],TabScenarios[[#This Row],[Rated power (kW)]]*Assumptions!$C$12<=TabScenarios[[#This Row],[Connection (€)]],TabScenarios[[#This Row],[Rated power (kW)]]*Assumptions!$C$13<=TabScenarios[[#This Row],[Installation (€)]],TabScenarios[[#This Row],[Rated power (kW)]]*Assumptions!$C$14<=TabScenarios[[#This Row],[OPEX (€/a)]]) -> FALSE
A11: 8 | B11: =Inputs!$E$7 -> Heave | C11: Cuboid | D11: PU-nylon | E11: 10 | F11: 65 | G11: 1 | H11: 3000000 | I11: =LinInterpolate(TabScenarios[[#This Row],[Resource (kW/m)]],Assumptions!$K$3:$S$3,Assumptions!$K$5:$S$5) -> 0.7258071258 | J11: =MATCH(TabScenarios[[#This Row],[Shape]],Inputs!$M$27:$M$30,0) -> 1 | K11: =TabScenarios[[#This Row],[Scale (m)]]^3 -> 1000 | L11: =MATCH(TabScenarios[[#This Row],[Material]],Inputs!$M$19:$M$23,0) -> 5 | M11: =TabScenarios[[#This Row],[Volume (m3)]]*INDEX(Lookup_Materials!$D$10:$D$15,TabScenarios[[#This Row],[Material key ('#)]])*(1+(TabScenarios[[#This Row],[Resource (kW/m)]]-Inputs!$F$21)/5*INDEX(Lookup_Materials!$G$10:$G$15,TabScenarios[[#This Row],[Material key ('#)]])) -> 5126.879699 | N11: =TabScenarios[[#This Row],[Scale (m)]]*TabScenarios[[#This Row],[Resource (kW/m)]]*TabScenarios[[#This Row],[Efficiency (%)]] -> 650 | O11: =TabScenarios[[#This Row],[Av. Power (kW)]]/Assumptions!$C$7 -> 2166.666667 | P11: =IF(TabScenarios[[#This Row],[Av. Power (kW)]]>0,(TabScenarios[[#This Row],[CAPEX (€)]]/(1-'Used Values'!$D$15))/(TabScenarios[[#This Row],[Av. Power (kW)]]*TabScenarios[[#This Row],[Availability (-)]]*8.766*'Used Values'!$C$7),NA()) -> 114.2232246 | Q11: =TabScenarios[[#This Row],[CAPEX (€)]]*'Used Values'!$C$10 -> 1020000 | R11: =TabScenarios[[#This Row],[CAPEX (€)]]*'Used Values'!$C$11 -> 810000 | S11: =TabScenarios[[#This Row],[CAPEX (€)]]*'Used Values'!$C$12 -> 360000 | T11: =TabScenarios[[#This Row],[CAPEX (€)]]*'Used Values'!$C$13 -> 420000 | U11: =TabScenarios[[#This Row],[CAPEX (€)]]*'Used Values'!$C$14 -> 390000 | V11: =TabScenarios[[#This Row],[CAPEX (€)]]*Assumptions!$C$5 -> 120000 | W11: =INDEX(('Used Values'!$M$5:$V$14,'Used Values'!$M$18:$V$27,'Used Values'!$M$31:$V$40,'Used Values'!$M$44:$V$53),MATCH(TabScenarios[[#This Row],[Scale (m)]],Inputs!$E$27:$E$36,0),MATCH(TabScenarios[[#This Row],[Resource (kW/m)]],Inputs!$F$27:$F$36,0),TabScenarios[[#This Row],[Shape key ('#)]]) -> 465.0783453 | X11: =TabScenarios[[#This Row],[Material mass (kg)]]*INDEX(Lookup_Materials!$E$10:$E$15,TabScenarios[[#This Row],[Material key ('#)]]) -> 15021.75752 | Y11: =INDEX('Used Values'!$M$58:$V$67,MATCH(TabScenarios[[#This Row],[Scale (m)]],Inputs!$E$27:$E$36,0),MATCH(TabScenarios[[#This Row],[Resource (kW/m)]],Inputs!$F$27:$F$36,0)) -> 76.11774053 | Z11: =TabScenarios[[#This Row],[Material mass (kg)]]*INDEX(Lookup_Materials!$F$10:$F$15,TabScenarios[[#This Row],[Material key ('#)]]) -> 59112.92293 | AA11: =_xlfn.IFNA('Used Values'!$C$4/TabScenarios[[#This Row],[LCOE (€/MWh)]],0) -> 1.750957397 | AB11: =(TabScenarios[[#This Row],[Possible Av. Power (kW)]]-TabScenarios[[#This Row],[Av. Power (kW)]])/(TabScenarios[[#This Row],[Possible Av. Power (kW)]]-TabScenarios[[#This Row],[SOA Av. Power (kW)]])*('Used Values'!$C$6) -> -0.950850304 | AC11: =(TabScenarios[[#This Row],[Structure (€)]]-TabScenarios[[#This Row],[Possible Structure Cost (€)]])/(TabScenarios[[#This Row],[SOA Structure Cost (€)]]-TabScenarios[[#This Row],[Possible Structure Cost (€)]])*INDEX(Lookup_Materials!$H$10:$H$15,TabScenarios[[#This Row],[Material key ('#)]]) -> 22.79318846 | AD11: =TabScenarios[[#This Row],[Power TA score]]+TabScenarios[[#This Row],[Cost TA score]] -> 21.84233815 | AE11: =IF(TabScenarios[[#This Row],[CA score]]<>"",TabScenarios[[#This Row],[CA score]]>=1,NA()) -> TRUE | AF11: =AND(TabScenarios[[#This Row],[Possible Av. Power (kW)]]-TabScenarios[[#This Row],[Av. Power (kW)]]>=0,TabScenarios[[#This Row],[Structure (€)]]-TabScenarios[[#This Row],[Possible Structure Cost (€)]]>=0) -> FALSE | AG11: =AND(TabScenarios[[#This Row],[SOA Av. Power (kW)]]-TabScenarios[[#This Row],[Av. Power (kW)]]>=0,TabScenarios[[#This Row],[Structure (€)]]-TabScenarios[[#This Row],[SOA Structure Cost (€)]]>=0,TabScenarios[[#This Row],[Possible (?)]]) -> FALSE | AH11: =AND(TabScenarios[[#This Row],[Rated power (kW)]]*Assumptions!$C$10<=TabScenarios[[#This Row],[PTO (€)]],TabScenarios[[#This Row],[Rated power (kW)]]*Assumptions!$C$11<=TabScenarios[[#This Row],[Mooring (€)]],TabScenarios[[#This Row],[Rated power (kW)]]*Assumptions!$C$12<=TabScenarios[[#This Row],[Connection (€)]],TabScenarios[[#This Row],[Rated power (kW)]]*Assumptions!$C$13<=TabScenarios[[#This Row],[Installation (€)]],TabScenarios[[#This Row],[Rated power (kW)]]*Assumptions!$C$14<=TabScenarios[[#This Row],[OPEX (€/a)]]) -> FALSE
A12: 9 | B12: =Inputs!$E$7 -> Heave | C12: Cuboid | D12: PU-nylon | E12: 40 | F12: 55 | G12: 0.01 | H12: 2000000 | I12: =LinInterpolate(TabScenarios[[#This Row],[Resource (kW/m)]],Assumptions!$K$3:$S$3,Assumptions!$K$5:$S$5) -> 0.7680670319 | J12: =MATCH(TabScenarios[[#This Row],[Shape]],Inputs!$M$27:$M$30,0) -> 1 | K12: =TabScenarios[[#This Row],[Scale (m)]]^3 -> 64000 | L12: =MATCH(TabScenarios[[#This Row],[Material]],Inputs!$M$19:$M$23,0) -> 5 | M12: =TabScenarios[[#This Row],[Volume (m3)]]*INDEX(Lookup_Materials!$D$10:$D$15,TabScenarios[[#This Row],[Material key ('#)]])*(1+(TabScenarios[[#This Row],[Resource (kW/m)]]-Inputs!$F$21)/5*INDEX(Lookup_Materials!$G$10:$G$15,TabScenarios[[#This Row],[Material key ('#)]])) -> 328120.3008 | N12: =TabScenarios[[#This Row],[Scale (m)]]*TabScenarios[[#This Row],[Resource (kW/m)]]*TabScenarios[[#This Row],[Efficiency (%)]] -> 22 | O12: =TabScenarios[[#This Row],[Av. Power (kW)]]/Assumptions!$C$7 -> 73.33333333 | P12: =IF(TabScenarios[[#This Row],[Av. Power (kW)]]>0,(TabScenarios[[#This Row],[CAPEX (€)]]/(1-'Used Values'!$D$15))/(TabScenarios[[#This Row],[Av. Power (kW)]]*TabScenarios[[#This Row],[Availability (-)]]*8.766*'Used Values'!$C$7),NA()) -> 2126.062056 | Q12: =TabScenarios[[#This Row],[CAPEX (€)]]*'Used Values'!$C$10 -> 680000 | R12: =TabScenarios[[#This Row],[CAPEX (€)]]*'Used Values'!$C$11 -> 540000 | S12: =TabScenarios[[#This Row],[CAPEX (€)]]*'Used Values'!$C$12 -> 240000 | T12: =TabScenarios[[#This Row],[CAPEX (€)]]*'Used Values'!$C$13 -> 280000 | U12: =TabScenarios[[#This Row],[CAPEX (€)]]*'Used Values'!$C$14 -> 260000 | V12: =TabScenarios[[#This Row],[CAPEX (€)]]*Assumptions!$C$5 -> 80000 | W12: =INDEX(('Used Values'!$M$5:$V$14,'Used Values'!$M$18:$V$27,'Used Values'!$M$31:$V$40,'Used Values'!$M$44:$V$53),MATCH(TabScenarios[[#This Row],[Scale (m)]],Inputs!$E$27:$E$36,0),MATCH(TabScenarios[[#This Row],[Resource (kW/m)]],Inputs!$F$27:$F$36,0),TabScenarios[[#This Row],[Shape key ('#)]]) -> 3982.954621 | X12: =TabScenarios[[#This Row],[Material mass (kg)]]*INDEX(Lookup_Materials!$E$10:$E$15,TabScenarios[[#This Row],[Material key ('#)]]) -> 961392.4812 | Y12: =INDEX('Used Values'!$M$58:$V$67,MATCH(TabScenarios[[#This Row],[Scale (m)]],Inputs!$E$27:$E$36,0),MATCH(TabScenarios[[#This Row],[Resource (kW/m)]],Inputs!$F$27:$F$36,0)) -> 1180.2051 | Z12: =TabScenarios[[#This Row],[Material mass (kg)]]*INDEX(Lookup_Materials!$F$10:$F$15,TabScenarios[[#This Row],[Material key ('#)]]) -> 3783227.068 | AA12: =_xlfn.IFNA('Used Values'!$C$4/TabScenarios[[#This Row],[LCOE (€/MWh)]],0) -> 0.09407063141 | AB12: =(TabScenarios[[#This Row],[Possible Av. Power (kW)]]-TabScenarios[[#This Row],[Av. Power (kW)]])/(TabScenarios[[#This Row],[Possible Av. Power (kW)]]-TabScenarios[[#This Row],[SOA Av. Power (kW)]])*('Used Values'!$C$6) -> 2.826477779 | AC12: =(TabScenarios[[#This Row],[Structure (€)]]-TabScenarios[[#This Row],[Possible Structure Cost (€)]])/(TabScenarios[[#This Row],[SOA Structure Cost (€)]]-TabScenarios[[#This Row],[Possible Structure Cost (€)]])*INDEX(Lookup_Materials!$H$10:$H$15,TabScenarios[[#This Row],[Material key ('#)]]) -> -0.0997196939 | AD12: =TabScenarios[[#This Row],[Power TA score]]+TabScenarios[[#This Row],[Cost TA score]] -> 2.726758085 | AE12: =IF(TabScenarios[[#This Row],[CA score]]<>"",TabScenarios[[#This Row],[CA score]]>=1,NA()) -> FALSE | AF12: =AND(TabScenarios[[#This Row],[Possible Av. Power (kW)]]-TabScenarios[[#This Row],[Av. Power (kW)]]>=0,TabScenarios[[#This Row],[Structure (€)]]-TabScenarios[[#This Row],[Possible Structure Cost (€)]]>=0) -> FALSE | AG12: =AND(TabScenarios[[#This Row],[SOA Av. Power (kW)]]-TabScenarios[[#This Row],[Av. Power (kW)]]>=0,TabScenarios[[#This Row],[Structure (€)]]-TabScenarios[[#This Row],[SOA Structure Cost (€)]]>=0,TabScenarios[[#This Row],[Possible (?)]]) -> FALSE | AH12: =AND(TabScenarios[[#This Row],[Rated power (kW)]]*Assumptions!$C$10<=TabScenarios[[#This Row],[PTO (€)]],TabScenarios[[#This Row],[Rated power (kW)]]*Assumptions!$C$11<=TabScenarios[[#This Row],[Mooring (€)]],TabScenarios[[#This Row],[Rated power (kW)]]*Assumptions!$C$12<=TabScenarios[[#This Row],[Connection (€)]],TabScenarios[[#This Row],[Rated power (kW)]]*Assumptions!$C$13<=TabScenarios[[#This Row],[Installation (€)]],TabScenarios[[#This Row],[Rated power (kW)]]*Assumptions!$C$14<=TabScenarios[[#This Row],[OPEX (€/a)]]) -> TRUE
A13: 10 | B13: =Inputs!$E$7 -> Heave | C13: Cuboid | D13: PU-nylon | E13: 40 | F13: 55 | G13: 0.01 | H13: 3000000 | I13: =LinInterpolate(TabScenarios[[#This Row],[Resource (kW/m)]],Assumptions!$K$3:$S$3,Assumptions!$K$5:$S$5) -> 0.7680670319 | J13: =MATCH(TabScenarios[[#This Row],[Shape]],Inputs!$M$27:$M$30,0) -> 1 | K13: =TabScenarios[[#This Row],[Scale (m)]]^3 -> 64000 | L13: =MATCH(TabScenarios[[#This Row],[Material]],Inputs!$M$19:$M$23,0) -> 5 | M13: =TabScenarios[[#This Row],[Volume (m3)]]*INDEX(Lookup_Materials!$D$10:$D$15,TabScenarios[[#This Row],[Material key ('#)]])*(1+(TabScenarios[[#This Row],[Resource (kW/m)]]-Inputs!$F$21)/5*INDEX(Lookup_Materials!$G$10:$G$15,TabScenarios[[#This Row],[Material key ('#)]])) -> 328120.3008 | N13: =TabScenarios[[#This Row],[Scale (m)]]*TabScenarios[[#This Row],[Resource (kW/m)]]*TabScenarios[[#This Row],[Efficiency (%)]] -> 22 | O13: =TabScenarios[[#This Row],[Av. Power (kW)]]/Assumptions!$C$7 -> 73.33333333 | P13: =IF(TabScenarios[[#This Row],[Av. Power (kW)]]>0,(TabScenarios[[#This Row],[CAPEX (€)]]/(1-'Used Values'!$D$15))/(TabScenarios[[#This Row],[Av. Power (kW)]]*TabScenarios[[#This Row],[Availability (-)]]*8.766*'Used Values'!$C$7),NA()) -> 3189.093084 | Q13: =TabScenarios[[#This Row],[CAPEX (€)]]*'Used Values'!$C$10 -> 1020000 | R13: =TabScenarios[[#This Row],[CAPEX (€)]]*'Used Values'!$C$11 -> 810000 | S13: =TabScenarios[[#This Row],[CAPEX (€)]]*'Used Values'!$C$12 -> 360000 | T13: =TabScenarios[[#This Row],[CAPEX (€)]]*'Used Values'!$C$13 -> 420000 | U13: =TabScenarios[[#This Row],[CAPEX (€)]]*'Used Values'!$C$14 -> 390000 | V13: =TabScenarios[[#This Row],[CAPEX (€)]]*Assumptions!$C$5 -> 120000 | W13: =INDEX(('Used Values'!$M$5:$V$14,'Used Values'!$M$18:$V$27,'Used Values'!$M$31:$V$40,'Used Values'!$M$44:$V$53),MATCH(TabScenarios[[#This Row],[Scale (m)]],Inputs!$E$27:$E$36,0),MATCH(TabScenarios[[#This Row],[Resource (kW/m)]],Inputs!$F$27:$F$36,0),TabScenarios[[#This Row],[Shape key ('#)]]) -> 3982.954621 | X13: =TabScenarios[[#This Row],[Material mass (kg)]]*INDEX(Lookup_Materials!$E$10:$E$15,TabScenarios[[#This Row],[Material key ('#)]]) -> 961392.4812 | Y13: =INDEX('Used Values'!$M$58:$V$67,MATCH(TabScenarios[[#This Row],[Scale (m)]],Inputs!$E$27:$E$36,0),MATCH(TabScenarios[[#This Row],[Resource (kW/m)]],Inputs!$F$27:$F$36,0)) -> 1180.2051 | Z13: =TabScenarios[[#This Row],[Material mass (kg)]]*INDEX(Lookup_Materials!$F$10:$F$15,TabScenarios[[#This Row],[Material key ('#)]]) -> 3783227.068 | AA13: =_xlfn.IFNA('Used Values'!$C$4/TabScenarios[[#This Row],[LCOE (€/MWh)]],0) -> 0.06271375427 | AB13: =(TabScenarios[[#This Row],[Possible Av. Power (kW)]]-TabScenarios[[#This Row],[Av. Power (kW)]])/(TabScenarios[[#This Row],[Possible Av. Power (kW)]]-TabScenarios[[#This Row],[SOA Av. Power (kW)]])*('Used Values'!$C$6) -> 2.826477779 | AC13: =(TabScenarios[[#This Row],[Structure (€)]]-TabScenarios[[#This Row],[Possible Structure Cost (€)]])/(TabScenarios[[#This Row],[SOA Structure Cost (€)]]-TabScenarios[[#This Row],[Possible Structure Cost (€)]])*INDEX(Lookup_Materials!$H$10:$H$15,TabScenarios[[#This Row],[Material key ('#)]]) -> 0.02076929636 | AD13: =TabScenarios[[#This Row],[Power TA score]]+TabScenarios[[#This Row],[Cost TA score]] -> 2.847247075 | AE13: =IF(TabScenarios[[#This Row],[CA score]]<>"",TabScenarios[[#This Row],[CA score]]>=1,NA()) -> FALSE | AF13: =AND(TabScenarios[[#This Row],[Possible Av. Power (kW)]]-TabScenarios[[#This Row],[Av. Power (kW)]]>=0,TabScenarios[[#This Row],[Structure (€)]]-TabScenarios[[#This Row],[Possible Structure Cost (€)]]>=0) -> TRUE | AG13: =AND(TabScenarios[[#This Row],[SOA Av. Power (kW)]]-TabScenarios[[#This Row],[Av. Power (kW)]]>=0,TabScenarios[[#This Row],[Structure (€)]]-TabScenarios[[#This Row],[SOA Structure Cost (€)]]>=0,TabScenarios[[#This Row],[Possible (?)]]) -> FALSE | AH13: =AND(TabScenarios[[#This Row],[Rated power (kW)]]*Assumptions!$C$10<=TabScenarios[[#This Row],[PTO (€)]],TabScenarios[[#This Row],[Rated power (kW)]]*Assumptions!$C$11<=TabScenarios[[#This Row],[Mooring (€)]],TabScenarios[[#This Row],[Rated power (kW)]]*Assumptions!$C$12<=TabScenarios[[#This Row],[Connection (€)]],TabScenarios[[#This Row],[Rated power (kW)]]*Assumptions!$C$13<=TabScenarios[[#This Row],[Installation (€)]],TabScenarios[[#This Row],[Rated power (kW)]]*Assumptions!$C$14<=TabScenarios[[#This Row],[OPEX (€/a)]]) -> TRUE
A14: 11 | B14: =Inputs!$E$7 -> Heave | C14: Cuboid | D14: PU-nylon | E14: 40 | F14: 55 | G14: 1 | H14: 2000000 | I14: =LinInterpolate(TabScenarios[[#This Row],[Resource (kW/m)]],Assumptions!$K$3:$S$3,Assumptions!$K$5:$S$5) -> 0.7680670319 | J14: =MATCH(TabScenarios[[#This Row],[Shape]],Inputs!$M$27:$M$30,0) -> 1 | K14: =TabScenarios[[#This Row],[Scale (m)]]^3 -> 64000 | L14: =MATCH(TabScenarios[[#This Row],[Material]],Inputs!$M$19:$M$23,0) -> 5 | M14: =TabScenarios[[#This Row],[Volume (m3)]]*INDEX(Lookup_Materials!$D$10:$D$15,TabScenarios[[#This Row],[Material key ('#)]])*(1+(TabScenarios[[#This Row],[Resource (kW/m)]]-Inputs!$F$21)/5*INDEX(Lookup_Materials!$G$10:$G$15,TabScenarios[[#This Row],[Material key ('#)]])) -> 328120.3008 | N14: =TabScenarios[[#This Row],[Scale (m)]]*TabScenarios[[#This Row],[Resource (kW/m)]]*TabScenarios[[#This Row],[Efficiency (%)]] -> 2200 | O14: =TabScenarios[[#This Row],[Av. Power (kW)]]/Assumptions!$C$7 -> 7333.333333 | P14: =IF(TabScenarios[[#This Row],[Av. Power (kW)]]>0,(TabScenarios[[#This Row],[CAPEX (€)]]/(1-'Used Values'!$D$15))/(TabScenarios[[#This Row],[Av. Power (kW)]]*TabScenarios[[#This Row],[Availability (-)]]*8.766*'Used Values'!$C$7),NA()) -> 21.26062056 | Q14: =TabScenarios[[#This Row],[CAPEX (€)]]*'Used Values'!$C$10 -> 680000 | R14: =TabScenarios[[#This Row],[CAPEX (€)]]*'Used Values'!$C$11 -> 540000 | S14: =TabScenarios[[#This Row],[CAPEX (€)]]*'Used Values'!$C$12 -> 240000 | T14: =TabScenarios[[#This Row],[CAPEX (€)]]*'Used Values'!$C$13 -> 280000 | U14: =TabScenarios[[#This Row],[CAPEX (€)]]*'Used Values'!$C$14 -> 260000 | V14: =TabScenarios[[#This Row],[CAPEX (€)]]*Assumptions!$C$5 -> 80000 | W14: =INDEX(('Used Values'!$M$5:$V$14,'Used Values'!$M$18:$V$27,'Used Values'!$M$31:$V$40,'Used Values'!$M$44:$V$53),MATCH(TabScenarios[[#This Row],[Scale (m)]],Inputs!$E$27:$E$36,0),MATCH(TabScenarios[[#This Row],[Resource (kW/m)]],Inputs!$F$27:$F$36,0),TabScenarios[[#This Row],[Shape key ('#)]]) -> 3982.954621 | X14: =TabScenarios[[#This Row],[Material mass (kg)]]*INDEX(Lookup_Materials!$E$10:$E$15,TabScenarios[[#This Row],[Material key ('#)]]) -> 961392.4812 | Y14: =INDEX('Used Values'!$M$58:$V$67,MATCH(TabScenarios[[#This Row],[Scale (m)]],Inputs!$E$27:$E$36,0),MATCH(TabScenarios[[#This Row],[Resource (kW/m)]],Inputs!$F$27:$F$36,0)) -> 1180.2051 | Z14: =TabScenarios[[#This Row],[Material mass (kg)]]*INDEX(Lookup_Materials!$F$10:$F$15,TabScenarios[[#This Row],[Material key ('#)]]) -> 3783227.068 | AA14: =_xlfn.IFNA('Used Values'!$C$4/TabScenarios[[#This Row],[LCOE (€/MWh)]],0) -> 9.407063141 | AB14: =(TabScenarios[[#This Row],[Possible Av. Power (kW)]]-TabScenarios[[#This Row],[Av. Power (kW)]])/(TabScenarios[[#This Row],[Possible Av. Power (kW)]]-TabScenarios[[#This Row],[SOA Av. Power (kW)]])*('Used Values'!$C$6) -> 1.272289662 | AC14: =(TabScenarios[[#This Row],[Structure (€)]]-TabScenarios[[#This Row],[Possible Structure Cost (€)]])/(TabScenarios[[#This Row],[SOA Structure Cost (€)]]-TabScenarios[[#This Row],[Possible Structure Cost (€)]])*INDEX(Lookup_Materials!$H$10:$H$15,TabScenarios[[#This Row],[Material key ('#)]]) -> -0.0997196939 | AD14: =TabScenarios[[#This Row],[Power TA score]]+TabScenarios[[#This Row],[Cost TA score]] -> 1.172569968 | AE14: =IF(TabScenarios[[#This Row],[CA score]]<>"",TabScenarios[[#This Row],[CA score]]>=1,NA()) -> TRUE | AF14: =AND(TabScenarios[[#This Row],[Possible Av. Power (kW)]]-TabScenarios[[#This Row],[Av. Power (kW)]]>=0,TabScenarios[[#This Row],[Structure (€)]]-TabScenarios[[#This Row],[Possible Structure Cost (€)]]>=0) -> FALSE | AG14: =AND(TabScenarios[[#This Row],[SOA Av. Power (kW)]]-TabScenarios[[#This Row],[Av. Power (kW)]]>=0,TabScenarios[[#This Row],[Structure (€)]]-TabScenarios[[#This Row],[SOA Structure Cost (€)]]>=0,TabScenarios[[#This Row],[Possible (?)]]) -> FALSE | AH14: =AND(TabScenarios[[#This Row],[Rated power (kW)]]*Assumptions!$C$10<=TabScenarios[[#This Row],[PTO (€)]],TabScenarios[[#This Row],[Rated power (kW)]]*Assumptions!$C$11<=TabScenarios[[#This Row],[Mooring (€)]],TabScenarios[[#This Row],[Rated power (kW)]]*Assumptions!$C$12<=TabScenarios[[#This Row],[Connection (€)]],TabScenarios[[#This Row],[Rated power (kW)]]*Assumptions!$C$13<=TabScenarios[[#This Row],[Installation (€)]],TabScenarios[[#This Row],[Rated power (kW)]]*Assumptions!$C$14<=TabScenarios[[#This Row],[OPEX (€/a)]]) -> FALSE
A15: 12 | B15: =Inputs!$E$7 -> Heave | C15: Cuboid | D15: PU-nylon | E15: 40 | F15: 55 | G15: 1 | H15: 3000000 | I15: =LinInterpolate(TabScenarios[[#This Row],[Resource (kW/m)]],Assumptions!$K$3:$S$3,Assumptions!$K$5:$S$5) -> 0.7680670319 | J15: =MATCH(TabScenarios[[#This Row],[Shape]],Inputs!$M$27:$M$30,0) -> 1 | K15: =TabScenarios[[#This Row],[Scale (m)]]^3 -> 64000 | L15: =MATCH(TabScenarios[[#This Row],[Material]],Inputs!$M$19:$M$23,0) -> 5 | M15: =TabScenarios[[#This Row],[Volume (m3)]]*INDEX(Lookup_Materials!$D$10:$D$15,TabScenarios[[#This Row],[Material key ('#)]])*(1+(TabScenarios[[#This Row],[Resource (kW/m)]]-Inputs!$F$21)/5*INDEX(Lookup_Materials!$G$10:$G$15,TabScenarios[[#This Row],[Material key ('#)]])) -> 328120.3008 | N15: =TabScenarios[[#This Row],[Scale (m)]]*TabScenarios[[#This Row],[Resource (kW/m)]]*TabScenarios[[#This Row],[Efficiency (%)]] -> 2200 | O15: =TabScenarios[[#This Row],[Av. Power (kW)]]/Assumptions!$C$7 -> 7333.333333 | P15: =IF(TabScenarios[[#This Row],[Av. Power (kW)]]>0,(TabScenarios[[#This Row],[CAPEX (€)]]/(1-'Used Values'!$D$15))/(TabScenarios[[#This Row],[Av. Power (kW)]]*TabScenarios[[#This Row],[Availability (-)]]*8.766*'Used Values'!$C$7),NA()) -> 31.89093084 | Q15: =TabScenarios[[#This Row],[CAPEX (€)]]*'Used Values'!$C$10 -> 1020000 | R15: =TabScenarios[[#This Row],[CAPEX (€)]]*'Used Values'!$C$11 -> 810000 | S15: =TabScenarios[[#This Row],[CAPEX (€)]]*'Used Values'!$C$12 -> 360000 | T15: =TabScenarios[[#This Row],[CAPEX (€)]]*'Used Values'!$C$13 -> 420000 | U15: =TabScenarios[[#This Row],[CAPEX (€)]]*'Used Values'!$C$14 -> 390000 | V15: =TabScenarios[[#This Row],[CAPEX (€)]]*Assumptions!$C$5 -> 120000 | W15: =INDEX(('Used Values'!$M$5:$V$14,'Used Values'!$M$18:$V$27,'Used Values'!$M$31:$V$40,'Used Values'!$M$44:$V$53),MATCH(TabScenarios[[#This Row],[Scale (m)]],Inputs!$E$27:$E$36,0),MATCH(TabScenarios[[#This Row],[Resource (kW/m)]],Inputs!$F$27:$F$36,0),TabScenarios[[#This Row],[Shape key ('#)]]) -> 3982.954621 | X15: =TabScenarios[[#This Row],[Material mass (kg)]]*INDEX(Lookup_Materials!$E$10:$E$15,TabScenarios[[#This Row],[Material key ('#)]]) -> 961392.4812 | Y15: =INDEX('Used Values'!$M$58:$V$67,MATCH(TabScenarios[[#This Row],[Scale (m)]],Inputs!$E$27:$E$36,0),MATCH(TabScenarios[[#This Row],[Resource (kW/m)]],Inputs!$F$27:$F$36,0)) -> 1180.2051 | Z15: =TabScenarios[[#This Row],[Material mass (kg)]]*INDEX(Lookup_Materials!$F$10:$F$15,TabScenarios[[#This Row],[Material key ('#)]]) -> 3783227.068 | AA15: =_xlfn.IFNA('Used Values'!$C$4/TabScenarios[[#This Row],[LCOE (€/MWh)]],0) -> 6.271375427 | AB15: =(TabScenarios[[#This Row],[Possible Av. Power (kW)]]-TabScenarios[[#This Row],[Av. Power (kW)]])/(TabScenarios[[#This Row],[Possible Av. Power (kW)]]-TabScenarios[[#This Row],[SOA Av. Power (kW)]])*('Used Values'!$C$6) -> 1.272289662 | AC15: =(TabScenarios[[#This Row],[Structure (€)]]-TabScenarios[[#This Row],[Possible Structure Cost (€)]])/(TabScenarios[[#This Row],[SOA Structure Cost (€)]]-TabScenarios[[#This Row],[Possible Structure Cost (€)]])*INDEX(Lookup_Materials!$H$10:$H$15,TabScenarios[[#This Row],[Material key ('#)]]) -> 0.02076929636 | AD15: =TabScenarios[[#This Row],[Power TA score]]+TabScenarios[[#This Row],[Cost TA score]] -> 1.293058959 | AE15: =IF(TabScenarios[[#This Row],[CA score]]<>"",TabScenarios[[#This Row],[CA score]]>=1,NA()) -> TRUE | AF15: =AND(TabScenarios[[#This Row],[Possible Av. Power (kW)]]-TabScenarios[[#This Row],[Av. Power (kW)]]>=0,TabScenarios[[#This Row],[Structure (€)]]-TabScenarios[[#This Row],[Possible Structure Cost (€)]]>=0) -> TRUE | AG15: =AND(TabScenarios[[#This Row],[SOA Av. Power (kW)]]-TabScenarios[[#This Row],[Av. Power (kW)]]>=0,TabScenarios[[#This Row],[Structure (€)]]-TabScenarios[[#This Row],[SOA Structure Cost (€)]]>=0,TabScenarios[[#This Row],[Possible (?)]]) -> FALSE | AH15: =AND(TabScenarios[[#This Row],[Rated power (kW)]]*Assumptions!$C$10<=TabScenarios[[#This Row],[PTO (€)]],TabScenarios[[#This Row],[Rated power (kW)]]*Assumptions!$C$11<=TabScenarios[[#This Row],[Mooring (€)]],TabScenarios[[#This Row],[Rated power (kW)]]*Assumptions!$C$12<=TabScenarios[[#This Row],[Connection (€)]],TabScenarios[[#This Row],[Rated power (kW)]]*Assumptions!$C$13<=TabScenarios[[#This Row],[Installation (€)]],TabScenarios[[#This Row],[Rated power (kW)]]*Assumptions!$C$14<=TabScenarios[[#This Row],[OPEX (€/a)]]) -> FALSE
A16: 13 | B16: =Inputs!$E$7 -> Heave | C16: Cuboid | D16: PU-nylon | E16: 40 | F16: 65 | G16: 0.01 | H16: 2000000 | I16: =LinInterpolate(TabScenarios[[#This Row],[Resource (kW/m)]],Assumptions!$K$3:$S$3,Assumptions!$K$5:$S$5) -> 0.7258071258 | J16: =MATCH(TabScenarios[[#This Row],[Shape]],Inputs!$M$27:$M$30,0) -> 1 | K16: =TabScenarios[[#This Row],[Scale (m)]]^3 -> 64000 | L16: =MATCH(TabScenarios[[#This Row],[Material]],Inputs!$M$19:$M$23,0) -> 5 | M16: =TabScenarios[[#This Row],[Volume (m3)]]*INDEX(Lookup_Materials!$D$10:$D$15,TabScenarios[[#This Row],[Material key ('#)]])*(1+(TabScenarios[[#This Row],[Resource (kW/m)]]-Inputs!$F$21)/5*INDEX(Lookup_Materials!$G$10:$G$15,TabScenarios[[#This Row],[Material key ('#)]])) -> 328120.3008 | N16: =TabScenarios[[#This Row],[Scale (m)]]*TabScenarios[[#This Row],[Resource (kW/m)]]*TabScenarios[[#This Row],[Efficiency (%)]] -> 26 | O16: =TabScenarios[[#This Row],[Av. Power (kW)]]/Assumptions!$C$7 -> 86.66666667 | P16: =IF(TabScenarios[[#This Row],[Av. Power (kW)]]>0,(TabScenarios[[#This Row],[CAPEX (€)]]/(1-'Used Values'!$D$15))/(TabScenarios[[#This Row],[Av. Power (kW)]]*TabScenarios[[#This Row],[Availability (-)]]*8.766*'Used Values'!$C$7),NA()) -> 1903.720409 | Q16: =TabScenarios[[#This Row],[CAPEX (€)]]*'Used Values'!$C$10 -> 680000 | R16: =TabScenarios[[#This Row],[CAPEX (€)]]*'Used Values'!$C$11 -> 540000 | S16: =TabScenarios[[#This Row],[CAPEX (€)]]*'Used Values'!$C$12 -> 240000 | T16: =TabScenarios[[#This Row],[CAPEX (€)]]*'Used Values'!$C$13 -> 280000 | U16: =TabScenarios[[#This Row],[CAPEX (€)]]*'Used Values'!$C$14 -> 260000 | V16: =TabScenarios[[#This Row],[CAPEX (€)]]*Assumptions!$C$5 -> 80000 | W16: =INDEX(('Used Values'!$M$5:$V$14,'Used Values'!$M$18:$V$27,'Used Values'!$M$31:$V$40,'Used Values'!$M$44:$V$53),MATCH(TabScenarios[[#This Row],[Scale (m)]],Inputs!$E$27:$E$36,0),MATCH(TabScenarios[[#This Row],[Resource (kW/m)]],Inputs!$F$27:$F$36,0),TabScenarios[[#This Row],[Shape key ('#)]]) -> 5016.35275 | X16: =TabScenarios[[#This Row],[Material mass (kg)]]*INDEX(Lookup_Materials!$E$10:$E$15,TabScenarios[[#This Row],[Material key ('#)]]) -> 961392.4812 | Y16: =INDEX('Used Values'!$M$58:$V$67,MATCH(TabScenarios[[#This Row],[Scale (m)]],Inputs!$E$27:$E$36,0),MATCH(TabScenarios[[#This Row],[Resource (kW/m)]],Inputs!$F$27:$F$36,0)) -> 1447.319692 | Z16: =TabScenarios[[#This Row],[Material mass (kg)]]*INDEX(Lookup_Materials!$F$10:$F$15,TabScenarios[[#This Row],[Material key ('#)]]) -> 3783227.068 | AA16: =_xlfn.IFNA('Used Values'!$C$4/TabScenarios[[#This Row],[LCOE (€/MWh)]],0) -> 0.1050574438 | AB16: =(TabScenarios[[#This Row],[Possible Av. Power (kW)]]-TabScenarios[[#This Row],[Av. Power (kW)]])/(TabScenarios[[#This Row],[Possible Av. Power (kW)]]-TabScenarios[[#This Row],[SOA Av. Power (kW)]])*('Used Values'!$C$6) -> 2.796473257 | AC16: =(TabScenarios[[#This Row],[Structure (€)]]-TabScenarios[[#This Row],[Possible Structure Cost (€)]])/(TabScenarios[[#This Row],[SOA Structure Cost (€)]]-TabScenarios[[#This Row],[Possible Structure Cost (€)]])*INDEX(Lookup_Materials!$H$10:$H$15,TabScenarios[[#This Row],[Material key ('#)]]) -> -0.0997196939 | AD16: =TabScenarios[[#This Row],[Power TA score]]+TabScenarios[[#This Row],[Cost TA score]] -> 2.696753563 | AE16: =IF(TabScenarios[[#This Row],[CA score]]<>"",TabScenarios[[#This Row],[CA score]]>=1,NA()) -> FALSE | AF16: =AND(TabScenarios[[#This Row],[Possible Av. Power (kW)]]-TabScenarios[[#This Row],[Av. Power (kW)]]>=0,TabScenarios[[#This Row],[Structure (€)]]-TabScenarios[[#This Row],[Possible Structure Cost (€)]]>=0) -> FALSE | AG16: =AND(TabScenarios[[#This Row],[SOA Av. Power (kW)]]-TabScenarios[[#This Row],[Av. Power (kW)]]>=0,TabScenarios[[#This Row],[Structure (€)]]-TabScenarios[[#This Row],[SOA Structure Cost (€)]]>=0,TabScenarios[[#This Row],[Possible (?)]]) -> FALSE | AH16: =AND(TabScenarios[[#This Row],[Rated power (kW)]]*Assumptions!$C$10<=TabScenarios[[#This Row],[PTO (€)]],TabScenarios[[#This Row],[Rated power (kW)]]*Assumptions!$C$11<=TabScenarios[[#This Row],[Mooring (€)]],TabScenarios[[#This Row],[Rated power (kW)]]*Assumptions!$C$12<=TabScenarios[[#This Row],[Connection (€)]],TabScenarios[[#This Row],[Rated power (kW)]]*Assumptions!$C$13<=TabScenarios[[#This Row],[Installation (€)]],TabScenarios[[#This Row],[Rated power (kW)]]*Assumptions!$C$14<=TabScenarios[[#This Row],[OPEX (€/a)]]) -> TRUE
A17: 14 | B17: =Inputs!$E$7 -> Heave | C17: Cuboid | D17: PU-nylon | E17: 40 | F17: 65 | G17: 0.01 | H17: 3000000 | I17: =LinInterpolate(TabScenarios[[#This Row],[Resource (kW/m)]],Assumptions!$K$3:$S$3,Assumptions!$K$5:$S$5) -> 0.7258071258 | J17: =MATCH(TabScenarios[[#This Row],[Shape]],Inputs!$M$27:$M$30,0) -> 1 | K17: =TabScenarios[[#This Row],[Scale (m)]]^3 -> 64000 | L17: =MATCH(TabScenarios[[#This Row],[Material]],Inputs!$M$19:$M$23,0) -> 5 | M17: =TabScenarios[[#This Row],[Volume (m3)]]*INDEX(Lookup_Materials!$D$10:$D$15,TabScenarios[[#This Row],[Material key ('#)]])*(1+(TabScenarios[[#This Row],[Resource (kW/m)]]-Inputs!$F$21)/5*INDEX(Lookup_Materials!$G$10:$G$15,TabScenarios[[#This Row],[Material key ('#)]])) -> 328120.3008 | N17: =TabScenarios[[#This Row],[Scale (m)]]*TabScenarios[[#This Row],[Resource (kW/m)]]*TabScenarios[[#This Row],[Efficiency (%)]] -> 26 | O17: =TabScenarios[[#This Row],[Av. Power (kW)]]/Assumptions!$C$7 -> 86.66666667 | P17: =IF(TabScenarios[[#This Row],[Av. Power (kW)]]>0,(TabScenarios[[#This Row],[CAPEX (€)]]/(1-'Used Values'!$D$15))/(TabScenarios[[#This Row],[Av. Power (kW)]]*TabScenarios[[#This Row],[Availability (-)]]*8.766*'Used Values'!$C$7),NA()) -> 2855.580614 | Q17: =TabScenarios[[#This Row],[CAPEX (€)]]*'Used Values'!$C$10 -> 1020000 | R17: =TabScenarios[[#This Row],[CAPEX (€)]]*'Used Values'!$C$11 -> 810000 | S17: =TabScenarios[[#This Row],[CAPEX (€)]]*'Used Values'!$C$12 -> 360000 | T17: =TabScenarios[[#This Row],[CAPEX (€)]]*'Used Values'!$C$13 -> 420000 | U17: =TabScenarios[[#This Row],[CAPEX (€)]]*'Used Values'!$C$14 -> 390000 | V17: =TabScenarios[[#This Row],[CAPEX (€)]]*Assumptions!$C$5 -> 120000 | W17: =INDEX(('Used Values'!$M$5:$V$14,'Used Values'!$M$18:$V$27,'Used Values'!$M$31:$V$40,'Used Values'!$M$44:$V$53),MATCH(TabScenarios[[#This Row],[Scale (m)]],Inputs!$E$27:$E$36,0),MATCH(TabScenarios[[#This Row],[Resource (kW/m)]],Inputs!$F$27:$F$36,0),TabScenarios[[#This Row],[Shape key ('#)]]) -> 5016.35275 | X17: =TabScenarios[[#This Row],[Material mass (kg)]]*INDEX(Lookup_Materials!$E$10:$E$15,TabScenarios[[#This Row],[Material key ('#)]]) -> 961392.4812 | Y17: =INDEX('Used Values'!$M$58:$V$67,MATCH(TabScenarios[[#This Row],[Scale (m)]],Inputs!$E$27:$E$36,0),MATCH(TabScenarios[[#This Row],[Resource (kW/m)]],Inputs!$F$27:$F$36,0)) -> 1447.319692 | Z17: =TabScenarios[[#This Row],[Material mass (kg)]]*INDEX(Lookup_Materials!$F$10:$F$15,TabScenarios[[#This Row],[Material key ('#)]]) -> 3783227.068 | AA17: =_xlfn.IFNA('Used Values'!$C$4/TabScenarios[[#This Row],[LCOE (€/MWh)]],0) -> 0.0700382959 | AB17: =(TabScenarios[[#This Row],[Possible Av. Power (kW)]]-TabScenarios[[#This Row],[Av. Power (kW)]])/(TabScenarios[[#This Row],[Possible Av. Power (kW)]]-TabScenarios[[#This Row],[SOA Av. Power (kW)]])*('Used Values'!$C$6) -> 2.796473257 | AC17: =(TabScenarios[[#This Row],[Structure (€)]]-TabScenarios[[#This Row],[Possible Structure Cost (€)]])/(TabScenarios[[#This Row],[SOA Structure Cost (€)]]-TabScenarios[[#This Row],[Possible Structure Cost (€)]])*INDEX(Lookup_Materials!$H$10:$H$15,TabScenarios[[#This Row],[Material key ('#)]]) -> 0.02076929636 | AD17: =TabScenarios[[#This Row],[Power TA score]]+TabScenarios[[#This Row],[Cost TA score]] -> 2.817242554 | AE17: =IF(TabScenarios[[#This Row],[CA score]]<>"",TabScenarios[[#This Row],[CA score]]>=1,NA()) -> FALSE | AF17: =AND(TabScenarios[[#This Row],[Possible Av. Power (kW)]]-TabScenarios[[#This Row],[Av. Power (kW)]]>=0,TabScenarios[[#This Row],[Structure (€)]]-TabScenarios[[#This Row],[Possible Structure Cost (€)]]>=0) -> TRUE | AG17: =AND(TabScenarios[[#This Row],[SOA Av. Power (kW)]]-TabScenarios[[#This Row],[Av. Power (kW)]]>=0,TabScenarios[[#This Row],[Structure (€)]]-TabScenarios[[#This Row],[SOA Structure Cost (€)]]>=0,TabScenarios[[#This Row],[Possible (?)]]) -> FALSE | AH17: =AND(TabScenarios[[#This Row],[Rated power (kW)]]*Assumptions!$C$10<=TabScenarios[[#This Row],[PTO (€)]],TabScenarios[[#This Row],[Rated power (kW)]]*Assumptions!$C$11<=TabScenarios[[#This Row],[Mooring (€)]],TabScenarios[[#This Row],[Rated power (kW)]]*Assumptions!$C$12<=TabScenarios[[#This Row],[Connection (€)]],TabScenarios[[#This Row],[Rated power (kW)]]*Assumptions!$C$13<=TabScenarios[[#This Row],[Installation (€)]],TabScenarios[[#This Row],[Rated power (kW)]]*Assumptions!$C$14<=TabScenarios[[#This Row],[OPEX (€/a)]]) -> TRUE
A18: 15 | B18: =Inputs!$E$7 -> Heave | C18: Cuboid | D18: PU-nylon | E18: 40 | F18: 65 | G18: 1 | H18: 2000000 | I18: =LinInterpolate(TabScenarios[[#This Row],[Resource (kW/m)]],Assumptions!$K$3:$S$3,Assumptions!$K$5:$S$5) -> 0.7258071258 | J18: =MATCH(TabScenarios[[#This Row],[Shape]],Inputs!$M$27:$M$30,0) -> 1 | K18: =TabScenarios[[#This Row],[Scale (m)]]^3 -> 64000 | L18: =MATCH(TabScenarios[[#This Row],[Material]],Inputs!$M$19:$M$23,0) -> 5 | M18: =TabScenarios[[#This Row],[Volume (m3)]]*INDEX(Lookup_Materials!$D$10:$D$15,TabScenarios[[#This Row],[Material key ('#)]])*(1+(TabScenarios[[#This Row],[Resource (kW/m)]]-Inputs!$F$21)/5*INDEX(Lookup_Materials!$G$10:$G$15,TabScenarios[[#This Row],[Material key ('#)]])) -> 328120.3008 | N18: =TabScenarios[[#This Row],[Scale (m)]]*TabScenarios[[#This Row],[Resource (kW/m)]]*TabScenarios[[#This Row],[Efficiency (%)]] -> 2600 | O18: =TabScenarios[[#This Row],[Av. Power (kW)]]/Assumptions!$C$7 -> 8666.666667 | P18: =IF(TabScenarios[[#This Row],[Av. Power (kW)]]>0,(TabScenarios[[#This Row],[CAPEX (€)]]/(1-'Used Values'!$D$15))/(TabScenarios[[#This Row],[Av. Power (kW)]]*TabScenarios[[#This Row],[Availability (-)]]*8.766*'Used Values'!$C$7),NA()) -> 19.03720409 | Q18: =TabScenarios[[#This Row],[CAPEX (€)]]*'Used Values'!$C$10 -> 680000 | R18: =TabScenarios[[#This Row],[CAPEX (€)]]*'Used Values'!$C$11 -> 540000 | S18: =TabScenarios[[#This Row],[CAPEX (€)]]*'Used Values'!$C$12 -> 240000 | T18: =TabScenarios[[#This Row],[CAPEX (€)]]*'Used Values'!$C$13 -> 280000 | U18: =TabScenarios[[#This Row],[CAPEX (€)]]*'Used Values'!$C$14 -> 260000 | V18: =TabScenarios[[#This Row],[CAPEX (€)]]*Assumptions!$C$5 -> 80000 | W18: =INDEX(('Used Values'!$M$5:$V$14,'Used Values'!$M$18:$V$27,'Used Values'!$M$31:$V$40,'Used Values'!$M$44:$V$53),MATCH(TabScenarios[[#This Row],[Scale (m)]],Inputs!$E$27:$E$36,0),MATCH(TabScenarios[[#This Row],[Resource (kW/m)]],Inputs!$F$27:$F$36,0),TabScenarios[[#This Row],[Shape key ('#)]]) -> 5016.35275 | X18: =TabScenarios[[#This Row],[Material mass (kg)]]*INDEX(Lookup_Materials!$E$10:$E$15,TabScenarios[[#This Row],[Material key ('#)]]) -> 961392.4812 | Y18: =INDEX('Used Values'!$M$58:$V$67,MATCH(TabScenarios[[#This Row],[Scale (m)]],Inputs!$E$27:$E$36,0),MATCH(TabScenarios[[#This Row],[Resource (kW/m)]],Inputs!$F$27:$F$36,0)) -> 1447.319692 | Z18: =TabScenarios[[#This Row],[Material mass (kg)]]*INDEX(Lookup_Materials!$F$10:$F$15,TabScenarios[[#This Row],[Material key ('#)]]) -> 3783227.068 | AA18: =_xlfn.IFNA('Used Values'!$C$4/TabScenarios[[#This Row],[LCOE (€/MWh)]],0) -> 10.50574438 | AB18: =(TabScenarios[[#This Row],[Possible Av. Power (kW)]]-TabScenarios[[#This Row],[Av. Power (kW)]])/(TabScenarios[[#This Row],[Possible Av. Power (kW)]]-TabScenarios[[#This Row],[SOA Av. Power (kW)]])*('Used Values'!$C$6) -> 1.354065771 | AC18: =(TabScenarios[[#This Row],[Structure (€)]]-TabScenarios[[#This Row],[Possible Structure Cost (€)]])/(TabScenarios[[#This Row],[SOA Structure Cost (€)]]-TabScenarios[[#This Row],[Possible Structure Cost (€)]])*INDEX(Lookup_Materials!$H$10:$H$15,TabScenarios[[#This Row],[Material key ('#)]]) -> -0.0997196939 | AD18: =TabScenarios[[#This Row],[Power TA score]]+TabScenarios[[#This Row],[Cost TA score]] -> 1.254346077 | AE18: =IF(TabScenarios[[#This Row],[CA score]]<>"",TabScenarios[[#This Row],[CA score]]>=1,NA()) -> TRUE | AF18: =AND(TabScenarios[[#This Row],[Possible Av. Power (kW)]]-TabScenarios[[#This Row],[Av. Power (kW)]]>=0,TabScenarios[[#This Row],[Structure (€)]]-TabScenarios[[#This Row],[Possible Structure Cost (€)]]>=0) -> FALSE | AG18: =AND(TabScenarios[[#This Row],[SOA Av. Power (kW)]]-TabScenarios[[#This Row],[Av. Power (kW)]]>=0,TabScenarios[[#This Row],[Structure (€)]]-TabScenarios[[#This Row],[SOA Structure Cost (€)]]>=0,TabScenarios[[#This Row],[Possible (?)]]) -> FALSE | AH18: =AND(TabScenarios[[#This Row],[Rated power (kW)]]*Assumptions!$C$10<=TabScenarios[[#This Row],[PTO (€)]],TabScenarios[[#This Row],[Rated power (kW)]]*Assumptions!$C$11<=TabScenarios[[#This Row],[Mooring (€)]],TabScenarios[[#This Row],[Rated power (kW)]]*Assumptions!$C$12<=TabScenarios[[#This Row],[Connection (€)]],TabScenarios[[#This Row],[Rated power (kW)]]*Assumptions!$C$13<=TabScenarios[[#This Row],[Installation (€)]],TabScenarios[[#This Row],[Rated power (kW)]]*Assumptions!$C$14<=TabScenarios[[#This Row],[OPEX (€/a)]]) -> FALSE
A19: 16 | B19: =Inputs!$E$7 -> Heave | C19: Cuboid | D19: PU-nylon | E19: 40 | F19: 65 | G19: 1 | H19: 3000000 | I19: =LinInterpolate(TabScenarios[[#This Row],[Resource (kW/m)]],Assumptions!$K$3:$S$3,Assumptions!$K$5:$S$5) -> 0.7258071258 | J19: =MATCH(TabScenarios[[#This Row],[Shape]],Inputs!$M$27:$M$30,0) -> 1 | K19: =TabScenarios[[#This Row],[Scale (m)]]^3 -> 64000 | L19: =MATCH(TabScenarios[[#This Row],[Material]],Inputs!$M$19:$M$23,0) -> 5 | M19: =TabScenarios[[#This Row],[Volume (m3)]]*INDEX(Lookup_Materials!$D$10:$D$15,TabScenarios[[#This Row],[Material key ('#)]])*(1+(TabScenarios[[#This Row],[Resource (kW/m)]]-Inputs!$F$21)/5*INDEX(Lookup_Materials!$G$10:$G$15,TabScenarios[[#This Row],[Material key ('#)]])) -> 328120.3008 | N19: =TabScenarios[[#This Row],[Scale (m)]]*TabScenarios[[#This Row],[Resource (kW/m)]]*TabScenarios[[#This Row],[Efficiency (%)]] -> 2600 | O19: =TabScenarios[[#This Row],[Av. Power (kW)]]/Assumptions!$C$7 -> 8666.666667 | P19: =IF(TabScenarios[[#This Row],[Av. Power (kW)]]>0,(TabScenarios[[#This Row],[CAPEX (€)]]/(1-'Used Values'!$D$15))/(TabScenarios[[#This Row],[Av. Power (kW)]]*TabScenarios[[#This Row],[Availability (-)]]*8.766*'Used Values'!$C$7),NA()) -> 28.55580614 | Q19: =TabScenarios[[#This Row],[CAPEX (€)]]*'Used Values'!$C$10 -> 1020000 | R19: =TabScenarios[[#This Row],[CAPEX (€)]]*'Used Values'!$C$11 -> 810000 | S19: =TabScenarios[[#This Row],[CAPEX (€)]]*'Used Values'!$C$12 -> 360000 | T19: =TabScenarios[[#This Row],[CAPEX (€)]]*'Used Values'!$C$13 -> 420000 | U19: =TabScenarios[[#This Row],[CAPEX (€)]]*'Used Values'!$C$14 -> 390000 | V19: =TabScenarios[[#This Row],[CAPEX (€)]]*Assumptions!$C$5 -> 120000 | W19: =INDEX(('Used Values'!$M$5:$V$14,'Used Values'!$M$18:$V$27,'Used Values'!$M$31:$V$40,'Used Values'!$M$44:$V$53),MATCH(TabScenarios[[#This Row],[Scale (m)]],Inputs!$E$27:$E$36,0),MATCH(TabScenarios[[#This Row],[Resource (kW/m)]],Inputs!$F$27:$F$36,0),TabScenarios[[#This Row],[Shape key ('#)]]) -> 5016.35275 | X19: =TabScenarios[[#This Row],[Material mass (kg)]]*INDEX(Lookup_Materials!$E$10:$E$15,TabScenarios[[#This Row],[Material key ('#)]]) -> 961392.4812 | Y19: =INDEX('Used Values'!$M$58:$V$67,MATCH(TabScenarios[[#This Row],[Scale (m)]],Inputs!$E$27:$E$36,0),MATCH(TabScenarios[[#This Row],[Resource (kW/m)]],Inputs!$F$27:$F$36,0)) -> 1447.319692 | Z19: =TabScenarios[[#This Row],[Material mass (kg)]]*INDEX(Lookup_Materials!$F$10:$F$15,TabScenarios[[#This Row],[Material key ('#)]]) -> 3783227.068 | AA19: =_xlfn.IFNA('Used Values'!$C$4/TabScenarios[[#This Row],[LCOE (€/MWh)]],0) -> 7.00382959 | AB19: =(TabScenarios[[#This Row],[Possible Av. Power (kW)]]-TabScenarios[[#This Row],[Av. Power (kW)]])/(TabScenarios[[#This Row],[Possible Av. Power (kW)]]-TabScenarios[[#This Row],[SOA Av. Power (kW)]])*('Used Values'!$C$6) -> 1.354065771 | AC19: =(TabScenarios[[#This Row],[Structure (€)]]-TabScenarios[[#This Row],[Possible Structure Cost (€)]])/(TabScenarios[[#This Row],[SOA Structure Cost (€)]]-TabScenarios[[#This Row],[Possible Structure Cost (€)]])*INDEX(Lookup_Materials!$H$10:$H$15,TabScenarios[[#This Row],[Material key ('#)]]) -> 0.02076929636 | AD19: =TabScenarios[[#This Row],[Power TA score]]+TabScenarios[[#This Row],[Cost TA score]] -> 1.374835068 | AE19: =IF(TabScenarios[[#This Row],[CA score]]<>"",TabScenarios[[#This Row],[CA score]]>=1,NA()) -> TRUE | AF19: =AND(TabScenarios[[#This Row],[Possible Av. Power (kW)]]-TabScenarios[[#This Row],[Av. Power (kW)]]>=0,TabScenarios[[#This Row],[Structure (€)]]-TabScenarios[[#This Row],[Possible Structure Cost (€)]]>=0) -> TRUE | AG19: =AND(TabScenarios[[#This Row],[SOA Av. Power (kW)]]-TabScenarios[[#This Row],[Av. Power (kW)]]>=0,TabScenarios[[#This Row],[Structure (€)]]-TabScenarios[[#This Row],[SOA Structure Cost (€)]]>=0,TabScenarios[[#This Row],[Possible (?)]]) -> FALSE | AH19: =AND(TabScenarios[[#This Row],[Rated power (kW)]]*Assumptions!$C$10<=TabScenarios[[#This Row],[PTO (€)]],TabScenarios[[#This Row],[Rated power (kW)]]*Assumptions!$C$11<=TabScenarios[[#This Row],[Mooring (€)]],TabScenarios[[#This Row],[Rated power (kW)]]*Assumptions!$C$12<=TabScenarios[[#This Row],[Connection (€)]],TabScenarios[[#This Row],[Rated power (kW)]]*Assumptions!$C$13<=TabScenarios[[#This Row],[Installation (€)]],TabScenarios[[#This Row],[Rated power (kW)]]*Assumptions!$C$14<=TabScenarios[[#This Row],[OPEX (€/a)]]) -> FALSE
A20: 17 | B20: =Inputs!$E$7 -> Heave | C20: Cuboid | D20: Steel | E20: 10 | F20: 55 | G20: 0.01 | H20: 2000000 | I20: =LinInterpolate(TabScenarios[[#This Row],[Resource (kW/m)]],Assumptions!$K$3:$S$3,Assumptions!$K$5:$S$5) -> 0.7680670319 | J20: =MATCH(TabScenarios[[#This Row],[Shape]],Inputs!$M$27:$M$30,0) -> 1 | K20: =TabScenarios[[#This Row],[Scale (m)]]^3 -> 1000 | L20: =MATCH(TabScenarios[[#This Row],[Material]],Inputs!$M$19:$M$23,0) -> 1 | M20: =TabScenarios[[#This Row],[Volume (m3)]]*INDEX(Lookup_Materials!$D$10:$D$15,TabScenarios[[#This Row],[Material key ('#)]])*(1+(TabScenarios[[#This Row],[Resource (kW/m)]]-Inputs!$F$21)/5*INDEX(Lookup_Materials!$G$10:$G$15,TabScenarios[[#This Row],[Material key ('#)]])) -> 278760 | N20: =TabScenarios[[#This Row],[Scale (m)]]*TabScenarios[[#This Row],[Resource (kW/m)]]*TabScenarios[[#This Row],[Efficiency (%)]] -> 5.5 | O20: =TabScenarios[[#This Row],[Av. Power (kW)]]/Assumptions!$C$7 -> 18.33333333 | P20: =IF(TabScenarios[[#This Row],[Av. Power (kW)]]>0,(TabScenarios[[#This Row],[CAPEX (€)]]/(1-'Used Values'!$D$15))/(TabScenarios[[#This Row],[Av. Power (kW)]]*TabScenarios[[#This Row],[Availability (-)]]*8.766*'Used Values'!$C$7),NA()) -> 8504.248223 | Q20: =TabScenarios[[#This Row],[CAPEX (€)]]*'Used Values'!$C$10 -> 680000 | R20: =TabScenarios[[#This Row],[CAPEX (€)]]*'Used Values'!$C$11 -> 540000 | S20: =TabScenarios[[#This Row],[CAPEX (€)]]*'Used Values'!$C$12 -> 240000 | T20: =TabScenarios[[#This Row],[CAPEX (€)]]*'Used Values'!$C$13 -> 280000 | U20: =TabScenarios[[#This Row],[CAPEX (€)]]*'Used Values'!$C$14 -> 260000 | V20: =TabScenarios[[#This Row],[CAPEX (€)]]*Assumptions!$C$5 -> 80000 | W20: =INDEX(('Used Values'!$M$5:$V$14,'Used Values'!$M$18:$V$27,'Used Values'!$M$31:$V$40,'Used Values'!$M$44:$V$53),MATCH(TabScenarios[[#This Row],[Scale (m)]],Inputs!$E$27:$E$36,0),MATCH(TabScenarios[[#This Row],[Resource (kW/m)]],Inputs!$F$27:$F$36,0),TabScenarios[[#This Row],[Shape key ('#)]]) -> 433.5393207 | X20: =TabScenarios[[#This Row],[Material mass (kg)]]*INDEX(Lookup_Materials!$E$10:$E$15,TabScenarios[[#This Row],[Material key ('#)]]) -> 189556.8 | Y20: =INDEX('Used Values'!$M$58:$V$67,MATCH(TabScenarios[[#This Row],[Scale (m)]],Inputs!$E$27:$E$36,0),MATCH(TabScenarios[[#This Row],[Resource (kW/m)]],Inputs!$F$27:$F$36,0)) -> 69.243407 | Z20: =TabScenarios[[#This Row],[Material mass (kg)]]*INDEX(Lookup_Materials!$F$10:$F$15,TabScenarios[[#This Row],[Material key ('#)]]) -> 749864.4 | AA20: =_xlfn.IFNA('Used Values'!$C$4/TabScenarios[[#This Row],[LCOE (€/MWh)]],0) -> 0.02351765785 | AB20: =(TabScenarios[[#This Row],[Possible Av. Power (kW)]]-TabScenarios[[#This Row],[Av. Power (kW)]])/(TabScenarios[[#This Row],[Possible Av. Power (kW)]]-TabScenarios[[#This Row],[SOA Av. Power (kW)]])*('Used Values'!$C$6) -> 2.349954005 | AC20: =(TabScenarios[[#This Row],[Structure (€)]]-TabScenarios[[#This Row],[Possible Structure Cost (€)]])/(TabScenarios[[#This Row],[SOA Structure Cost (€)]]-TabScenarios[[#This Row],[Possible Structure Cost (€)]])*INDEX(Lookup_Materials!$H$10:$H$15,TabScenarios[[#This Row],[Material key ('#)]]) -> 0.8753106329 | AD20: =TabScenarios[[#This Row],[Power TA score]]+TabScenarios[[#This Row],[Cost TA score]] -> 3.225264638 | AE20: =IF(TabScenarios[[#This Row],[CA score]]<>"",TabScenarios[[#This Row],[CA score]]>=1,NA()) -> FALSE | AF20: =AND(TabScenarios[[#This Row],[Possible Av. Power (kW)]]-TabScenarios[[#This Row],[Av. Power (kW)]]>=0,TabScenarios[[#This Row],[Structure (€)]]-TabScenarios[[#This Row],[Possible Structure Cost (€)]]>=0) -> TRUE | AG20: =AND(TabScenarios[[#This Row],[SOA Av. Power (kW)]]-TabScenarios[[#This Row],[Av. Power (kW)]]>=0,TabScenarios[[#This Row],[Structure (€)]]-TabScenarios[[#This Row],[SOA Structure Cost (€)]]>=0,TabScenarios[[#This Row],[Possible (?)]]) -> FALSE | AH20: =AND(TabScenarios[[#This Row],[Rated power (kW)]]*Assumptions!$C$10<=TabScenarios[[#This Row],[PTO (€)]],TabScenarios[[#This Row],[Rated power (kW)]]*Assumptions!$C$11<=TabScenarios[[#This Row],[Mooring (€)]],TabScenarios[[#This Row],[Rated power (kW)]]*Assumptions!$C$12<=TabScenarios[[#This Row],[Connection (€)]],TabScenarios[[#This Row],[Rated power (kW)]]*Assumptions!$C$13<=TabScenarios[[#This Row],[Installation (€)]],TabScenarios[[#This Row],[Rated power (kW)]]*Assumptions!$C$14<=TabScenarios[[#This Row],[OPEX (€/a)]]) -> TRUE
A21: 18 | B21: =Inputs!$E$7 -> Heave | C21: Cuboid | D21: Steel | E21: 10 | F21: 55 | G21: 0.01 | H21: 3000000 | I21: =LinInterpolate(TabScenarios[[#This Row],[Resource (kW/m)]],Assumptions!$K$3:$S$3,Assumptions!$K$5:$S$5) -> 0.7680670319 | J21: =MATCH(TabScenarios[[#This Row],[Shape]],Inputs!$M$27:$M$30,0) -> 1 | K21: =TabScenarios[[#This Row],[Scale (m)]]^3 -> 1000 | L21: =MATCH(TabScenarios[[#This Row],[Material]],Inputs!$M$19:$M$23,0) -> 1 | M21: =TabScenarios[[#This Row],[Volume (m3)]]*INDEX(Lookup_Materials!$D$10:$D$15,TabScenarios[[#This Row],[Material key ('#)]])*(1+(TabScenarios[[#This Row],[Resource (kW/m)]]-Inputs!$F$21)/5*INDEX(Lookup_Materials!$G$10:$G$15,TabScenarios[[#This Row],[Material key ('#)]])) -> 278760 | N21: =TabScenarios[[#This Row],[Scale (m)]]*TabScenarios[[#This Row],[Resource (kW/m)]]*TabScenarios[[#This Row],[Efficiency (%)]] -> 5.5 | O21: =TabScenarios[[#This Row],[Av. Power (kW)]]/Assumptions!$C$7 -> 18.33333333 | P21: =IF(TabScenarios[[#This Row],[Av. Power (kW)]]>0,(TabScenarios[[#This Row],[CAPEX (€)]]/(1-'Used Values'!$D$15))/(TabScenarios[[#This Row],[Av. Power (kW)]]*TabScenarios[[#This Row],[Availability (-)]]*8.766*'Used Values'!$C$7),NA()) -> 12756.37233 | Q21: =TabScenarios[[#This Row],[CAPEX (€)]]*'Used Values'!$C$10 -> 1020000 | R21: =TabScenarios[[#This Row],[CAPEX (€)]]*'Used Values'!$C$11 -> 810000 | S21: =TabScenarios[[#This Row],[CAPEX (€)]]*'Used Values'!$C$12 -> 360000 | T21: =TabScenarios[[#This Row],[CAPEX (€)]]*'Used Values'!$C$13 -> 420000 | U21: =TabScenarios[[#This Row],[CAPEX (€)]]*'Used Values'!$C$14 -> 390000 | V21: =TabScenarios[[#This Row],[CAPEX (€)]]*Assumptions!$C$5 -> 120000 | W21: =INDEX(('Used Values'!$M$5:$V$14,'Used Values'!$M$18:$V$27,'Used Values'!$M$31:$V$40,'Used Values'!$M$44:$V$53),MATCH(TabScenarios[[#This Row],[Scale (m)]],Inputs!$E$27:$E$36,0),MATCH(TabScenarios[[#This Row],[Resource (kW/m)]],Inputs!$F$27:$F$36,0),TabScenarios[[#This Row],[Shape key ('#)]]) -> 433.5393207 | X21: =TabScenarios[[#This Row],[Material mass (kg)]]*INDEX(Lookup_Materials!$E$10:$E$15,TabScenarios[[#This Row],[Material key ('#)]]) -> 189556.8 | Y21: =INDEX('Used Values'!$M$58:$V$67,MATCH(TabScenarios[[#This Row],[Scale (m)]],Inputs!$E$27:$E$36,0),MATCH(TabScenarios[[#This Row],[Resource (kW/m)]],Inputs!$F$27:$F$36,0)) -> 69.243407 | Z21: =TabScenarios[[#This Row],[Material mass (kg)]]*INDEX(Lookup_Materials!$F$10:$F$15,TabScenarios[[#This Row],[Material key ('#)]]) -> 749864.4 | AA21: =_xlfn.IFNA('Used Values'!$C$4/TabScenarios[[#This Row],[LCOE (€/MWh)]],0) -> 0.01567843857 | AB21: =(TabScenarios[[#This Row],[Possible Av. Power (kW)]]-TabScenarios[[#This Row],[Av. Power (kW)]])/(TabScenarios[[#This Row],[Possible Av. Power (kW)]]-TabScenarios[[#This Row],[SOA Av. Power (kW)]])*('Used Values'!$C$6) -> 2.349954005 | AC21: =(TabScenarios[[#This Row],[Structure (€)]]-TabScenarios[[#This Row],[Possible Structure Cost (€)]])/(TabScenarios[[#This Row],[SOA Structure Cost (€)]]-TabScenarios[[#This Row],[Possible Structure Cost (€)]])*INDEX(Lookup_Materials!$H$10:$H$15,TabScenarios[[#This Row],[Material key ('#)]]) -> 1.482120178 | AD21: =TabScenarios[[#This Row],[Power TA score]]+TabScenarios[[#This Row],[Cost TA score]] -> 3.832074183 | AE21: =IF(TabScenarios[[#This Row],[CA score]]<>"",TabScenarios[[#This Row],[CA score]]>=1,NA()) -> FALSE | AF21: =AND(TabScenarios[[#This Row],[Possible Av. Power (kW)]]-TabScenarios[[#This Row],[Av. Power (kW)]]>=0,TabScenarios[[#This Row],[Structure (€)]]-TabScenarios[[#This Row],[Possible Structure Cost (€)]]>=0) -> TRUE | AG21: =AND(TabScenarios[[#This Row],[SOA Av. Power (kW)]]-TabScenarios[[#This Row],[Av. Power (kW)]]>=0,TabScenarios[[#This Row],[Structure (€)]]-TabScenarios[[#This Row],[SOA Structure Cost (€)]]>=0,TabScenarios[[#This Row],[Possible (?)]]) -> TRUE | AH21: =AND(TabScenarios[[#This Row],[Rated power (kW)]]*Assumptions!$C$10<=TabScenarios[[#This Row],[PTO (€)]],TabScenarios[[#This Row],[Rated power (kW)]]*Assumptions!$C$11<=TabScenarios[[#This Row],[Mooring (€)]],TabScenarios[[#This Row],[Rated power (kW)]]*Assumptions!$C$12<=TabScenarios[[#This Row],[Connection (€)]],TabScenarios[[#This Row],[Rated power (kW)]]*Assumptions!$C$13<=TabScenarios[[#This Row],[Installation (€)]],TabScenarios[[#This Row],[Rated power (kW)]]*Assumptions!$C$14<=TabScenarios[[#This Row],[OPEX (€/a)]]) -> TRUE
A22: 19 | B22: =Inputs!$E$7 -> Heave | C22: Cuboid | D22: Steel | E22: 10 | F22: 55 | G22: 1 | H22: 2000000 | I22: =LinInterpolate(TabScenarios[[#This Row],[Resource (kW/m)]],Assumptions!$K$3:$S$3,Assumptions!$K$5:$S$5) -> 0.7680670319 | J22: =MATCH(TabScenarios[[#This Row],[Shape]],Inputs!$M$27:$M$30,0) -> 1 | K22: =TabScenarios[[#This Row],[Scale (m)]]^3 -> 1000 | L22: =MATCH(TabScenarios[[#This Row],[Material]],Inputs!$M$19:$M$23,0) -> 1 | M22: =TabScenarios[[#This Row],[Volume (m3)]]*INDEX(Lookup_Materials!$D$10:$D$15,TabScenarios[[#This Row],[Material key ('#)]])*(1+(TabScenarios[[#This Row],[Resource (kW/m)]]-Inputs!$F$21)/5*INDEX(Lookup_Materials!$G$10:$G$15,TabScenarios[[#This Row],[Material key ('#)]])) -> 278760 | N22: =TabScenarios[[#This Row],[Scale (m)]]*TabScenarios[[#This Row],[Resource (kW/m)]]*TabScenarios[[#This Row],[Efficiency (%)]] -> 550 | O22: =TabScenarios[[#This Row],[Av. Power (kW)]]/Assumptions!$C$7 -> 1833.333333 | P22: =IF(TabScenarios[[#This Row],[Av. Power (kW)]]>0,(TabScenarios[[#This Row],[CAPEX (€)]]/(1-'Used Values'!$D$15))/(TabScenarios[[#This Row],[Av. Power (kW)]]*TabScenarios[[#This Row],[Availability (-)]]*8.766*'Used Values'!$C$7),NA()) -> 85.04248223 | Q22: =TabScenarios[[#This Row],[CAPEX (€)]]*'Used Values'!$C$10 -> 680000 | R22: =TabScenarios[[#This Row],[CAPEX (€)]]*'Used Values'!$C$11 -> 540000 | S22: =TabScenarios[[#This Row],[CAPEX (€)]]*'Used Values'!$C$12 -> 240000 | T22: =TabScenarios[[#This Row],[CAPEX (€)]]*'Used Values'!$C$13 -> 280000 | U22: =TabScenarios[[#This Row],[CAPEX (€)]]*'Used Values'!$C$14 -> 260000 | V22: =TabScenarios[[#This Row],[CAPEX (€)]]*Assumptions!$C$5 -> 80000 | W22: =INDEX(('Used Values'!$M$5:$V$14,'Used Values'!$M$18:$V$27,'Used Values'!$M$31:$V$40,'Used Values'!$M$44:$V$53),MATCH(TabScenarios[[#This Row],[Scale (m)]],Inputs!$E$27:$E$36,0),MATCH(TabScenarios[[#This Row],[Resource (kW/m)]],Inputs!$F$27:$F$36,0),TabScenarios[[#This Row],[Shape key ('#)]]) -> 433.5393207 | X22: =TabScenarios[[#This Row],[Material mass (kg)]]*INDEX(Lookup_Materials!$E$10:$E$15,TabScenarios[[#This Row],[Material key ('#)]]) -> 189556.8 | Y22: =INDEX('Used Values'!$M$58:$V$67,MATCH(TabScenarios[[#This Row],[Scale (m)]],Inputs!$E$27:$E$36,0),MATCH(TabScenarios[[#This Row],[Resource (kW/m)]],Inputs!$F$27:$F$36,0)) -> 69.243407 | Z22: =TabScenarios[[#This Row],[Material mass (kg)]]*INDEX(Lookup_Materials!$F$10:$F$15,TabScenarios[[#This Row],[Material key ('#)]]) -> 749864.4 | AA22: =_xlfn.IFNA('Used Values'!$C$4/TabScenarios[[#This Row],[LCOE (€/MWh)]],0) -> 2.351765785 | AB22: =(TabScenarios[[#This Row],[Possible Av. Power (kW)]]-TabScenarios[[#This Row],[Av. Power (kW)]])/(TabScenarios[[#This Row],[Possible Av. Power (kW)]]-TabScenarios[[#This Row],[SOA Av. Power (kW)]])*('Used Values'!$C$6) -> -0.6393740636 | AC22: =(TabScenarios[[#This Row],[Structure (€)]]-TabScenarios[[#This Row],[Possible Structure Cost (€)]])/(TabScenarios[[#This Row],[SOA Structure Cost (€)]]-TabScenarios[[#This Row],[Possible Structure Cost (€)]])*INDEX(Lookup_Materials!$H$10:$H$15,TabScenarios[[#This Row],[Material key ('#)]]) -> 0.8753106329 | AD22: =TabScenarios[[#This Row],[Power TA score]]+TabScenarios[[#This Row],[Cost TA score]] -> 0.2359365693 | AE22: =IF(TabScenarios[[#This Row],[CA score]]<>"",TabScenarios[[#This Row],[CA score]]>=1,NA()) -> TRUE | AF22: =AND(TabScenarios[[#This Row],[Possible Av. Power (kW)]]-TabScenarios[[#This Row],[Av. Power (kW)]]>=0,TabScenarios[[#This Row],[Structure (€)]]-TabScenarios[[#This Row],[Possible Structure Cost (€)]]>=0) -> FALSE | AG22: =AND(TabScenarios[[#This Row],[SOA Av. Power (kW)]]-TabScenarios[[#This Row],[Av. Power (kW)]]>=0,TabScenarios[[#This Row],[Structure (€)]]-TabScenarios[[#This Row],[SOA Structure Cost (€)]]>=0,TabScenarios[[#This Row],[Possible (?)]]) -> FALSE | AH22: =AND(TabScenarios[[#This Row],[Rated power (kW)]]*Assumptions!$C$10<=TabScenarios[[#This Row],[PTO (€)]],TabScenarios[[#This Row],[Rated power (kW)]]*Assumptions!$C$11<=TabScenarios[[#This Row],[Mooring (€)]],TabScenarios[[#This Row],[Rated power (kW)]]*Assumptions!$C$12<=TabScenarios[[#This Row],[Connection (€)]],TabScenarios[[#This Row],[Rated power (kW)]]*Assumptions!$C$13<=TabScenarios[[#This Row],[Installation (€)]],TabScenarios[[#This Row],[Rated power (kW)]]*Assumptions!$C$14<=TabScenarios[[#This Row],[OPEX (€/a)]]) -> FALSE
A23: 20 | B23: =Inputs!$E$7 -> Heave | C23: Cuboid | D23: Steel | E23: 10 | F23: 55 | G23: 1 | H23: 3000000 | I23: =LinInterpolate(TabScenarios[[#This Row],[Resource (kW/m)]],Assumptions!$K$3:$S$3,Assumptions!$K$5:$S$5) -> 0.7680670319 | J23: =MATCH(TabScenarios[[#This Row],[Shape]],Inputs!$M$27:$M$30,0) -> 1 | K23: =TabScenarios[[#This Row],[Scale (m)]]^3 -> 1000 | L23: =MATCH(TabScenarios[[#This Row],[Material]],Inputs!$M$19:$M$23,0) -> 1 | M23: =TabScenarios[[#This Row],[Volume (m3)]]*INDEX(Lookup_Materials!$D$10:$D$15,TabScenarios[[#This Row],[Material key ('#)]])*(1+(TabScenarios[[#This Row],[Resource (kW/m)]]-Inputs!$F$21)/5*INDEX(Lookup_Materials!$G$10:$G$15,TabScenarios[[#This Row],[Material key ('#)]])) -> 278760 | N23: =TabScenarios[[#This Row],[Scale (m)]]*TabScenarios[[#This Row],[Resource (kW/m)]]*TabScenarios[[#This Row],[Efficiency (%)]] -> 550 | O23: =TabScenarios[[#This Row],[Av. Power (kW)]]/Assumptions!$C$7 -> 1833.333333 | P23: =IF(TabScenarios[[#This Row],[Av. Power (kW)]]>0,(TabScenarios[[#This Row],[CAPEX (€)]]/(1-'Used Values'!$D$15))/(TabScenarios[[#This Row],[Av. Power (kW)]]*TabScenarios[[#This Row],[Availability (-)]]*8.766*'Used Values'!$C$7),NA()) -> 127.5637233 | Q23: =TabScenarios[[#This Row],[CAPEX (€)]]*'Used Values'!$C$10 -> 1020000 | R23: =TabScenarios[[#This Row],[CAPEX (€)]]*'Used Values'!$C$11 -> 810000 | S23: =TabScenarios[[#This Row],[CAPEX (€)]]*'Used Values'!$C$12 -> 360000 | T23: =TabScenarios[[#This Row],[CAPEX (€)]]*'Used Values'!$C$13 -> 420000 | U23: =TabScenarios[[#This Row],[CAPEX (€)]]*'Used Values'!$C$14 -> 390000 | V23: =TabScenarios[[#This Row],[CAPEX (€)]]*Assumptions!$C$5 -> 120000 | W23: =INDEX(('Used Values'!$M$5:$V$14,'Used Values'!$M$18:$V$27,'Used Values'!$M$31:$V$40,'Used Values'!$M$44:$V$53),MATCH(TabScenarios[[#This Row],[Scale (m)]],Inputs!$E$27:$E$36,0),MATCH(TabScenarios[[#This Row],[Resource (kW/m)]],Inputs!$F$27:$F$36,0),TabScenarios[[#This Row],[Shape key ('#)]]) -> 433.5393207 | X23: =TabScenarios[[#This Row],[Material mass (kg)]]*INDEX(Lookup_Materials!$E$10:$E$15,TabScenarios[[#This Row],[Material key ('#)]]) -> 189556.8 | Y23: =INDEX('Used Values'!$M$58:$V$67,MATCH(TabScenarios[[#This Row],[Scale (m)]],Inputs!$E$27:$E$36,0),MATCH(TabScenarios[[#This Row],[Resource (kW/m)]],Inputs!$F$27:$F$36,0)) -> 69.243407 | Z23: =TabScenarios[[#This Row],[Material mass (kg)]]*INDEX(Lookup_Materials!$F$10:$F$15,TabScenarios[[#This Row],[Material key ('#)]]) -> 749864.4 | AA23: =_xlfn.IFNA('Used Values'!$C$4/TabScenarios[[#This Row],[LCOE (€/MWh)]],0) -> 1.567843857 | AB23: =(TabScenarios[[#This Row],[Possible Av. Power (kW)]]-TabScenarios[[#This Row],[Av. Power (kW)]])/(TabScenarios[[#This Row],[Possible Av. Power (kW)]]-TabScenarios[[#This Row],[SOA Av. Power (kW)]])*('Used Values'!$C$6) -> -0.6393740636 | AC23: =(TabScenarios[[#This Row],[Structure (€)]]-TabScenarios[[#This Row],[Possible Structure Cost (€)]])/(TabScenarios[[#This Row],[SOA Structure Cost (€)]]-TabScenarios[[#This Row],[Possible Structure Cost (€)]])*INDEX(Lookup_Materials!$H$10:$H$15,TabScenarios[[#This Row],[Material key ('#)]]) -> 1.482120178 | AD23: =TabScenarios[[#This Row],[Power TA score]]+TabScenarios[[#This Row],[Cost TA score]] -> 0.8427461146 | AE23: =IF(TabScenarios[[#This Row],[CA score]]<>"",TabScenarios[[#This Row],[CA score]]>=1,NA()) -> TRUE | AF23: =AND(TabScenarios[[#This Row],[Possible Av. Power (kW)]]-TabScenarios[[#This Row],[Av. Power (kW)]]>=0,TabScenarios[[#This Row],[Structure (€)]]-TabScenarios[[#This Row],[Possible Structure Cost (€)]]>=0) -> FALSE | AG23: =AND(TabScenarios[[#This Row],[SOA Av. Power (kW)]]-TabScenarios[[#This Row],[Av. Power (kW)]]>=0,TabScenarios[[#This Row],[Structure (€)]]-TabScenarios[[#This Row],[SOA Structure Cost (€)]]>=0,TabScenarios[[#This Row],[Possible (?)]]) -> FALSE | AH23: =AND(TabScenarios[[#This Row],[Rated power (kW)]]*Assumptions!$C$10<=TabScenarios[[#This Row],[PTO (€)]],TabScenarios[[#This Row],[Rated power (kW)]]*Assumptions!$C$11<=TabScenarios[[#This Row],[Mooring (€)]],TabScenarios[[#This Row],[Rated power (kW)]]*Assumptions!$C$12<=TabScenarios[[#This Row],[Connection (€)]],TabScenarios[[#This Row],[Rated power (kW)]]*Assumptions!$C$13<=TabScenarios[[#This Row],[Installation (€)]],TabScenarios[[#This Row],[Rated power (kW)]]*Assumptions!$C$14<=TabScenarios[[#This Row],[OPEX (€/a)]]) -> FALSE
A24: 21 | B24: =Inputs!$E$7 -> Heave | C24: Cuboid | D24: Steel | E24: 10 | F24: 65 | G24: 0.01 | H24: 2000000 | I24: =LinInterpolate(TabScenarios[[#This Row],[Resource (kW/m)]],Assumptions!$K$3:$S$3,Assumptions!$K$5:$S$5) -> 0.7258071258 | J24: =MATCH(TabScenarios[[#This Row],[Shape]],Inputs!$M$27:$M$30,0) -> 1 | K24: =TabScenarios[[#This Row],[Scale (m)]]^3 -> 1000 | L24: =MATCH(TabScenarios[[#This Row],[Material]],Inputs!$M$19:$M$23,0) -> 1 | M24: =TabScenarios[[#This Row],[Volume (m3)]]*INDEX(Lookup_Materials!$D$10:$D$15,TabScenarios[[#This Row],[Material key ('#)]])*(1+(TabScenarios[[#This Row],[Resource (kW/m)]]-Inputs!$F$21)/5*INDEX(Lookup_Materials!$G$10:$G$15,TabScenarios[[#This Row],[Material key ('#)]])) -> 278760 | N24: =TabScenarios[[#This Row],[Scale (m)]]*TabScenarios[[#This Row],[Resource (kW/m)]]*TabScenarios[[#This Row],[Efficiency (%)]] -> 6.5 | O24: =TabScenarios[[#This Row],[Av. Power (kW)]]/Assumptions!$C$7 -> 21.66666667 | P24: =IF(TabScenarios[[#This Row],[Av. Power (kW)]]>0,(TabScenarios[[#This Row],[CAPEX (€)]]/(1-'Used Values'!$D$15))/(TabScenarios[[#This Row],[Av. Power (kW)]]*TabScenarios[[#This Row],[Availability (-)]]*8.766*'Used Values'!$C$7),NA()) -> 7614.881637 | Q24: =TabScenarios[[#This Row],[CAPEX (€)]]*'Used Values'!$C$10 -> 680000 | R24: =TabScenarios[[#This Row],[CAPEX (€)]]*'Used Values'!$C$11 -> 540000 | S24: =TabScenarios[[#This Row],[CAPEX (€)]]*'Used Values'!$C$12 -> 240000 | T24: =TabScenarios[[#This Row],[CAPEX (€)]]*'Used Values'!$C$13 -> 280000 | U24: =TabScenarios[[#This Row],[CAPEX (€)]]*'Used Values'!$C$14 -> 260000 | V24: =TabScenarios[[#This Row],[CAPEX (€)]]*Assumptions!$C$5 -> 80000 | W24: =INDEX(('Used Values'!$M$5:$V$14,'Used Values'!$M$18:$V$27,'Used Values'!$M$31:$V$40,'Used Values'!$M$44:$V$53),MATCH(TabScenarios[[#This Row],[Scale (m)]],Inputs!$E$27:$E$36,0),MATCH(TabScenarios[[#This Row],[Resource (kW/m)]],Inputs!$F$27:$F$36,0),TabScenarios[[#This Row],[Shape key ('#)]]) -> 465.0783453 | X24: =TabScenarios[[#This Row],[Material mass (kg)]]*INDEX(Lookup_Materials!$E$10:$E$15,TabScenarios[[#This Row],[Material key ('#)]]) -> 189556.8 | Y24: =INDEX('Used Values'!$M$58:$V$67,MATCH(TabScenarios[[#This Row],[Scale (m)]],Inputs!$E$27:$E$36,0),MATCH(TabScenarios[[#This Row],[Resource (kW/m)]],Inputs!$F$27:$F$36,0)) -> 76.11774053 | Z24: =TabScenarios[[#This Row],[Material mass (kg)]]*INDEX(Lookup_Materials!$F$10:$F$15,TabScenarios[[#This Row],[Material key ('#)]]) -> 749864.4 | AA24: =_xlfn.IFNA('Used Values'!$C$4/TabScenarios[[#This Row],[LCOE (€/MWh)]],0) -> 0.02626436096 | AB24: =(TabScenarios[[#This Row],[Possible Av. Power (kW)]]-TabScenarios[[#This Row],[Av. Power (kW)]])/(TabScenarios[[#This Row],[Possible Av. Power (kW)]]-TabScenarios[[#This Row],[SOA Av. Power (kW)]])*('Used Values'!$C$6) -> 2.35796808 | AC24: =(TabScenarios[[#This Row],[Structure (€)]]-TabScenarios[[#This Row],[Possible Structure Cost (€)]])/(TabScenarios[[#This Row],[SOA Structure Cost (€)]]-TabScenarios[[#This Row],[Possible Structure Cost (€)]])*INDEX(Lookup_Materials!$H$10:$H$15,TabScenarios[[#This Row],[Material key ('#)]]) -> 0.8753106329 | AD24: =TabScenarios[[#This Row],[Power TA score]]+TabScenarios[[#This Row],[Cost TA score]] -> 3.233278713 | AE24: =IF(TabScenarios[[#This Row],[CA score]]<>"",TabScenarios[[#This Row],[CA score]]>=1,NA()) -> FALSE | AF24: =AND(TabScenarios[[#This Row],[Possible Av. Power (kW)]]-TabScenarios[[#This Row],[Av. Power (kW)]]>=0,TabScenarios[[#This Row],[Structure (€)]]-TabScenarios[[#This Row],[Possible Structure Cost (€)]]>=0) -> TRUE | AG24: =AND(TabScenarios[[#This Row],[SOA Av. Power (kW)]]-TabScenarios[[#This Row],[Av. Power (kW)]]>=0,TabScenarios[[#This Row],[Structure (€)]]-TabScenarios[[#This Row],[SOA Structure Cost (€)]]>=0,TabScenarios[[#This Row],[Possible (?)]]) -> FALSE | AH24: =AND(TabScenarios[[#This Row],[Rated power (kW)]]*Assumptions!$C$10<=TabScenarios[[#This Row],[PTO (€)]],TabScenarios[[#This Row],[Rated power (kW)]]*Assumptions!$C$11<=TabScenarios[[#This Row],[Mooring (€)]],TabScenarios[[#This Row],[Rated power (kW)]]*Assumptions!$C$12<=TabScenarios[[#This Row],[Connection (€)]],TabScenarios[[#This Row],[Rated power (kW)]]*Assumptions!$C$13<=TabScenarios[[#This Row],[Installation (€)]],TabScenarios[[#This Row],[Rated power (kW)]]*Assumptions!$C$14<=TabScenarios[[#This Row],[OPEX (€/a)]]) -> TRUE
A25: 22 | B25: =Inputs!$E$7 -> Heave | C25: Cuboid | D25: Steel | E25: 10 | F25: 65 | G25: 0.01 | H25: 3000000 | I25: =LinInterpolate(TabScenarios[[#This Row],[Resource (kW/m)]],Assumptions!$K$3:$S$3,Assumptions!$K$5:$S$5) -> 0.7258071258 | J25: =MATCH(TabScenarios[[#This Row],[Shape]],Inputs!$M$27:$M$30,0) -> 1 | K25: =TabScenarios[[#This Row],[Scale (m)]]^3 -> 1000 | L25: =MATCH(TabScenarios[[#This Row],[Material]],Inputs!$M$19:$M$23,0) -> 1 | M25: =TabScenarios[[#This Row],[Volume (m3)]]*INDEX(Lookup_Materials!$D$10:$D$15,TabScenarios[[#This Row],[Material key ('#)]])*(1+(TabScenarios[[#This Row],[Resource (kW/m)]]-Inputs!$F$21)/5*INDEX(Lookup_Materials!$G$10:$G$15,TabScenarios[[#This Row],[Material key ('#)]])) -> 278760 | N25: =TabScenarios[[#This Row],[Scale (m)]]*TabScenarios[[#This Row],[Resource (kW/m)]]*TabScenarios[[#This Row],[Efficiency (%)]] -> 6.5 | O25: =TabScenarios[[#This Row],[Av. Power (kW)]]/Assumptions!$C$7 -> 21.66666667 | P25: =IF(TabScenarios[[#This Row],[Av. Power (kW)]]>0,(TabScenarios[[#This Row],[CAPEX (€)]]/(1-'Used Values'!$D$15))/(TabScenarios[[#This Row],[Av. Power (kW)]]*TabScenarios[[#This Row],[Availability (-)]]*8.766*'Used Values'!$C$7),NA()) -> 11422.32246 | Q25: =TabScenarios[[#This Row],[CAPEX (€)]]*'Used Values'!$C$10 -> 1020000 | R25: =TabScenarios[[#This Row],[CAPEX (€)]]*'Used Values'!$C$11 -> 810000 | S25: =TabScenarios[[#This Row],[CAPEX (€)]]*'Used Values'!$C$12 -> 360000 | T25: =TabScenarios[[#This Row],[CAPEX (€)]]*'Used Values'!$C$13 -> 420000 | U25: =TabScenarios[[#This Row],[CAPEX (€)]]*'Used Values'!$C$14 -> 390000 | V25: =TabScenarios[[#This Row],[CAPEX (€)]]*Assumptions!$C$5 -> 120000 | W25: =INDEX(('Used Values'!$M$5:$V$14,'Used Values'!$M$18:$V$27,'Used Values'!$M$31:$V$40,'Used Values'!$M$44:$V$53),MATCH(TabScenarios[[#This Row],[Scale (m)]],Inputs!$E$27:$E$36,0),MATCH(TabScenarios[[#This Row],[Resource (kW/m)]],Inputs!$F$27:$F$36,0),TabScenarios[[#This Row],[Shape key ('#)]]) -> 465.0783453 | X25: =TabScenarios[[#This Row],[Material mass (kg)]]*INDEX(Lookup_Materials!$E$10:$E$15,TabScenarios[[#This Row],[Material key ('#)]]) -> 189556.8 | Y25: =INDEX('Used Values'!$M$58:$V$67,MATCH(TabScenarios[[#This Row],[Scale (m)]],Inputs!$E$27:$E$36,0),MATCH(TabScenarios[[#This Row],[Resource (kW/m)]],Inputs!$F$27:$F$36,0)) -> 76.11774053 | Z25: =TabScenarios[[#This Row],[Material mass (kg)]]*INDEX(Lookup_Materials!$F$10:$F$15,TabScenarios[[#This Row],[Material key ('#)]]) -> 749864.4 | AA25: =_xlfn.IFNA('Used Values'!$C$4/TabScenarios[[#This Row],[LCOE (€/MWh)]],0) -> 0.01750957397 | AB25: =(TabScenarios[[#This Row],[Possible Av. Power (kW)]]-TabScenarios[[#This Row],[Av. Power (kW)]])/(TabScenarios[[#This Row],[Possible Av. Power (kW)]]-TabScenarios[[#This Row],[SOA Av. Power (kW)]])*('Used Values'!$C$6) -> 2.35796808 | AC25: =(TabScenarios[[#This Row],[Structure (€)]]-TabScenarios[[#This Row],[Possible Structure Cost (€)]])/(TabScenarios[[#This Row],[SOA Structure Cost (€)]]-TabScenarios[[#This Row],[Possible Structure Cost (€)]])*INDEX(Lookup_Materials!$H$10:$H$15,TabScenarios[[#This Row],[Material key ('#)]]) -> 1.482120178 | AD25: =TabScenarios[[#This Row],[Power TA score]]+TabScenarios[[#This Row],[Cost TA score]] -> 3.840088259 | AE25: =IF(TabScenarios[[#This Row],[CA score]]<>"",TabScenarios[[#This Row],[CA score]]>=1,NA()) -> FALSE | AF25: =AND(TabScenarios[[#This Row],[Possible Av. Power (kW)]]-TabScenarios[[#This Row],[Av. Power (kW)]]>=0,TabScenarios[[#This Row],[Structure (€)]]-TabScenarios[[#This Row],[Possible Structure Cost (€)]]>=0) -> TRUE | AG25: =AND(TabScenarios[[#This Row],[SOA Av. Power (kW)]]-TabScenarios[[#This Row],[Av. Power (kW)]]>=0,TabScenarios[[#This Row],[Structure (€)]]-TabScenarios[[#This Row],[SOA Structure Cost (€)]]>=0,TabScenarios[[#This Row],[Possible (?)]]) -> TRUE | AH25: =AND(TabScenarios[[#This Row],[Rated power (kW)]]*Assumptions!$C$10<=TabScenarios[[#This Row],[PTO (€)]],TabScenarios[[#This Row],[Rated power (kW)]]*Assumptions!$C$11<=TabScenarios[[#This Row],[Mooring (€)]],TabScenarios[[#This Row],[Rated power (kW)]]*Assumptions!$C$12<=TabScenarios[[#This Row],[Connection (€)]],TabScenarios[[#This Row],[Rated power (kW)]]*Assumptions!$C$13<=TabScenarios[[#This Row],[Installation (€)]],TabScenarios[[#This Row],[Rated power (kW)]]*Assumptions!$C$14<=TabScenarios[[#This Row],[OPEX (€/a)]]) -> TRUE
A26: 23 | B26: =Inputs!$E$7 -> Heave | C26: Cuboid | D26: Steel | E26: 10 | F26: 65 | G26: 1 | H26: 2000000 | I26: =LinInterpolate(TabScenarios[[#This Row],[Resource (kW/m)]],Assumptions!$K$3:$S$3,Assumptions!$K$5:$S$5) -> 0.7258071258 | J26: =MATCH(TabScenarios[[#This Row],[Shape]],Inputs!$M$27:$M$30,0) -> 1 | K26: =TabScenarios[[#This Row],[Scale (m)]]^3 -> 1000 | L26: =MATCH(TabScenarios[[#This Row],[Material]],Inputs!$M$19:$M$23,0) -> 1 | M26: =TabScenarios[[#This Row],[Volume (m3)]]*INDEX(Lookup_Materials!$D$10:$D$15,TabScenarios[[#This Row],[Material key ('#)]])*(1+(TabScenarios[[#This Row],[Resource (kW/m)]]-Inputs!$F$21)/5*INDEX(Lookup_Materials!$G$10:$G$15,TabScenarios[[#This Row],[Material key ('#)]])) -> 278760 | N26: =TabScenarios[[#This Row],[Scale (m)]]*TabScenarios[[#This Row],[Resource (kW/m)]]*TabScenarios[[#This Row],[Efficiency (%)]] -> 650 | O26: =TabScenarios[[#This Row],[Av. Power (kW)]]/Assumptions!$C$7 -> 2166.666667 | P26: =IF(TabScenarios[[#This Row],[Av. Power (kW)]]>0,(TabScenarios[[#This Row],[CAPEX (€)]]/(1-'Used Values'!$D$15))/(TabScenarios[[#This Row],[Av. Power (kW)]]*TabScenarios[[#This Row],[Availability (-)]]*8.766*'Used Values'!$C$7),NA()) -> 76.14881637 | Q26: =TabScenarios[[#This Row],[CAPEX (€)]]*'Used Values'!$C$10 -> 680000 | R26: =TabScenarios[[#This Row],[CAPEX (€)]]*'Used Values'!$C$11 -> 540000 | S26: =TabScenarios[[#This Row],[CAPEX (€)]]*'Used Values'!$C$12 -> 240000 | T26: =TabScenarios[[#This Row],[CAPEX (€)]]*'Used Values'!$C$13 -> 280000 | U26: =TabScenarios[[#This Row],[CAPEX (€)]]*'Used Values'!$C$14 -> 260000 | V26: =TabScenarios[[#This Row],[CAPEX (€)]]*Assumptions!$C$5 -> 80000 | W26: =INDEX(('Used Values'!$M$5:$V$14,'Used Values'!$M$18:$V$27,'Used Values'!$M$31:$V$40,'Used Values'!$M$44:$V$53),MATCH(TabScenarios[[#This Row],[Scale (m)]],Inputs!$E$27:$E$36,0),MATCH(TabScenarios[[#This Row],[Resource (kW/m)]],Inputs!$F$27:$F$36,0),TabScenarios[[#This Row],[Shape key ('#)]]) -> 465.0783453 | X26: =TabScenarios[[#This Row],[Material mass (kg)]]*INDEX(Lookup_Materials!$E$10:$E$15,TabScenarios[[#This Row],[Material key ('#)]]) -> 189556.8 | Y26: =INDEX('Used Values'!$M$58:$V$67,MATCH(TabScenarios[[#This Row],[Scale (m)]],Inputs!$E$27:$E$36,0),MATCH(TabScenarios[[#This Row],[Resource (kW/m)]],Inputs!$F$27:$F$36,0)) -> 76.11774053 | Z26: =TabScenarios[[#This Row],[Material mass (kg)]]*INDEX(Lookup_Materials!$F$10:$F$15,TabScenarios[[#This Row],[Material key ('#)]]) -> 749864.4 | AA26: =_xlfn.IFNA('Used Values'!$C$4/TabScenarios[[#This Row],[LCOE (€/MWh)]],0) -> 2.626436096 | AB26: =(TabScenarios[[#This Row],[Possible Av. Power (kW)]]-TabScenarios[[#This Row],[Av. Power (kW)]])/(TabScenarios[[#This Row],[Possible Av. Power (kW)]]-TabScenarios[[#This Row],[SOA Av. Power (kW)]])*('Used Values'!$C$6) -> -0.950850304 | AC26: =(TabScenarios[[#This Row],[Structure (€)]]-TabScenarios[[#This Row],[Possible Structure Cost (€)]])/(TabScenarios[[#This Row],[SOA Structure Cost (€)]]-TabScenarios[[#This Row],[Possible Structure Cost (€)]])*INDEX(Lookup_Materials!$H$10:$H$15,TabScenarios[[#This Row],[Material key ('#)]]) -> 0.8753106329 | AD26: =TabScenarios[[#This Row],[Power TA score]]+TabScenarios[[#This Row],[Cost TA score]] -> -0.07553967105 | AE26: =IF(TabScenarios[[#This Row],[CA score]]<>"",TabScenarios[[#This Row],[CA score]]>=1,NA()) -> TRUE | AF26: =AND(TabScenarios[[#This Row],[Possible Av. Power (kW)]]-TabScenarios[[#This Row],[Av. Power (kW)]]>=0,TabScenarios[[#This Row],[Structure (€)]]-TabScenarios[[#This Row],[Possible Structure Cost (€)]]>=0) -> FALSE | AG26: =AND(TabScenarios[[#This Row],[SOA Av. Power (kW)]]-TabScenarios[[#This Row],[Av. Power (kW)]]>=0,TabScenarios[[#This Row],[Structure (€)]]-TabScenarios[[#This Row],[SOA Structure Cost (€)]]>=0,TabScenarios[[#This Row],[Possible (?)]]) -> FALSE | AH26: =AND(TabScenarios[[#This Row],[Rated power (kW)]]*Assumptions!$C$10<=TabScenarios[[#This Row],[PTO (€)]],TabScenarios[[#This Row],[Rated power (kW)]]*Assumptions!$C$11<=TabScenarios[[#This Row],[Mooring (€)]],TabScenarios[[#This Row],[Rated power (kW)]]*Assumptions!$C$12<=TabScenarios[[#This Row],[Connection (€)]],TabScenarios[[#This Row],[Rated power (kW)]]*Assumptions!$C$13<=TabScenarios[[#This Row],[Installation (€)]],TabScenarios[[#This Row],[Rated power (kW)]]*Assumptions!$C$14<=TabScenarios[[#This Row],[OPEX (€/a)]]) -> FALSE
A27: 24 | B27: =Inputs!$E$7 -> Heave | C27: Cuboid | D27: Steel | E27: 10 | F27: 65 | G27: 1 | H27: 3000000 | I27: =LinInterpolate(TabScenarios[[#This Row],[Resource (kW/m)]],Assumptions!$K$3:$S$3,Assumptions!$K$5:$S$5) -> 0.7258071258 | J27: =MATCH(TabScenarios[[#This Row],[Shape]],Inputs!$M$27:$M$30,0) -> 1 | K27: =TabScenarios[[#This Row],[Scale (m)]]^3 -> 1000 | L27: =MATCH(TabScenarios[[#This Row],[Material]],Inputs!$M$19:$M$23,0) -> 1 | M27: =TabScenarios[[#This Row],[Volume (m3)]]*INDEX(Lookup_Materials!$D$10:$D$15,TabScenarios[[#This Row],[Material key ('#)]])*(1+(TabScenarios[[#This Row],[Resource (kW/m)]]-Inputs!$F$21)/5*INDEX(Lookup_Materials!$G$10:$G$15,TabScenarios[[#This Row],[Material key ('#)]])) -> 278760 | N27: =TabScenarios[[#This Row],[Scale (m)]]*TabScenarios[[#This Row],[Resource (kW/m)]]*TabScenarios[[#This Row],[Efficiency (%)]] -> 650 | O27: =TabScenarios[[#This Row],[Av. Power (kW)]]/Assumptions!$C$7 -> 2166.666667 | P27: =IF(TabScenarios[[#This Row],[Av. Power (kW)]]>0,(TabScenarios[[#This Row],[CAPEX (€)]]/(1-'Used Values'!$D$15))/(TabScenarios[[#This Row],[Av. Power (kW)]]*TabScenarios[[#This Row],[Availability (-)]]*8.766*'Used Values'!$C$7),NA()) -> 114.2232246 | Q27: =TabScenarios[[#This Row],[CAPEX (€)]]*'Used Values'!$C$10 -> 1020000 | R27: =TabScenarios[[#This Row],[CAPEX (€)]]*'Used Values'!$C$11 -> 810000 | S27: =TabScenarios[[#This Row],[CAPEX (€)]]*'Used Values'!$C$12 -> 360000 | T27: =TabScenarios[[#This Row],[CAPEX (€)]]*'Used Values'!$C$13 -> 420000 | U27: =TabScenarios[[#This Row],[CAPEX (€)]]*'Used Values'!$C$14 -> 390000 | V27: =TabScenarios[[#This Row],[CAPEX (€)]]*Assumptions!$C$5 -> 120000 | W27: =INDEX(('Used Values'!$M$5:$V$14,'Used Values'!$M$18:$V$27,'Used Values'!$M$31:$V$40,'Used Values'!$M$44:$V$53),MATCH(TabScenarios[[#This Row],[Scale (m)]],Inputs!$E$27:$E$36,0),MATCH(TabScenarios[[#This Row],[Resource (kW/m)]],Inputs!$F$27:$F$36,0),TabScenarios[[#This Row],[Shape key ('#)]]) -> 465.0783453 | X27: =TabScenarios[[#This Row],[Material mass (kg)]]*INDEX(Lookup_Materials!$E$10:$E$15,TabScenarios[[#This Row],[Material key ('#)]]) -> 189556.8 | Y27: =INDEX('Used Values'!$M$58:$V$67,MATCH(TabScenarios[[#This Row],[Scale (m)]],Inputs!$E$27:$E$36,0),MATCH(TabScenarios[[#This Row],[Resource (kW/m)]],Inputs!$F$27:$F$36,0)) -> 76.11774053 | Z27: =TabScenarios[[#This Row],[Material mass (kg)]]*INDEX(Lookup_Materials!$F$10:$F$15,TabScenarios[[#This Row],[Material key ('#)]]) -> 749864.4 | AA27: =_xlfn.IFNA('Used Values'!$C$4/TabScenarios[[#This Row],[LCOE (€/MWh)]],0) -> 1.750957397 | AB27: =(TabScenarios[[#This Row],[Possible Av. Power (kW)]]-TabScenarios[[#This Row],[Av. Power (kW)]])/(TabScenarios[[#This Row],[Possible Av. Power (kW)]]-TabScenarios[[#This Row],[SOA Av. Power (kW)]])*('Used Values'!$C$6) -> -0.950850304 | AC27: =(TabScenarios[[#This Row],[Structure (€)]]-TabScenarios[[#This Row],[Possible Structure Cost (€)]])/(TabScenarios[[#This Row],[SOA Structure Cost (€)]]-TabScenarios[[#This Row],[Possible Structure Cost (€)]])*INDEX(Lookup_Materials!$H$10:$H$15,TabScenarios[[#This Row],[Material key ('#)]]) -> 1.482120178 | AD27: =TabScenarios[[#This Row],[Power TA score]]+TabScenarios[[#This Row],[Cost TA score]] -> 0.5312698743 | AE27: =IF(TabScenarios[[#This Row],[CA score]]<>"",TabScenarios[[#This Row],[CA score]]>=1,NA()) -> TRUE | AF27: =AND(TabScenarios[[#This Row],[Possible Av. Power (kW)]]-TabScenarios[[#This Row],[Av. Power (kW)]]>=0,TabScenarios[[#This Row],[Structure (€)]]-TabScenarios[[#This Row],[Possible Structure Cost (€)]]>=0) -> FALSE | AG27: =AND(TabScenarios[[#This Row],[SOA Av. Power (kW)]]-TabScenarios[[#This Row],[Av. Power (kW)]]>=0,TabScenarios[[#This Row],[Structure (€)]]-TabScenarios[[#This Row],[SOA Structure Cost (€)]]>=0,TabScenarios[[#This Row],[Possible (?)]]) -> FALSE | AH27: =AND(TabScenarios[[#This Row],[Rated power (kW)]]*Assumptions!$C$10<=TabScenarios[[#This Row],[PTO (€)]],TabScenarios[[#This Row],[Rated power (kW)]]*Assumptions!$C$11<=TabScenarios[[#This Row],[Mooring (€)]],TabScenarios[[#This Row],[Rated power (kW)]]*Assumptions!$C$12<=TabScenarios[[#This Row],[Connection (€)]],TabScenarios[[#This Row],[Rated power (kW)]]*Assumptions!$C$13<=TabScenarios[[#This Row],[Installation (€)]],TabScenarios[[#This Row],[Rated power (kW)]]*Assumptions!$C$14<=TabScenarios[[#This Row],[OPEX (€/a)]]) -> FALSE
A28: 25 | B28: =Inputs!$E$7 -> Heave | C28: Cuboid | D28: Steel | E28: 40 | F28: 55 | G28: 0.01 | H28: 2000000 | I28: =LinInterpolate(TabScenarios[[#This Row],[Resource (kW/m)]],Assumptions!$K$3:$S$3,Assumptions!$K$5:$S$5) -> 0.7680670319 | J28: =MATCH(TabScenarios[[#This Row],[Shape]],Inputs!$M$27:$M$30,0) -> 1 | K28: =TabScenarios[[#This Row],[Scale (m)]]^3 -> 64000 | L28: =MATCH(TabScenarios[[#This Row],[Material]],Inputs!$M$19:$M$23,0) -> 1 | M28: =TabScenarios[[#This Row],[Volume (m3)]]*INDEX(Lookup_Materials!$D$10:$D$15,TabScenarios[[#This Row],[Material key ('#)]])*(1+(TabScenarios[[#This Row],[Resource (kW/m)]]-Inputs!$F$21)/5*INDEX(Lookup_Materials!$G$10:$G$15,TabScenarios[[#This Row],[Material key ('#)]])) -> 17840640 | N28: =TabScenarios[[#This Row],[Scale (m)]]*TabScenarios[[#This Row],[Resource (kW/m)]]*TabScenarios[[#This Row],[Efficiency (%)]] -> 22 | O28: =TabScenarios[[#This Row],[Av. Power (kW)]]/Assumptions!$C$7 -> 73.33333333 | P28: =IF(TabScenarios[[#This Row],[Av. Power (kW)]]>0,(TabScenarios[[#This Row],[CAPEX (€)]]/(1-'Used Values'!$D$15))/(TabScenarios[[#This Row],[Av. Power (kW)]]*TabScenarios[[#This Row],[Availability (-)]]*8.766*'Used Values'!$C$7),NA()) -> 2126.062056 | Q28: =TabScenarios[[#This Row],[CAPEX (€)]]*'Used Values'!$C$10 -> 680000 | R28: =TabScenarios[[#This Row],[CAPEX (€)]]*'Used Values'!$C$11 -> 540000 | S28: =TabScenarios[[#This Row],[CAPEX (€)]]*'Used Values'!$C$12 -> 240000 | T28: =TabScenarios[[#This Row],[CAPEX (€)]]*'Used Values'!$C$13 -> 280000 | U28: =TabScenarios[[#This Row],[CAPEX (€)]]*'Used Values'!$C$14 -> 260000 | V28: =TabScenarios[[#This Row],[CAPEX (€)]]*Assumptions!$C$5 -> 80000 | W28: =INDEX(('Used Values'!$M$5:$V$14,'Used Values'!$M$18:$V$27,'Used Values'!$M$31:$V$40,'Used Values'!$M$44:$V$53),MATCH(TabScenarios[[#This Row],[Scale (m)]],Inputs!$E$27:$E$36,0),MATCH(TabScenarios[[#This Row],[Resource (kW/m)]],Inputs!$F$27:$F$36,0),TabScenarios[[#This Row],[Shape key ('#)]]) -> 3982.954621 | X28: =TabScenarios[[#This Row],[Material mass (kg)]]*INDEX(Lookup_Materials!$E$10:$E$15,TabScenarios[[#This Row],[Material key ('#)]]) -> 12131635.2 | Y28: =INDEX('Used Values'!$M$58:$V$67,MATCH(TabScenarios[[#This Row],[Scale (m)]],Inputs!$E$27:$E$36,0),MATCH(TabScenarios[[#This Row],[Resource (kW/m)]],Inputs!$F$27:$F$36,0)) -> 1180.2051 | Z28: =TabScenarios[[#This Row],[Material mass (kg)]]*INDEX(Lookup_Materials!$F$10:$F$15,TabScenarios[[#This Row],[Material key ('#)]]) -> 47991321.6 | AA28: =_xlfn.IFNA('Used Values'!$C$4/TabScenarios[[#This Row],[LCOE (€/MWh)]],0) -> 0.09407063141 | AB28: =(TabScenarios[[#This Row],[Possible Av. Power (kW)]]-TabScenarios[[#This Row],[Av. Power (kW)]])/(TabScenarios[[#This Row],[Possible Av. Power (kW)]]-TabScenarios[[#This Row],[SOA Av. Power (kW)]])*('Used Values'!$C$6) -> 2.826477779 | AC28: =(TabScenarios[[#This Row],[Structure (€)]]-TabScenarios[[#This Row],[Possible Structure Cost (€)]])/(TabScenarios[[#This Row],[SOA Structure Cost (€)]]-TabScenarios[[#This Row],[Possible Structure Cost (€)]])*INDEX(Lookup_Materials!$H$10:$H$15,TabScenarios[[#This Row],[Material key ('#)]]) -> -0.3193456594 | AD28: =TabScenarios[[#This Row],[Power TA score]]+TabScenarios[[#This Row],[Cost TA score]] -> 2.50713212 | AE28: =IF(TabScenarios[[#This Row],[CA score]]<>"",TabScenarios[[#This Row],[CA score]]>=1,NA()) -> FALSE | AF28: =AND(TabScenarios[[#This Row],[Possible Av. Power (kW)]]-TabScenarios[[#This Row],[Av. Power (kW)]]>=0,TabScenarios[[#This Row],[Structure (€)]]-TabScenarios[[#This Row],[Possible Structure Cost (€)]]>=0) -> FALSE | AG28: =AND(TabScenarios[[#This Row],[SOA Av. Power (kW)]]-TabScenarios[[#This Row],[Av. Power (kW)]]>=0,TabScenarios[[#This Row],[Structure (€)]]-TabScenarios[[#This Row],[SOA Structure Cost (€)]]>=0,TabScenarios[[#This Row],[Possible (?)]]) -> FALSE | AH28: =AND(TabScenarios[[#This Row],[Rated power (kW)]]*Assumptions!$C$10<=TabScenarios[[#This Row],[PTO (€)]],TabScenarios[[#This Row],[Rated power (kW)]]*Assumptions!$C$11<=TabScenarios[[#This Row],[Mooring (€)]],TabScenarios[[#This Row],[Rated power (kW)]]*Assumptions!$C$12<=TabScenarios[[#This Row],[Connection (€)]],TabScenarios[[#This Row],[Rated power (kW)]]*Assumptions!$C$13<=TabScenarios[[#This Row],[Installation (€)]],TabScenarios[[#This Row],[Rated power (kW)]]*Assumptions!$C$14<=TabScenarios[[#This Row],[OPEX (€/a)]]) -> TRUE
A29: 26 | B29: =Inputs!$E$7 -> Heave | C29: Cuboid | D29: Steel | E29: 40 | F29: 55 | G29: 0.01 | H29: 3000000 | I29: =LinInterpolate(TabScenarios[[#This Row],[Resource (kW/m)]],Assumptions!$K$3:$S$3,Assumptions!$K$5:$S$5) -> 0.7680670319 | J29: =MATCH(TabScenarios[[#This Row],[Shape]],Inputs!$M$27:$M$30,0) -> 1 | K29: =TabScenarios[[#This Row],[Scale (m)]]^3 -> 64000 | L29: =MATCH(TabScenarios[[#This Row],[Material]],Inputs!$M$19:$M$23,0) -> 1 | M29: =TabScenarios[[#This Row],[Volume (m3)]]*INDEX(Lookup_Materials!$D$10:$D$15,TabScenarios[[#This Row],[Material key ('#)]])*(1+(TabScenarios[[#This Row],[Resource (kW/m)]]-Inputs!$F$21)/5*INDEX(Lookup_Materials!$G$10:$G$15,TabScenarios[[#This Row],[Material key ('#)]])) -> 17840640 | N29: =TabScenarios[[#This Row],[Scale (m)]]*TabScenarios[[#This Row],[Resource (kW/m)]]*TabScenarios[[#This Row],[Efficiency (%)]] -> 22 | O29: =TabScenarios[[#This Row],[Av. Power (kW)]]/Assumptions!$C$7 -> 73.33333333 | P29: =IF(TabScenarios[[#This Row],[Av. Power (kW)]]>0,(TabScenarios[[#This Row],[CAPEX (€)]]/(1-'Used Values'!$D$15))/(TabScenarios[[#This Row],[Av. Power (kW)]]*TabScenarios[[#This Row],[Availability (-)]]*8.766*'Used Values'!$C$7),NA()) -> 3189.093084 | Q29: =TabScenarios[[#This Row],[CAPEX (€)]]*'Used Values'!$C$10 -> 1020000 | R29: =TabScenarios[[#This Row],[CAPEX (€)]]*'Used Values'!$C$11 -> 810000 | S29: =TabScenarios[[#This Row],[CAPEX (€)]]*'Used Values'!$C$12 -> 360000 | T29: =TabScenarios[[#This Row],[CAPEX (€)]]*'Used Values'!$C$13 -> 420000 | U29: =TabScenarios[[#This Row],[CAPEX (€)]]*'Used Values'!$C$14 -> 390000 | V29: =TabScenarios[[#This Row],[CAPEX (€)]]*Assumptions!$C$5 -> 120000 | W29: =INDEX(('Used Values'!$M$5:$V$14,'Used Values'!$M$18:$V$27,'Used Values'!$M$31:$V$40,'Used Values'!$M$44:$V$53),MATCH(TabScenarios[[#This Row],[Scale (m)]],Inputs!$E$27:$E$36,0),MATCH(TabScenarios[[#This Row],[Resource (kW/m)]],Inputs!$F$27:$F$36,0),TabScenarios[[#This Row],[Shape key ('#)]]) -> 3982.954621 | X29: =TabScenarios[[#This Row],[Material mass (kg)]]*INDEX(Lookup_Materials!$E$10:$E$15,TabScenarios[[#This Row],[Material key ('#)]]) -> 12131635.2 | Y29: =INDEX('Used Values'!$M$58:$V$67,MATCH(TabScenarios[[#This Row],[Scale (m)]],Inputs!$E$27:$E$36,0),MATCH(TabScenarios[[#This Row],[Resource (kW/m)]],Inputs!$F$27:$F$36,0)) -> 1180.2051 | Z29: =TabScenarios[[#This Row],[Material mass (kg)]]*INDEX(Lookup_Materials!$F$10:$F$15,TabScenarios[[#This Row],[Material key ('#)]]) -> 47991321.6 | AA29: =_xlfn.IFNA('Used Values'!$C$4/TabScenarios[[#This Row],[LCOE (€/MWh)]],0) -> 0.06271375427 | AB29: =(TabScenarios[[#This Row],[Possible Av. Power (kW)]]-TabScenarios[[#This Row],[Av. Power (kW)]])/(TabScenarios[[#This Row],[Possible Av. Power (kW)]]-TabScenarios[[#This Row],[SOA Av. Power (kW)]])*('Used Values'!$C$6) -> 2.826477779 | AC29: =(TabScenarios[[#This Row],[Structure (€)]]-TabScenarios[[#This Row],[Possible Structure Cost (€)]])/(TabScenarios[[#This Row],[SOA Structure Cost (€)]]-TabScenarios[[#This Row],[Possible Structure Cost (€)]])*INDEX(Lookup_Materials!$H$10:$H$15,TabScenarios[[#This Row],[Material key ('#)]]) -> -0.3098642603 | AD29: =TabScenarios[[#This Row],[Power TA score]]+TabScenarios[[#This Row],[Cost TA score]] -> 2.516613519 | AE29: =IF(TabScenarios[[#This Row],[CA score]]<>"",TabScenarios[[#This Row],[CA score]]>=1,NA()) -> FALSE | AF29: =AND(TabScenarios[[#This Row],[Possible Av. Power (kW)]]-TabScenarios[[#This Row],[Av. Power (kW)]]>=0,TabScenarios[[#This Row],[Structure (€)]]-TabScenarios[[#This Row],[Possible Structure Cost (€)]]>=0) -> FALSE | AG29: =AND(TabScenarios[[#This Row],[SOA Av. Power (kW)]]-TabScenarios[[#This Row],[Av. Power (kW)]]>=0,TabScenarios[[#This Row],[Structure (€)]]-TabScenarios[[#This Row],[SOA Structure Cost (€)]]>=0,TabScenarios[[#This Row],[Possible (?)]]) -> FALSE | AH29: =AND(TabScenarios[[#This Row],[Rated power (kW)]]*Assumptions!$C$10<=TabScenarios[[#This Row],[PTO (€)]],TabScenarios[[#This Row],[Rated power (kW)]]*Assumptions!$C$11<=TabScenarios[[#This Row],[Mooring (€)]],TabScenarios[[#This Row],[Rated power (kW)]]*Assumptions!$C$12<=TabScenarios[[#This Row],[Connection (€)]],TabScenarios[[#This Row],[Rated power (kW)]]*Assumptions!$C$13<=TabScenarios[[#This Row],[Installation (€)]],TabScenarios[[#This Row],[Rated power (kW)]]*Assumptions!$C$14<=TabScenarios[[#This Row],[OPEX (€/a)]]) -> TRUE
A30: 27 | B30: =Inputs!$E$7 -> Heave | C30: Cuboid | D30: Steel | E30: 40 | F30: 55 | G30: 1 | H30: 2000000 | I30: =LinInterpolate(TabScenarios[[#This Row],[Resource (kW/m)]],Assumptions!$K$3:$S$3,Assumptions!$K$5:$S$5) -> 0.7680670319 | J30: =MATCH(TabScenarios[[#This Row],[Shape]],Inputs!$M$27:$M$30,0) -> 1 | K30: =TabScenarios[[#This Row],[Scale (m)]]^3 -> 64000 | L30: =MATCH(TabScenarios[[#This Row],[Material]],Inputs!$M$19:$M$23,0) -> 1 | M30: =TabScenarios[[#This Row],[Volume (m3)]]*INDEX(Lookup_Materials!$D$10:$D$15,TabScenarios[[#This Row],[Material key ('#)]])*(1+(TabScenarios[[#This Row],[Resource (kW/m)]]-Inputs!$F$21)/5*INDEX(Lookup_Materials!$G$10:$G$15,TabScenarios[[#This Row],[Material key ('#)]])) -> 17840640 | N30: =TabScenarios[[#This Row],[Scale (m)]]*TabScenarios[[#This Row],[Resource (kW/m)]]*TabScenarios[[#This Row],[Efficiency (%)]] -> 2200 | O30: =TabScenarios[[#This Row],[Av. Power (kW)]]/Assumptions!$C$7 -> 7333.333333 | P30: =IF(TabScenarios[[#This Row],[Av. Power (kW)]]>0,(TabScenarios[[#This Row],[CAPEX (€)]]/(1-'Used Values'!$D$15))/(TabScenarios[[#This Row],[Av. Power (kW)]]*TabScenarios[[#This Row],[Availability (-)]]*8.766*'Used Values'!$C$7),NA()) -> 21.26062056 | Q30: =TabScenarios[[#This Row],[CAPEX (€)]]*'Used Values'!$C$10 -> 680000 | R30: =TabScenarios[[#This Row],[CAPEX (€)]]*'Used Values'!$C$11 -> 540000 | S30: =TabScenarios[[#This Row],[CAPEX (€)]]*'Used Values'!$C$12 -> 240000 | T30: =TabScenarios[[#This Row],[CAPEX (€)]]*'Used Values'!$C$13 -> 280000 | U30: =TabScenarios[[#This Row],[CAPEX (€)]]*'Used Values'!$C$14 -> 260000 | V30: =TabScenarios[[#This Row],[CAPEX (€)]]*Assumptions!$C$5 -> 80000 | W30: =INDEX(('Used Values'!$M$5:$V$14,'Used Values'!$M$18:$V$27,'Used Values'!$M$31:$V$40,'Used Values'!$M$44:$V$53),MATCH(TabScenarios[[#This Row],[Scale (m)]],Inputs!$E$27:$E$36,0),MATCH(TabScenarios[[#This Row],[Resource (kW/m)]],Inputs!$F$27:$F$36,0),TabScenarios[[#This Row],[Shape key ('#)]]) -> 3982.954621 | X30: =TabScenarios[[#This Row],[Material mass (kg)]]*INDEX(Lookup_Materials!$E$10:$E$15,TabScenarios[[#This Row],[Material key ('#)]]) -> 12131635.2 | Y30: =INDEX('Used Values'!$M$58:$V$67,MATCH(TabScenarios[[#This Row],[Scale (m)]],Inputs!$E$27:$E$36,0),MATCH(TabScenarios[[#This Row],[Resource (kW/m)]],Inputs!$F$27:$F$36,0)) -> 1180.2051 | Z30: =TabScenarios[[#This Row],[Material mass (kg)]]*INDEX(Lookup_Materials!$F$10:$F$15,TabScenarios[[#This Row],[Material key ('#)]]) -> 47991321.6 | AA30: =_xlfn.IFNA('Used Values'!$C$4/TabScenarios[[#This Row],[LCOE (€/MWh)]],0) -> 9.407063141 | AB30: =(TabScenarios[[#This Row],[Possible Av. Power (kW)]]-TabScenarios[[#This Row],[Av. Power (kW)]])/(TabScenarios[[#This Row],[Possible Av. Power (kW)]]-TabScenarios[[#This Row],[SOA Av. Power (kW)]])*('Used Values'!$C$6) -> 1.272289662 | AC30: =(TabScenarios[[#This Row],[Structure (€)]]-TabScenarios[[#This Row],[Possible Structure Cost (€)]])/(TabScenarios[[#This Row],[SOA Structure Cost (€)]]-TabScenarios[[#This Row],[Possible Structure Cost (€)]])*INDEX(Lookup_Materials!$H$10:$H$15,TabScenarios[[#This Row],[Material key ('#)]]) -> -0.3193456594 | AD30: =TabScenarios[[#This Row],[Power TA score]]+TabScenarios[[#This Row],[Cost TA score]] -> 0.9529440029 | AE30: =IF(TabScenarios[[#This Row],[CA score]]<>"",TabScenarios[[#This Row],[CA score]]>=1,NA()) -> TRUE | AF30: =AND(TabScenarios[[#This Row],[Possible Av. Power (kW)]]-TabScenarios[[#This Row],[Av. Power (kW)]]>=0,TabScenarios[[#This Row],[Structure (€)]]-TabScenarios[[#This Row],[Possible Structure Cost (€)]]>=0) -> FALSE | AG30: =AND(TabScenarios[[#This Row],[SOA Av. Power (kW)]]-TabScenarios[[#This Row],[Av. Power (kW)]]>=0,TabScenarios[[#This Row],[Structure (€)]]-TabScenarios[[#This Row],[SOA Structure Cost (€)]]>=0,TabScenarios[[#This Row],[Possible (?)]]) -> FALSE | AH30: =AND(TabScenarios[[#This Row],[Rated power (kW)]]*Assumptions!$C$10<=TabScenarios[[#This Row],[PTO (€)]],TabScenarios[[#This Row],[Rated power (kW)]]*Assumptions!$C$11<=TabScenarios[[#This Row],[Mooring (€)]],TabScenarios[[#This Row],[Rated power (kW)]]*Assumptions!$C$12<=TabScenarios[[#This Row],[Connection (€)]],TabScenarios[[#This Row],[Rated power (kW)]]*Assumptions!$C$13<=TabScenarios[[#This Row],[Installation (€)]],TabScenarios[[#This Row],[Rated power (kW)]]*Assumptions!$C$14<=TabScenarios[[#This Row],[OPEX (€/a)]]) -> FALSE
A31: 28 | B31: =Inputs!$E$7 -> Heave | C31: Cuboid | D31: Steel | E31: 40 | F31: 55 | G31: 1 | H31: 3000000 | I31: =LinInterpolate(TabScenarios[[#This Row],[Resource (kW/m)]],Assumptions!$K$3:$S$3,Assumptions!$K$5:$S$5) -> 0.7680670319 | J31: =MATCH(TabScenarios[[#This Row],[Shape]],Inputs!$M$27:$M$30,0) -> 1 | K31: =TabScenarios[[#This Row],[Scale (m)]]^3 -> 64000 | L31: =MATCH(TabScenarios[[#This Row],[Material]],Inputs!$M$19:$M$23,0) -> 1 | M31: =TabScenarios[[#This Row],[Volume (m3)]]*INDEX(Lookup_Materials!$D$10:$D$15,TabScenarios[[#This Row],[Material key ('#)]])*(1+(TabScenarios[[#This Row],[Resource (kW/m)]]-Inputs!$F$21)/5*INDEX(Lookup_Materials!$G$10:$G$15,TabScenarios[[#This Row],[Material key ('#)]])) -> 17840640 | N31: =TabScenarios[[#This Row],[Scale (m)]]*TabScenarios[[#This Row],[Resource (kW/m)]]*TabScenarios[[#This Row],[Efficiency (%)]] -> 2200 | O31: =TabScenarios[[#This Row],[Av. Power (kW)]]/Assumptions!$C$7 -> 7333.333333 | P31: =IF(TabScenarios[[#This Row],[Av. Power (kW)]]>0,(TabScenarios[[#This Row],[CAPEX (€)]]/(1-'Used Values'!$D$15))/(TabScenarios[[#This Row],[Av. Power (kW)]]*TabScenarios[[#This Row],[Availability (-)]]*8.766*'Used Values'!$C$7),NA()) -> 31.89093084 | Q31: =TabScenarios[[#This Row],[CAPEX (€)]]*'Used Values'!$C$10 -> 1020000 | R31: =TabScenarios[[#This Row],[CAPEX (€)]]*'Used Values'!$C$11 -> 810000 | S31: =TabScenarios[[#This Row],[CAPEX (€)]]*'Used Values'!$C$12 -> 360000 | T31: =TabScenarios[[#This Row],[CAPEX (€)]]*'Used Values'!$C$13 -> 420000 | U31: =TabScenarios[[#This Row],[CAPEX (€)]]*'Used Values'!$C$14 -> 390000 | V31: =TabScenarios[[#This Row],[CAPEX (€)]]*Assumptions!$C$5 -> 120000 | W31: =INDEX(('Used Values'!$M$5:$V$14,'Used Values'!$M$18:$V$27,'Used Values'!$M$31:$V$40,'Used Values'!$M$44:$V$53),MATCH(TabScenarios[[#This Row],[Scale (m)]],Inputs!$E$27:$E$36,0),MATCH(TabScenarios[[#This Row],[Resource (kW/m)]],Inputs!$F$27:$F$36,0),TabScenarios[[#This Row],[Shape key ('#)]]) -> 3982.954621 | X31: =TabScenarios[[#This Row],[Material mass (kg)]]*INDEX(Lookup_Materials!$E$10:$E$15,TabScenarios[[#This Row],[Material key ('#)]]) -> 12131635.2 | Y31: =INDEX('Used Values'!$M$58:$V$67,MATCH(TabScenarios[[#This Row],[Scale (m)]],Inputs!$E$27:$E$36,0),MATCH(TabScenarios[[#This Row],[Resource (kW/m)]],Inputs!$F$27:$F$36,0)) -> 1180.2051 | Z31: =TabScenarios[[#This Row],[Material mass (kg)]]*INDEX(Lookup_Materials!$F$10:$F$15,TabScenarios[[#This Row],[Material key ('#)]]) -> 47991321.6 | AA31: =_xlfn.IFNA('Used Values'!$C$4/TabScenarios[[#This Row],[LCOE (€/MWh)]],0) -> 6.271375427 | AB31: =(TabScenarios[[#This Row],[Possible Av. Power (kW)]]-TabScenarios[[#This Row],[Av. Power (kW)]])/(TabScenarios[[#This Row],[Possible Av. Power (kW)]]-TabScenarios[[#This Row],[SOA Av. Power (kW)]])*('Used Values'!$C$6) -> 1.272289662 | AC31: =(TabScenarios[[#This Row],[Structure (€)]]-TabScenarios[[#This Row],[Possible Structure Cost (€)]])/(TabScenarios[[#This Row],[SOA Structure Cost (€)]]-TabScenarios[[#This Row],[Possible Structure Cost (€)]])*INDEX(Lookup_Materials!$H$10:$H$15,TabScenarios[[#This Row],[Material key ('#)]]) -> -0.3098642603 | AD31: =TabScenarios[[#This Row],[Power TA score]]+TabScenarios[[#This Row],[Cost TA score]] -> 0.9624254021 | AE31: =IF(TabScenarios[[#This Row],[CA score]]<>"",TabScenarios[[#This Row],[CA score]]>=1,NA()) -> TRUE | AF31: =AND(TabScenarios[[#This Row],[Possible Av. Power (kW)]]-TabScenarios[[#This Row],[Av. Power (kW)]]>=0,TabScenarios[[#This Row],[Structure (€)]]-TabScenarios[[#This Row],[Possible Structure Cost (€)]]>=0) -> FALSE | AG31: =AND(TabScenarios[[#This Row],[SOA Av. Power (kW)]]-TabScenarios[[#This Row],[Av. Power (kW)]]>=0,TabScenarios[[#This Row],[Structure (€)]]-TabScenarios[[#This Row],[SOA Structure Cost (€)]]>=0,TabScenarios[[#This Row],[Possible (?)]]) -> FALSE | AH31: =AND(TabScenarios[[#This Row],[Rated power (kW)]]*Assumptions!$C$10<=TabScenarios[[#This Row],[PTO (€)]],TabScenarios[[#This Row],[Rated power (kW)]]*Assumptions!$C$11<=TabScenarios[[#This Row],[Mooring (€)]],TabScenarios[[#This Row],[Rated power (kW)]]*Assumptions!$C$12<=TabScenarios[[#This Row],[Connection (€)]],TabScenarios[[#This Row],[Rated power (kW)]]*Assumptions!$C$13<=TabScenarios[[#This Row],[Installation (€)]],TabScenarios[[#This Row],[Rated power (kW)]]*Assumptions!$C$14<=TabScenarios[[#This Row],[OPEX (€/a)]]) -> FALSE
A32: 29 | B32: =Inputs!$E$7 -> Heave | C32: Cuboid | D32: Steel | E32: 40 | F32: 65 | G32: 0.01 | H32: 2000000 | I32: =LinInterpolate(TabScenarios[[#This Row],[Resource (kW/m)]],Assumptions!$K$3:$S$3,Assumptions!$K$5:$S$5) -> 0.7258071258 | J32: =MATCH(TabScenarios[[#This Row],[Shape]],Inputs!$M$27:$M$30,0) -> 1 | K32: =TabScenarios[[#This Row],[Scale (m)]]^3 -> 64000 | L32: =MATCH(TabScenarios[[#This Row],[Material]],Inputs!$M$19:$M$23,0) -> 1 | M32: =TabScenarios[[#This Row],[Volume (m3)]]*INDEX(Lookup_Materials!$D$10:$D$15,TabScenarios[[#This Row],[Material key ('#)]])*(1+(TabScenarios[[#This Row],[Resource (kW/m)]]-Inputs!$F$21)/5*INDEX(Lookup_Materials!$G$10:$G$15,TabScenarios[[#This Row],[Material key ('#)]])) -> 17840640 | N32: =TabScenarios[[#This Row],[Scale (m)]]*TabScenarios[[#This Row],[Resource (kW/m)]]*TabScenarios[[#This Row],[Efficiency (%)]] -> 26 | O32: =TabScenarios[[#This Row],[Av. Power (kW)]]/Assumptions!$C$7 -> 86.66666667 | P32: =IF(TabScenarios[[#This Row],[Av. Power (kW)]]>0,(TabScenarios[[#This Row],[CAPEX (€)]]/(1-'Used Values'!$D$15))/(TabScenarios[[#This Row],[Av. Power (kW)]]*TabScenarios[[#This Row],[Availability (-)]]*8.766*'Used Values'!$C$7),NA()) -> 1903.720409 | Q32: =TabScenarios[[#This Row],[CAPEX (€)]]*'Used Values'!$C$10 -> 680000 | R32: =TabScenarios[[#This Row],[CAPEX (€)]]*'Used Values'!$C$11 -> 540000 | S32: =TabScenarios[[#This Row],[CAPEX (€)]]*'Used Values'!$C$12 -> 240000 | T32: =TabScenarios[[#This Row],[CAPEX (€)]]*'Used Values'!$C$13 -> 280000 | U32: =TabScenarios[[#This Row],[CAPEX (€)]]*'Used Values'!$C$14 -> 260000 | V32: =TabScenarios[[#This Row],[CAPEX (€)]]*Assumptions!$C$5 -> 80000 | W32: =INDEX(('Used Values'!$M$5:$V$14,'Used Values'!$M$18:$V$27,'Used Values'!$M$31:$V$40,'Used Values'!$M$44:$V$53),MATCH(TabScenarios[[#This Row],[Scale (m)]],Inputs!$E$27:$E$36,0),MATCH(TabScenarios[[#This Row],[Resource (kW/m)]],Inputs!$F$27:$F$36,0),TabScenarios[[#This Row],[Shape key ('#)]]) -> 5016.35275 | X32: =TabScenarios[[#This Row],[Material mass (kg)]]*INDEX(Lookup_Materials!$E$10:$E$15,TabScenarios[[#This Row],[Material key ('#)]]) -> 12131635.2 | Y32: =INDEX('Used Values'!$M$58:$V$67,MATCH(TabScenarios[[#This Row],[Scale (m)]],Inputs!$E$27:$E$36,0),MATCH(TabScenarios[[#This Row],[Resource (kW/m)]],Inputs!$F$27:$F$36,0)) -> 1447.319692 | Z32: =TabScenarios[[#This Row],[Material mass (kg)]]*INDEX(Lookup_Materials!$F$10:$F$15,TabScenarios[[#This Row],[Material key ('#)]]) -> 47991321.6 | AA32: =_xlfn.IFNA('Used Values'!$C$4/TabScenarios[[#This Row],[LCOE (€/MWh)]],0) -> 0.1050574438 | AB32: =(TabScenarios[[#This Row],[Possible Av. Power (kW)]]-TabScenarios[[#This Row],[Av. Power (kW)]])/(TabScenarios[[#This Row],[Possible Av. Power (kW)]]-TabScenarios[[#This Row],[SOA Av. Power (kW)]])*('Used Values'!$C$6) -> 2.796473257 | AC32: =(TabScenarios[[#This Row],[Structure (€)]]-TabScenarios[[#This Row],[Possible Structure Cost (€)]])/(TabScenarios[[#This Row],[SOA Structure Cost (€)]]-TabScenarios[[#This Row],[Possible Structure Cost (€)]])*INDEX(Lookup_Materials!$H$10:$H$15,TabScenarios[[#This Row],[Material key ('#)]]) -> -0.3193456594 | AD32: =TabScenarios[[#This Row],[Power TA score]]+TabScenarios[[#This Row],[Cost TA score]] -> 2.477127598 | AE32: =IF(TabScenarios[[#This Row],[CA score]]<>"",TabScenarios[[#This Row],[CA score]]>=1,NA()) -> FALSE | AF32: =AND(TabScenarios[[#This Row],[Possible Av. Power (kW)]]-TabScenarios[[#This Row],[Av. Power (kW)]]>=0,TabScenarios[[#This Row],[Structure (€)]]-TabScenarios[[#This Row],[Possible Structure Cost (€)]]>=0) -> FALSE | AG32: =AND(TabScenarios[[#This Row],[SOA Av. Power (kW)]]-TabScenarios[[#This Row],[Av. Power (kW)]]>=0,TabScenarios[[#This Row],[Structure (€)]]-TabScenarios[[#This Row],[SOA Structure Cost (€)]]>=0,TabScenarios[[#This Row],[Possible (?)]]) -> FALSE | AH32: =AND(TabScenarios[[#This Row],[Rated power (kW)]]*Assumptions!$C$10<=TabScenarios[[#This Row],[PTO (€)]],TabScenarios[[#This Row],[Rated power (kW)]]*Assumptions!$C$11<=TabScenarios[[#This Row],[Mooring (€)]],TabScenarios[[#This Row],[Rated power (kW)]]*Assumptions!$C$12<=TabScenarios[[#This Row],[Connection (€)]],TabScenarios[[#This Row],[Rated power (kW)]]*Assumptions!$C$13<=TabScenarios[[#This Row],[Installation (€)]],TabScenarios[[#This Row],[Rated power (kW)]]*Assumptions!$C$14<=TabScenarios[[#This Row],[OPEX (€/a)]]) -> TRUE
A33: 30 | B33: =Inputs!$E$7 -> Heave | C33: Cuboid | D33: Steel | E33: 40 | F33: 65 | G33: 0.01 | H33: 3000000 | I33: =LinInterpolate(TabScenarios[[#This Row],[Resource (kW/m)]],Assumptions!$K$3:$S$3,Assumptions!$K$5:$S$5) -> 0.7258071258 | J33: =MATCH(TabScenarios[[#This Row],[Shape]],Inputs!$M$27:$M$30,0) -> 1 | K33: =TabScenarios[[#This Row],[Scale (m)]]^3 -> 64000 | L33: =MATCH(TabScenarios[[#This Row],[Material]],Inputs!$M$19:$M$23,0) -> 1 | M33: =TabScenarios[[#This Row],[Volume (m3)]]*INDEX(Lookup_Materials!$D$10:$D$15,TabScenarios[[#This Row],[Material key ('#)]])*(1+(TabScenarios[[#This Row],[Resource (kW/m)]]-Inputs!$F$21)/5*INDEX(Lookup_Materials!$G$10:$G$15,TabScenarios[[#This Row],[Material key ('#)]])) -> 17840640 | N33: =TabScenarios[[#This Row],[Scale (m)]]*TabScenarios[[#This Row],[Resource (kW/m)]]*TabScenarios[[#This Row],[Efficiency (%)]] -> 26 | O33: =TabScenarios[[#This Row],[Av. Power (kW)]]/Assumptions!$C$7 -> 86.66666667 | P33: =IF(TabScenarios[[#This Row],[Av. Power (kW)]]>0,(TabScenarios[[#This Row],[CAPEX (€)]]/(1-'Used Values'!$D$15))/(TabScenarios[[#This Row],[Av. Power (kW)]]*TabScenarios[[#This Row],[Availability (-)]]*8.766*'Used Values'!$C$7),NA()) -> 2855.580614 | Q33: =TabScenarios[[#This Row],[CAPEX (€)]]*'Used Values'!$C$10 -> 1020000 | R33: =TabScenarios[[#This Row],[CAPEX (€)]]*'Used Values'!$C$11 -> 810000 | S33: =TabScenarios[[#This Row],[CAPEX (€)]]*'Used Values'!$C$12 -> 360000 | T33: =TabScenarios[[#This Row],[CAPEX (€)]]*'Used Values'!$C$13 -> 420000 | U33: =TabScenarios[[#This Row],[CAPEX (€)]]*'Used Values'!$C$14 -> 390000 | V33: =TabScenarios[[#This Row],[CAPEX (€)]]*Assumptions!$C$5 -> 120000 | W33: =INDEX(('Used Values'!$M$5:$V$14,'Used Values'!$M$18:$V$27,'Used Values'!$M$31:$V$40,'Used Values'!$M$44:$V$53),MATCH(TabScenarios[[#This Row],[Scale (m)]],Inputs!$E$27:$E$36,0),MATCH(TabScenarios[[#This Row],[Resource (kW/m)]],Inputs!$F$27:$F$36,0),TabScenarios[[#This Row],[Shape key ('#)]]) -> 5016.35275 | X33: =TabScenarios[[#This Row],[Material mass (kg)]]*INDEX(Lookup_Materials!$E$10:$E$15,TabScenarios[[#This Row],[Material key ('#)]]) -> 12131635.2 | Y33: =INDEX('Used Values'!$M$58:$V$67,MATCH(TabScenarios[[#This Row],[Scale (m)]],Inputs!$E$27:$E$36,0),MATCH(TabScenarios[[#This Row],[Resource (kW/m)]],Inputs!$F$27:$F$36,0)) -> 1447.319692 | Z33: =TabScenarios[[#This Row],[Material mass (kg)]]*INDEX(Lookup_Materials!$F$10:$F$15,TabScenarios[[#This Row],[Material key ('#)]]) -> 47991321.6 | AA33: =_xlfn.IFNA('Used Values'!$C$4/TabScenarios[[#This Row],[LCOE (€/MWh)]],0) -> 0.0700382959 | AB33: =(TabScenarios[[#This Row],[Possible Av. Power (kW)]]-TabScenarios[[#This Row],[Av. Power (kW)]])/(TabScenarios[[#This Row],[Possible Av. Power (kW)]]-TabScenarios[[#This Row],[SOA Av. Power (kW)]])*('Used Values'!$C$6) -> 2.796473257 | AC33: =(TabScenarios[[#This Row],[Structure (€)]]-TabScenarios[[#This Row],[Possible Structure Cost (€)]])/(TabScenarios[[#This Row],[SOA Structure Cost (€)]]-TabScenarios[[#This Row],[Possible Structure Cost (€)]])*INDEX(Lookup_Materials!$H$10:$H$15,TabScenarios[[#This Row],[Material key ('#)]]) -> -0.3098642603 | AD33: =TabScenarios[[#This Row],[Power TA score]]+TabScenarios[[#This Row],[Cost TA score]] -> 2.486608997 | AE33: =IF(TabScenarios[[#This Row],[CA score]]<>"",TabScenarios[[#This Row],[CA score]]>=1,NA()) -> FALSE | AF33: =AND(TabScenarios[[#This Row],[Possible Av. Power (kW)]]-TabScenarios[[#This Row],[Av. Power (kW)]]>=0,TabScenarios[[#This Row],[Structure (€)]]-TabScenarios[[#This Row],[Possible Structure Cost (€)]]>=0) -> FALSE | AG33: =AND(TabScenarios[[#This Row],[SOA Av. Power (kW)]]-TabScenarios[[#This Row],[Av. Power (kW)]]>=0,TabScenarios[[#This Row],[Structure (€)]]-TabScenarios[[#This Row],[SOA Structure Cost (€)]]>=0,TabScenarios[[#This Row],[Possible (?)]]) -> FALSE | AH33: =AND(TabScenarios[[#This Row],[Rated power (kW)]]*Assumptions!$C$10<=TabScenarios[[#This Row],[PTO (€)]],TabScenarios[[#This Row],[Rated power (kW)]]*Assumptions!$C$11<=TabScenarios[[#This Row],[Mooring (€)]],TabScenarios[[#This Row],[Rated power (kW)]]*Assumptions!$C$12<=TabScenarios[[#This Row],[Connection (€)]],TabScenarios[[#This Row],[Rated power (kW)]]*Assumptions!$C$13<=TabScenarios[[#This Row],[Installation (€)]],TabScenarios[[#This Row],[Rated power (kW)]]*Assumptions!$C$14<=TabScenarios[[#This Row],[OPEX (€/a)]]) -> TRUE
A34: 31 | B34: =Inputs!$E$7 -> Heave | C34: Cuboid | D34: Steel | E34: 40 | F34: 65 | G34: 1 | H34: 2000000 | I34: =LinInterpolate(TabScenarios[[#This Row],[Resource (kW/m)]],Assumptions!$K$3:$S$3,Assumptions!$K$5:$S$5) -> 0.7258071258 | J34: =MATCH(TabScenarios[[#This Row],[Shape]],Inputs!$M$27:$M$30,0) -> 1 | K34: =TabScenarios[[#This Row],[Scale (m)]]^3 -> 64000 | L34: =MATCH(TabScenarios[[#This Row],[Material]],Inputs!$M$19:$M$23,0) -> 1 | M34: =TabScenarios[[#This Row],[Volume (m3)]]*INDEX(Lookup_Materials!$D$10:$D$15,TabScenarios[[#This Row],[Material key ('#)]])*(1+(TabScenarios[[#This Row],[Resource (kW/m)]]-Inputs!$F$21)/5*INDEX(Lookup_Materials!$G$10:$G$15,TabScenarios[[#This Row],[Material key ('#)]])) -> 17840640 | N34: =TabScenarios[[#This Row],[Scale (m)]]*TabScenarios[[#This Row],[Resource (kW/m)]]*TabScenarios[[#This Row],[Efficiency (%)]] -> 2600 | O34: =TabScenarios[[#This Row],[Av. Power (kW)]]/Assumptions!$C$7 -> 8666.666667 | P34: =IF(TabScenarios[[#This Row],[Av. Power (kW)]]>0,(TabScenarios[[#This Row],[CAPEX (€)]]/(1-'Used Values'!$D$15))/(TabScenarios[[#This Row],[Av. Power (kW)]]*TabScenarios[[#This Row],[Availability (-)]]*8.766*'Used Values'!$C$7),NA()) -> 19.03720409 | Q34: =TabScenarios[[#This Row],[CAPEX (€)]]*'Used Values'!$C$10 -> 680000 | R34: =TabScenarios[[#This Row],[CAPEX (€)]]*'Used Values'!$C$11 -> 540000 | S34: =TabScenarios[[#This Row],[CAPEX (€)]]*'Used Values'!$C$12 -> 240000 | T34: =TabScenarios[[#This Row],[CAPEX (€)]]*'Used Values'!$C$13 -> 280000 | U34: =TabScenarios[[#This Row],[CAPEX (€)]]*'Used Values'!$C$14 -> 260000 | V34: =TabScenarios[[#This Row],[CAPEX (€)]]*Assumptions!$C$5 -> 80000 | W34: =INDEX(('Used Values'!$M$5:$V$14,'Used Values'!$M$18:$V$27,'Used Values'!$M$31:$V$40,'Used Values'!$M$44:$V$53),MATCH(TabScenarios[[#This Row],[Scale (m)]],Inputs!$E$27:$E$36,0),MATCH(TabScenarios[[#This Row],[Resource (kW/m)]],Inputs!$F$27:$F$36,0),TabScenarios[[#This Row],[Shape key ('#)]]) -> 5016.35275 | X34: =TabScenarios[[#This Row],[Material mass (kg)]]*INDEX(Lookup_Materials!$E$10:$E$15,TabScenarios[[#This Row],[Material key ('#)]]) -> 12131635.2 | Y34: =INDEX('Used Values'!$M$58:$V$67,MATCH(TabScenarios[[#This Row],[Scale (m)]],Inputs!$E$27:$E$36,0),MATCH(TabScenarios[[#This Row],[Resource (kW/m)]],Inputs!$F$27:$F$36,0)) -> 1447.319692 | Z34: =TabScenarios[[#This Row],[Material mass (kg)]]*INDEX(Lookup_Materials!$F$10:$F$15,TabScenarios[[#This Row],[Material key ('#)]]) -> 47991321.6 | AA34: =_xlfn.IFNA('Used Values'!$C$4/TabScenarios[[#This Row],[LCOE (€/MWh)]],0) -> 10.50574438 | AB34: =(TabScenarios[[#This Row],[Possible Av. Power (kW)]]-TabScenarios[[#This Row],[Av. Power (kW)]])/(TabScenarios[[#This Row],[Possible Av. Power (kW)]]-TabScenarios[[#This Row],[SOA Av. Power (kW)]])*('Used Values'!$C$6) -> 1.354065771 | AC34: =(TabScenarios[[#This Row],[Structure (€)]]-TabScenarios[[#This Row],[Possible Structure Cost (€)]])/(TabScenarios[[#This Row],[SOA Structure Cost (€)]]-TabScenarios[[#This Row],[Possible Structure Cost (€)]])*INDEX(Lookup_Materials!$H$10:$H$15,TabScenarios[[#This Row],[Material key ('#)]]) -> -0.3193456594 | AD34: =TabScenarios[[#This Row],[Power TA score]]+TabScenarios[[#This Row],[Cost TA score]] -> 1.034720112 | AE34: =IF(TabScenarios[[#This Row],[CA score]]<>"",TabScenarios[[#This Row],[CA score]]>=1,NA()) -> TRUE | AF34: =AND(TabScenarios[[#This Row],[Possible Av. Power (kW)]]-TabScenarios[[#This Row],[Av. Power (kW)]]>=0,TabScenarios[[#This Row],[Structure (€)]]-TabScenarios[[#This Row],[Possible Structure Cost (€)]]>=0) -> FALSE | AG34: =AND(TabScenarios[[#This Row],[SOA Av. Power (kW)]]-TabScenarios[[#This Row],[Av. Power (kW)]]>=0,TabScenarios[[#This Row],[Structure (€)]]-TabScenarios[[#This Row],[SOA Structure Cost (€)]]>=0,TabScenarios[[#This Row],[Possible (?)]]) -> FALSE | AH34: =AND(TabScenarios[[#This Row],[Rated power (kW)]]*Assumptions!$C$10<=TabScenarios[[#This Row],[PTO (€)]],TabScenarios[[#This Row],[Rated power (kW)]]*Assumptions!$C$11<=TabScenarios[[#This Row],[Mooring (€)]],TabScenarios[[#This Row],[Rated power (kW)]]*Assumptions!$C$12<=TabScenarios[[#This Row],[Connection (€)]],TabScenarios[[#This Row],[Rated power (kW)]]*Assumptions!$C$13<=TabScenarios[[#This Row],[Installation (€)]],TabScenarios[[#This Row],[Rated power (kW)]]*Assumptions!$C$14<=TabScenarios[[#This Row],[OPEX (€/a)]]) -> FALSE
A35: 32 | B35: =Inputs!$E$7 -> Heave | C35: Cuboid | D35: Steel | E35: 40 | F35: 65 | G35: 1 | H35: 3000000 | I35: =LinInterpolate(TabScenarios[[#This Row],[Resource (kW/m)]],Assumptions!$K$3:$S$3,Assumptions!$K$5:$S$5) -> 0.7258071258 | J35: =MATCH(TabScenarios[[#This Row],[Shape]],Inputs!$M$27:$M$30,0) -> 1 | K35: =TabScenarios[[#This Row],[Scale (m)]]^3 -> 64000 | L35: =MATCH(TabScenarios[[#This Row],[Material]],Inputs!$M$19:$M$23,0) -> 1 | M35: =TabScenarios[[#This Row],[Volume (m3)]]*INDEX(Lookup_Materials!$D$10:$D$15,TabScenarios[[#This Row],[Material key ('#)]])*(1+(TabScenarios[[#This Row],[Resource (kW/m)]]-Inputs!$F$21)/5*INDEX(Lookup_Materials!$G$10:$G$15,TabScenarios[[#This Row],[Material key ('#)]])) -> 17840640 | N35: =TabScenarios[[#This Row],[Scale (m)]]*TabScenarios[[#This Row],[Resource (kW/m)]]*TabScenarios[[#This Row],[Efficiency (%)]] -> 2600 | O35: =TabScenarios[[#This Row],[Av. Power (kW)]]/Assumptions!$C$7 -> 8666.666667 | P35: =IF(TabScenarios[[#This Row],[Av. Power (kW)]]>0,(TabScenarios[[#This Row],[CAPEX (€)]]/(1-'Used Values'!$D$15))/(TabScenarios[[#This Row],[Av. Power (kW)]]*TabScenarios[[#This Row],[Availability (-)]]*8.766*'Used Values'!$C$7),NA()) -> 28.55580614 | Q35: =TabScenarios[[#This Row],[CAPEX (€)]]*'Used Values'!$C$10 -> 1020000 | R35: =TabScenarios[[#This Row],[CAPEX (€)]]*'Used Values'!$C$11 -> 810000 | S35: =TabScenarios[[#This Row],[CAPEX (€)]]*'Used Values'!$C$12 -> 360000 | T35: =TabScenarios[[#This Row],[CAPEX (€)]]*'Used Values'!$C$13 -> 420000 | U35: =TabScenarios[[#This Row],[CAPEX (€)]]*'Used Values'!$C$14 -> 390000 | V35: =TabScenarios[[#This Row],[CAPEX (€)]]*Assumptions!$C$5 -> 120000 | W35: =INDEX(('Used Values'!$M$5:$V$14,'Used Values'!$M$18:$V$27,'Used Values'!$M$31:$V$40,'Used Values'!$M$44:$V$53),MATCH(TabScenarios[[#This Row],[Scale (m)]],Inputs!$E$27:$E$36,0),MATCH(TabScenarios[[#This Row],[Resource (kW/m)]],Inputs!$F$27:$F$36,0),TabScenarios[[#This Row],[Shape key ('#)]]) -> 5016.35275 | X35: =TabScenarios[[#This Row],[Material mass (kg)]]*INDEX(Lookup_Materials!$E$10:$E$15,TabScenarios[[#This Row],[Material key ('#)]]) -> 12131635.2 | Y35: =INDEX('Used Values'!$M$58:$V$67,MATCH(TabScenarios[[#This Row],[Scale (m)]],Inputs!$E$27:$E$36,0),MATCH(TabScenarios[[#This Row],[Resource (kW/m)]],Inputs!$F$27:$F$36,0)) -> 1447.319692 | Z35: =TabScenarios[[#This Row],[Material mass (kg)]]*INDEX(Lookup_Materials!$F$10:$F$15,TabScenarios[[#This Row],[Material key ('#)]]) -> 47991321.6 | AA35: =_xlfn.IFNA('Used Values'!$C$4/TabScenarios[[#This Row],[LCOE (€/MWh)]],0) -> 7.00382959 | AB35: =(TabScenarios[[#This Row],[Possible Av. Power (kW)]]-TabScenarios[[#This Row],[Av. Power (kW)]])/(TabScenarios[[#This Row],[Possible Av. Power (kW)]]-TabScenarios[[#This Row],[SOA Av. Power (kW)]])*('Used Values'!$C$6) -> 1.354065771 | AC35: =(TabScenarios[[#This Row],[Structure (€)]]-TabScenarios[[#This Row],[Possible Structure Cost (€)]])/(TabScenarios[[#This Row],[SOA Structure Cost (€)]]-TabScenarios[[#This Row],[Possible Structure Cost (€)]])*INDEX(Lookup_Materials!$H$10:$H$15,TabScenarios[[#This Row],[Material key ('#)]]) -> -0.3098642603 | AD35: =TabScenarios[[#This Row],[Power TA score]]+TabScenarios[[#This Row],[Cost TA score]] -> 1.044201511 | AE35: =IF(TabScenarios[[#This Row],[CA score]]<>"",TabScenarios[[#This Row],[CA score]]>=1,NA()) -> TRUE | AF35: =AND(TabScenarios[[#This Row],[Possible Av. Power (kW)]]-TabScenarios[[#This Row],[Av. Power (kW)]]>=0,TabScenarios[[#This Row],[Structure (€)]]-TabScenarios[[#This Row],[Possible Structure Cost (€)]]>=0) -> FALSE | AG35: =AND(TabScenarios[[#This Row],[SOA Av. Power (kW)]]-TabScenarios[[#This Row],[Av. Power (kW)]]>=0,TabScenarios[[#This Row],[Structure (€)]]-TabScenarios[[#This Row],[SOA Structure Cost (€)]]>=0,TabScenarios[[#This Row],[Possible (?)]]) -> FALSE | AH35: =AND(TabScenarios[[#This Row],[Rated power (kW)]]*Assumptions!$C$10<=TabScenarios[[#This Row],[PTO (€)]],TabScenarios[[#This Row],[Rated power (kW)]]*Assumptions!$C$11<=TabScenarios[[#This Row],[Mooring (€)]],TabScenarios[[#This Row],[Rated power (kW)]]*Assumptions!$C$12<=TabScenarios[[#This Row],[Connection (€)]],TabScenarios[[#This Row],[Rated power (kW)]]*Assumptions!$C$13<=TabScenarios[[#This Row],[Installation (€)]],TabScenarios[[#This Row],[Rated power (kW)]]*Assumptions!$C$14<=TabScenarios[[#This Row],[OPEX (€/a)]]) -> FALSE

Sheet Output_Top10
A1: 1 | B1: 2 | C1: 3 | D1: 4 | E1: 5 | F1: 6 | G1: 7 | H1: 8 | I1: 9 | J1: 10 | K1: 11 | L1: 12 | M1: 13 | N1: 14 | O1: 15
B2: Filters | C2: No. of scenarios | D2: As % of total | E2: User control | H2: TA summary
B3: No filters | C3: =Inputs!K37 -> 32 | D3: =C3/$C$3 -> 1 | H3: Power TA score | J3: Cost TA score
B4: Attractive?: | C4: =COUNTIFS(TabScenarios[Attractive (?)],"TRUE") -> 16 | D4: =C4/$C$3 -> 0.5 | F4: 1 | H4: Max. TA score: | I4: =_xlfn.AGGREGATE(4,6,TabScenarios[Power TA score]) -> 2.826477779 | J4: Max. TA score: | K4: =_xlfn.AGGREGATE(4,6,TabScenarios[Cost TA score]) -> 22.79318846
B5: Attractive & possible?: | C5: =COUNTIFS(TabScenarios[Attractive (?)],"TRUE",TabScenarios[Possible (?)],"TRUE") -> 2 | D5: =C5/$C$3 -> 0.0625 | H5: Min TA score: | I5: =_xlfn.AGGREGATE(5,6,TabScenarios[Power TA score]) -> -0.950850304 | J5: Min TA score: | K5: =_xlfn.AGGREGATE(5,6,TabScenarios[Cost TA score]) -> -0.3193456594
B6: Attractive & achievable?: | C6: =COUNTIFS(TabScenarios[Attractive (?)],"TRUE",TabScenarios[Achievable (?)],"TRUE") -> 0 | D6: =C6/$C$3 -> 0
B8: Top 10 (CA score) | C8: Scenarios | J8: Scores | N8: Check
B9: Key | C9: Degree of freedom | D9: Shape | E9: Material | F9: Scale (m) | G9: Av. resource (kW/m) | H9: Av. efficiency (-) | I9: CAPEX (€) | J9: CA score | K9: Power TA score | L9: Cost TA score | M9: TA score (combined) | N9: Meets minimums?
C21: > Higher score = more attractive and more achievable | H21: > Higher score = more attractive and more achievable

Sheet Assumptions
B2: Assumptions | C2: Input value | E2: τ | J2: Availability
B3: Lifetime 'tlife' (yrs): | C3: 20 | E3: tlife/r | F3: 0.05 | G3: 0.1 | H3: 0.15 | J3: Resource (kW/m): | K3: 2.8549 | L3: 9.15 | M3: 17.1974 | N3: 26.6262 | O3: 38.3921 | P3: 54.5426 | Q3: 80.572 | R3: 90 | S3: 100
B4: Discount rate 'r': | C4: 0.1 | E4: 15 | F4: 10.37965804 | G4: 7.606079506 | H4: 5.847370099 | J4: Accessability (-): | K4: 0.8 | L4: 0.7 | M4: 0.6 | N4: 0.5 | O4: 0.4 | P4: 0.3 | Q4: 0.2 | R4: 0.1767 | S4: 0.1574
B5: OPEX (% of CAPEX per year): | C5: 0.04 | E5: 20 | F5: 12.46221034 | G5: 8.51356372 | H5: 6.259331474 | J5: Availability (-): | K5: 0.96 | L5: 0.95 | M5: 0.93 | N5: 0.9 | O5: 0.85 | P5: 0.77 | Q5: 0.66 | R5: 0.63 | S5: 0.61
B6: Resource penalty (per 5 kW/m): | C6: 0 | E6: 25 | F6: 14.09394457 | G6: 9.077040018 | H6: 6.464149085
B7: Capacity factor: | C7: 0.3
B9: Cost centre minimums | C9: €/kW
B10: PTO: | C10: 600
B11: Mooring: | C11: 220
B12: Connection: | C12: 280
B13: Installation: | C13: 260
B14: O&M (per year): | C14: 75
B16: Improvement potential | C16: β
B17: Low | C17: 1
B18: Medium | C18: 2
B19: High | C19: 3
B21: Shape options | C21: Diplaced Volume/Total Volume
B22: Cuboid | C22: 0.5
B23: HCylinder | C23: 0.5
B24: VCylinder | C24: 0.5
B25: Sphere | C25: 0.5

Sheet Used Values
B3: Universal Inputs | C3: Used Value | F3: Shape key: 1 | G3: Column (#) | H3: Scale (m) | I3: Displaced volume [m3] | J3: Possible Threshold: Av. Power (kW) @ Resource Level (kW/m)
B4: Target LCOE (€/MWh): | C4: =IF(ISBLANK(Inputs!E5),Inputs!D5,Inputs!E5) -> 200 | J4: =Lookup_Performance!$C$4 -> 15 | K4: =Lookup_Performance!$C$31 -> 45 | L4: =Lookup_Performance!$C$58 -> 75 | M4: =Inputs!$F$27 -> 55 | N4: =Inputs!$F$28 -> 65 | O4: =Inputs!$F$29 ->  | P4: =Inputs!$F$30 ->  | Q4: =Inputs!$F$31 ->  | R4: =Inputs!$F$32 ->  | S4: =Inputs!$F$33 ->  | T4: =Inputs!$F$34 ->  | U4: =Inputs!$F$35 ->  | V4: =Inputs!$F$36 -> 
B5: Degree of freedom: | C5: =Inputs!$E$7 -> Heave | F5: =Assumptions!$B$22&"-"&'Used Values'!$C$5 -> Cuboid-Heave | G5: =MATCH(F5,Lookup_Performance!$B$6:$BT$6,0) -> 7 | H5: =Inputs!E27 -> 10 | I5: =H5^3*Assumptions!$C$22 -> 500 | J5: =LinInterpolate($I5,INDEX(Lookup_Performance!$B$8:$BT$29,N(IF(1,,{1,2,3,4,5,6,7,8,9,10})),$G5+1),INDEX(Lookup_Performance!$B$8:$BT$29,N(IF(1,,{1,2,3,4,5,6,7,8,9,10})),$G5),0)/1000 -> 257.5861596 | K5: =LinInterpolate($I5,INDEX(Lookup_Performance!$B$35:$BT$56,N(IF(1,,{1,2,3,4,5,6,7,8,9,10})),$G5+1),INDEX(Lookup_Performance!$B$35:$BT$56,N(IF(1,,{1,2,3,4,5,6,7,8,9,10})),$G5),0)/1000 -> 402.000296 | L5: =LinInterpolate($I5,INDEX(Lookup_Performance!$B$62:$BT$83,N(IF(1,,{1,2,3,4,5,6,7,8,9,10})),$G5+1),INDEX(Lookup_Performance!$B$62:$BT$83,N(IF(1,,{1,2,3,4,5,6,7,8,9,10})),$G5),0)/1000 -> 496.61737 | M5: =LinInterpolate(M$4,$J$4:$L$4,$J5:$L5) -> 433.5393207 | N5: =LinInterpolate(N$4,$J$4:$L$4,$J5:$L5) -> 465.0783453 | V5: =LinInterpolate(V$4,$J$4:$L$4,$J5:$L5) -> 
B6: Energy capture β: | C6: =INDEX(Assumptions!$C$17:$C$19,MATCH(Inputs!$E$8,Assumptions!$B$17:$B$19,0)) -> 2 | F6: =Assumptions!$B$22&"-"&'Used Values'!$C$5 -> Cuboid-Heave | G6: =MATCH(F6,Lookup_Performance!$B$6:$BT$6,0) -> 7 | H6: =Inputs!E28 -> 40 | I6: =H6^3*Assumptions!$C$22 -> 32000 | J6: =LinInterpolate($I6,INDEX(Lookup_Performance!$B$8:$BT$29,N(IF(1,,{1,2,3,4,5,6,7,8,9,10})),$G6+1),INDEX(Lookup_Performance!$B$8:$BT$29,N(IF(1,,{1,2,3,4,5,6,7,8,9,10})),$G6),0)/1000 -> 1613.02578 | K6: =LinInterpolate($I6,INDEX(Lookup_Performance!$B$35:$BT$56,N(IF(1,,{1,2,3,4,5,6,7,8,9,10})),$G6+1),INDEX(Lookup_Performance!$B$35:$BT$56,N(IF(1,,{1,2,3,4,5,6,7,8,9,10})),$G6),0)/1000 -> 2949.556492 | L6: =LinInterpolate($I6,INDEX(Lookup_Performance!$B$62:$BT$83,N(IF(1,,{1,2,3,4,5,6,7,8,9,10})),$G6+1),INDEX(Lookup_Performance!$B$62:$BT$83,N(IF(1,,{1,2,3,4,5,6,7,8,9,10})),$G6),0)/1000 -> 6049.750879 | M6: =LinInterpolate(M$4,$J$4:$L$4,$J6:$L6) -> 3982.954621 | N6: =LinInterpolate(N$4,$J$4:$L$4,$J6:$L6) -> 5016.35275
B7: τ: | C7: =INDEX(Assumptions!$F$4:$H$6,MATCH(Assumptions!$C$3,Assumptions!$E$4:$E$6),MATCH(Assumptions!$C$4,Assumptions!$F$3:$H$3)) -> 8.51356372 | F7: =Assumptions!$B$22&"-"&'Used Values'!$C$5 -> Cuboid-Heave | G7: =MATCH(F7,Lookup_Performance!$B$6:$BT$6,0) -> 7 | H7: =Inputs!E29 ->  | I7: =H7^3*Assumptions!$C$22 ->  | J7: =LinInterpolate($I7,INDEX(Lookup_Performance!$B$8:$BT$29,N(IF(1,,{1,2,3,4,5,6,7,8,9,10})),$G7+1),INDEX(Lookup_Performance!$B$8:$BT$29,N(IF(1,,{1,2,3,4,5,6,7,8,9,10})),$G7),0)/1000 ->  | K7: =LinInterpolate($I7,INDEX(Lookup_Performance!$B$35:$BT$56,N(IF(1,,{1,2,3,4,5,6,7,8,9,10})),$G7+1),INDEX(Lookup_Performance!$B$35:$BT$56,N(IF(1,,{1,2,3,4,5,6,7,8,9,10})),$G7),0)/1000 ->  | L7: =LinInterpolate($I7,INDEX(Lookup_Performance!$B$62:$BT$83,N(IF(1,,{1,2,3,4,5,6,7,8,9,10})),$G7+1),INDEX(Lookup_Performance!$B$62:$BT$83,N(IF(1,,{1,2,3,4,5,6,7,8,9,10})),$G7),0)/1000 ->  | M7: =LinInterpolate(M$4,$J$4:$L$4,$J7:$L7) -> 
F8: =Assumptions!$B$22&"-"&'Used Values'!$C$5 -> Cuboid-Heave | G8: =MATCH(F8,Lookup_Performance!$B$6:$BT$6,0) -> 7 | H8: =Inputs!E30 ->  | I8: =H8^3*Assumptions!$C$22 ->  | J8: =LinInterpolate($I8,INDEX(Lookup_Performance!$B$8:$BT$29,N(IF(1,,{1,2,3,4,5,6,7,8,9,10})),$G8+1),INDEX(Lookup_Performance!$B$8:$BT$29,N(IF(1,,{1,2,3,4,5,6,7,8,9,10})),$G8),0)/1000 ->  | K8: =LinInterpolate($I8,INDEX(Lookup_Performance!$B$35:$BT$56,N(IF(1,,{1,2,3,4,5,6,7,8,9,10})),$G8+1),INDEX(Lookup_Performance!$B$35:$BT$56,N(IF(1,,{1,2,3,4,5,6,7,8,9,10})),$G8),0)/1000 ->  | L8: =LinInterpolate($I8,INDEX(Lookup_Performance!$B$62:$BT$83,N(IF(1,,{1,2,3,4,5,6,7,8,9,10})),$G8+1),INDEX(Lookup_Performance!$B$62:$BT$83,N(IF(1,,{1,2,3,4,5,6,7,8,9,10})),$G8),0)/1000 ->  | M8: =LinInterpolate(M$4,$J$4:$L$4,$J8:$L8) -> 
B9: Breakdown: Used Values | C9: % of CAPEX | D9: % of Expenditure | F9: =Assumptions!$B$22&"-"&'Used Values'!$C$5 -> Cuboid-Heave | G9: =MATCH(F9,Lookup_Performance!$B$6:$BT$6,0) -> 7 | H9: =Inputs!E31 ->  | I9: =H9^3*Assumptions!$C$22 ->  | J9: =LinInterpolate($I9,INDEX(Lookup_Performance!$B$8:$BT$29,N(IF(1,,{1,2,3,4,5,6,7,8,9,10})),$G9+1),INDEX(Lookup_Performance!$B$8:$BT$29,N(IF(1,,{1,2,3,4,5,6,7,8,9,10})),$G9),0)/1000 ->  | K9: =LinInterpolate($I9,INDEX(Lookup_Performance!$B$35:$BT$56,N(IF(1,,{1,2,3,4,5,6,7,8,9,10})),$G9+1),INDEX(Lookup_Performance!$B$35:$BT$56,N(IF(1,,{1,2,3,4,5,6,7,8,9,10})),$G9),0)/1000 ->  | L9: =LinInterpolate($I9,INDEX(Lookup_Performance!$B$62:$BT$83,N(IF(1,,{1,2,3,4,5,6,7,8,9,10})),$G9+1),INDEX(Lookup_Performance!$B$62:$BT$83,N(IF(1,,{1,2,3,4,5,6,7,8,9,10})),$G9),0)/1000 ->  | Q9: =LinInterpolate(Q$4,$J$4:$L$4,$J9:$L9) -> 
B10: Structure: | C10: =IF(Inputs!$E$15=1,Inputs!E10,Inputs!D10) -> 0.34 | D10: =C10*(1-$D$15) -> 0.2536286523 | F10: =Assumptions!$B$22&"-"&'Used Values'!$C$5 -> Cuboid-Heave | G10: =MATCH(F10,Lookup_Performance!$B$6:$BT$6,0) -> 7 | H10: =Inputs!E32 ->  | I10: =H10^3*Assumptions!$C$22 ->  | J10: =LinInterpolate($I10,INDEX(Lookup_Performance!$B$8:$BT$29,N(IF(1,,{1,2,3,4,5,6,7,8,9,10})),$G10+1),INDEX(Lookup_Performance!$B$8:$BT$29,N(IF(1,,{1,2,3,4,5,6,7,8,9,10})),$G10),0)/1000 ->  | K10: =LinInterpolate($I10,INDEX(Lookup_Performance!$B$35:$BT$56,N(IF(1,,{1,2,3,4,5,6,7,8,9,10})),$G10+1),INDEX(Lookup_Performance!$B$35:$BT$56,N(IF(1,,{1,2,3,4,5,6,7,8,9,10})),$G10),0)/1000 ->  | L10: =LinInterpolate($I10,INDEX(Lookup_Performance!$B$62:$BT$83,N(IF(1,,{1,2,3,4,5,6,7,8,9,10})),$G10+1),INDEX(Lookup_Performance!$B$62:$BT$83,N(IF(1,,{1,2,3,4,5,6,7,8,9,10})),$G10),0)/1000 -> 
B11: PTO: | C11: =IF(Inputs!$E$15=1,Inputs!E11,Inputs!D11) -> 0.27 | D11: =C11*(1-$D$15) -> 0.2014109886 | F11: =Assumptions!$B$22&"-"&'Used Values'!$C$5 -> Cuboid-Heave | G11: =MATCH(F11,Lookup_Performance!$B$6:$BT$6,0) -> 7 | H11: =Inputs!E33 ->  | I11: =H11^3*Assumptions!$C$22 ->  | J11: =LinInterpolate($I11,INDEX(Lookup_Performance!$B$8:$BT$29,N(IF(1,,{1,2,3,4,5,6,7,8,9,10})),$G11+1),INDEX(Lookup_Performance!$B$8:$BT$29,N(IF(1,,{1,2,3,4,5,6,7,8,9,10})),$G11),0)/1000 ->  | K11: =LinInterpolate($I11,INDEX(Lookup_Performance!$B$35:$BT$56,N(IF(1,,{1,2,3,4,5,6,7,8,9,10})),$G11+1),INDEX(Lookup_Performance!$B$35:$BT$56,N(IF(1,,{1,2,3,4,5,6,7,8,9,10})),$G11),0)/1000 ->  | L11: =LinInterpolate($I11,INDEX(Lookup_Performance!$B$62:$BT$83,N(IF(1,,{1,2,3,4,5,6,7,8,9,10})),$G11+1),INDEX(Lookup_Performance!$B$62:$BT$83,N(IF(1,,{1,2,3,4,5,6,7,8,9,10})),$G11),0)/1000 -> 
B12: Moorings: | C12: =IF(Inputs!$E$15=1,Inputs!E12,Inputs!D12) -> 0.12 | D12: =C12*(1-$D$15) -> 0.08951599493 | F12: =Assumptions!$B$22&"-"&'Used Values'!$C$5 -> Cuboid-Heave | G12: =MATCH(F12,Lookup_Performance!$B$6:$BT$6,0) -> 7 | H12: =Inputs!E34 ->  | I12: =H12^3*Assumptions!$C$22 ->  | J12: =LinInterpolate($I12,INDEX(Lookup_Performance!$B$8:$BT$29,N(IF(1,,{1,2,3,4,5,6,7,8,9,10})),$G12+1),INDEX(Lookup_Performance!$B$8:$BT$29,N(IF(1,,{1,2,3,4,5,6,7,8,9,10})),$G12),0)/1000 ->  | K12: =LinInterpolate($I12,INDEX(Lookup_Performance!$B$35:$BT$56,N(IF(1,,{1,2,3,4,5,6,7,8,9,10})),$G12+1),INDEX(Lookup_Performance!$B$35:$BT$56,N(IF(1,,{1,2,3,4,5,6,7,8,9,10})),$G12),0)/1000 ->  | L12: =LinInterpolate($I12,INDEX(Lookup_Performance!$B$62:$BT$83,N(IF(1,,{1,2,3,4,5,6,7,8,9,10})),$G12+1),INDEX(Lookup_Performance!$B$62:$BT$83,N(IF(1,,{1,2,3,4,5,6,7,8,9,10})),$G12),0)/1000 -> 
B13: Connection: | C13: =IF(Inputs!$E$15=1,Inputs!E13,Inputs!D13) -> 0.14 | D13: =C13*(1-$D$15) -> 0.1044353274 | F13: =Assumptions!$B$22&"-"&'Used Values'!$C$5 -> Cuboid-Heave | G13: =MATCH(F13,Lookup_Performance!$B$6:$BT$6,0) -> 7 | H13: =Inputs!E35 ->  | I13: =H13^3*Assumptions!$C$22 ->  | J13: =LinInterpolate($I13,INDEX(Lookup_Performance!$B$8:$BT$29,N(IF(1,,{1,2,3,4,5,6,7,8,9,10})),$G13+1),INDEX(Lookup_Performance!$B$8:$BT$29,N(IF(1,,{1,2,3,4,5,6,7,8,9,10})),$G13),0)/1000 ->  | K13: =LinInterpolate($I13,INDEX(Lookup_Performance!$B$35:$BT$56,N(IF(1,,{1,2,3,4,5,6,7,8,9,10})),$G13+1),INDEX(Lookup_Performance!$B$35:$BT$56,N(IF(1,,{1,2,3,4,5,6,7,8,9,10})),$G13),0)/1000 ->  | L13: =LinInterpolate($I13,INDEX(Lookup_Performance!$B$62:$BT$83,N(IF(1,,{1,2,3,4,5,6,7,8,9,10})),$G13+1),INDEX(Lookup_Performance!$B$62:$BT$83,N(IF(1,,{1,2,3,4,5,6,7,8,9,10})),$G13),0)/1000 -> 
B14: Installation: | C14: =IF(Inputs!$E$15=1,Inputs!E14,Inputs!D14) -> 0.13 | D14: =C14*(1-$D$15) -> 0.09697566117 | F14: =Assumptions!$B$22&"-"&'Used Values'!$C$5 -> Cuboid-Heave | G14: =MATCH(F14,Lookup_Performance!$B$6:$BT$6,0) -> 7 | H14: =Inputs!E36 ->  | I14: =H14^3*Assumptions!$C$22 ->  | J14: =LinInterpolate($I14,INDEX(Lookup_Performance!$B$8:$BT$29,N(IF(1,,{1,2,3,4,5,6,7,8,9,10})),$G14+1),INDEX(Lookup_Performance!$B$8:$BT$29,N(IF(1,,{1,2,3,4,5,6,7,8,9,10})),$G14),0)/1000 ->  | K14: =LinInterpolate($I14,INDEX(Lookup_Performance!$B$35:$BT$56,N(IF(1,,{1,2,3,4,5,6,7,8,9,10})),$G14+1),INDEX(Lookup_Performance!$B$35:$BT$56,N(IF(1,,{1,2,3,4,5,6,7,8,9,10})),$G14),0)/1000 ->  | L14: =LinInterpolate($I14,INDEX(Lookup_Performance!$B$62:$BT$83,N(IF(1,,{1,2,3,4,5,6,7,8,9,10})),$G14+1),INDEX(Lookup_Performance!$B$62:$BT$83,N(IF(1,,{1,2,3,4,5,6,7,8,9,10})),$G14),0)/1000 -> 
B15: O&M: | D15: =Assumptions!$C$5*$C$7/(1+Assumptions!$C$5*$C$7) -> 0.2540333756
B16: Total: | C16: =SUM(C10:C15) -> 1 | D16: =SUM(D10:D15) -> 1 | F16: Shape key: 2 | G16: Column (#) | H16: Scale (m) | I16: Displaced volume [m3] | J16: Possible Threshold: Av. Power (kW) @ Resource Level (kW/m)
J17: 0 | K17: =Lookup_Performance!$C$4 -> 15 | L17: =Lookup_Performance!$C$58 -> 75 | M17: =Inputs!$F$27 -> 55 | N17: =Inputs!$F$28 -> 65 | O17: =Inputs!$F$29 ->  | P17: =Inputs!$F$30 ->  | Q17: =Inputs!$F$31 ->  | R17: =Inputs!$F$32 ->  | S17: =Inputs!$F$33 ->  | T17: =Inputs!$F$34 ->  | U17: =Inputs!$F$35 ->  | V17: =Inputs!$F$36 -> 
F18: =Assumptions!$B$23&"-"&'Used Values'!$C$5 -> HCylinder-Heave | G18: =MATCH(F18,Lookup_Performance!$B$6:$BT$6,0) -> 25 | H18: =Inputs!E27 -> 10 | I18: =H18^3*Assumptions!$C$23 -> 500 | J18: 0 | K18: =LinInterpolate($I18,INDEX(Lookup_Performance!$B$8:$BT$29,N(IF(1,,{1,2,3,4,5,6,7,8,9,10})),$G18+1),INDEX(Lookup_Performance!$B$8:$BT$29,N(IF(1,,{1,2,3,4,5,6,7,8,9,10})),$G18),0)/1000 -> 312.348471 | L18: =LinInterpolate($I18,INDEX(Lookup_Performance!$B$62:$BT$83,N(IF(1,,{1,2,3,4,5,6,7,8,9,10})),$G18+1),INDEX(Lookup_Performance!$B$62:$BT$83,N(IF(1,,{1,2,3,4,5,6,7,8,9,10})),$G18),0)/1000 -> 560.2826341 | M18: =LinInterpolate(M$17,$J$17:$L$17,$J18:$L18) -> 477.637913 | N18: =LinInterpolate(N$17,$J$17:$L$17,$J18:$L18) -> 518.9602736
F19: =Assumptions!$B$23&"-"&'Used Values'!$C$5 -> HCylinder-Heave | G19: =MATCH(F19,Lookup_Performance!$B$6:$BT$6,0) -> 25 | H19: =Inputs!E28 -> 40 | I19: =H19^3*Assumptions!$C$23 -> 32000 | J19: 0 | K19: =LinInterpolate($I19,INDEX(Lookup_Performance!$B$8:$BT$29,N(IF(1,,{1,2,3,4,5,6,7,8,9,10})),$G19+1),INDEX(Lookup_Performance!$B$8:$BT$29,N(IF(1,,{1,2,3,4,5,6,7,8,9,10})),$G19),0)/1000 -> 855.7714939 | L19: =LinInterpolate($I19,INDEX(Lookup_Performance!$B$62:$BT$83,N(IF(1,,{1,2,3,4,5,6,7,8,9,10})),$G19+1),INDEX(Lookup_Performance!$B$62:$BT$83,N(IF(1,,{1,2,3,4,5,6,7,8,9,10})),$G19),0)/1000 -> 6354.122909 | M19: =LinInterpolate(M$17,$J$17:$L$17,$J19:$L19) -> 4521.339104 | N19: 5437.731006
F20: =Assumptions!$B$23&"-"&'Used Values'!$C$5 -> HCylinder-Heave | G20: =MATCH(F20,Lookup_Performance!$B$6:$BT$6,0) -> 25 | H20: =Inputs!E29 ->  | I20: =H20^3*Assumptions!$C$23 ->  | J20: 0 | K20: =LinInterpolate($I20,INDEX(Lookup_Performance!$B$8:$BT$29,N(IF(1,,{1,2,3,4,5,6,7,8,9,10})),$G20+1),INDEX(Lookup_Performance!$B$8:$BT$29,N(IF(1,,{1,2,3,4,5,6,7,8,9,10})),$G20),0)/1000 ->  | L20: =LinInterpolate($I20,INDEX(Lookup_Performance!$B$62:$BT$83,N(IF(1,,{1,2,3,4,5,6,7,8,9,10})),$G20+1),INDEX(Lookup_Performance!$B$62:$BT$83,N(IF(1,,{1,2,3,4,5,6,7,8,9,10})),$G20),0)/1000 -> 
F21: =Assumptions!$B$23&"-"&'Used Values'!$C$5 -> HCylinder-Heave | G21: =MATCH(F21,Lookup_Performance!$B$6:$BT$6,0) -> 25 | H21: =Inputs!E30 ->  | I21: =H21^3*Assumptions!$C$23 ->  | J21: 0 | K21: =LinInterpolate($I21,INDEX(Lookup_Performance!$B$8:$BT$29,N(IF(1,,{1,2,3,4,5,6,7,8,9,10})),$G21+1),INDEX(Lookup_Performance!$B$8:$BT$29,N(IF(1,,{1,2,3,4,5,6,7,8,9,10})),$G21),0)/1000 ->  | L21: =LinInterpolate($I21,INDEX(Lookup_Performance!$B$62:$BT$83,N(IF(1,,{1,2,3,4,5,6,7,8,9,10})),$G21+1),INDEX(Lookup_Performance!$B$62:$BT$83,N(IF(1,,{1,2,3,4,5,6,7,8,9,10})),$G21),0)/1000 -> 
F22: =Assumptions!$B$23&"-"&'Used Values'!$C$5 -> HCylinder-Heave | G22: =MATCH(F22,Lookup_Performance!$B$6:$BT$6,0) -> 25 | H22: =Inputs!E31 ->  | I22: =H22^3*Assumptions!$C$23 ->  | J22: 0 | K22: =LinInterpolate($I22,INDEX(Lookup_Performance!$B$8:$BT$29,N(IF(1,,{1,2,3,4,5,6,7,8,9,10})),$G22+1),INDEX(Lookup_Performance!$B$8:$BT$29,N(IF(1,,{1,2,3,4,5,6,7,8,9,10})),$G22),0)/1000 ->  | L22: =LinInterpolate($I22,INDEX(Lookup_Performance!$B$62:$BT$83,N(IF(1,,{1,2,3,4,5,6,7,8,9,10})),$G22+1),INDEX(Lookup_Performance!$B$62:$BT$83,N(IF(1,,{1,2,3,4,5,6,7,8,9,10})),$G22),0)/1000 -> 
F23: =Assumptions!$B$23&"-"&'Used Values'!$C$5 -> HCylinder-Heave | G23: =MATCH(F23,Lookup_Performance!$B$6:$BT$6,0) -> 25 | H23: =Inputs!E32 ->  | I23: =H23^3*Assumptions!$C$23 ->  | J23: 0 | K23: =LinInterpolate($I23,INDEX(Lookup_Performance!$B$8:$BT$29,N(IF(1,,{1,2,3,4,5,6,7,8,9,10})),$G23+1),INDEX(Lookup_Performance!$B$8:$BT$29,N(IF(1,,{1,2,3,4,5,6,7,8,9,10})),$G23),0)/1000 ->  | L23: =LinInterpolate($I23,INDEX(Lookup_Performance!$B$62:$BT$83,N(IF(1,,{1,2,3,4,5,6,7,8,9,10})),$G23+1),INDEX(Lookup_Performance!$B$62:$BT$83,N(IF(1,,{1,2,3,4,5,6,7,8,9,10})),$G23),0)/1000 -> 
F24: =Assumptions!$B$23&"-"&'Used Values'!$C$5 -> HCylinder-Heave | G24: =MATCH(F24,Lookup_Performance!$B$6:$BT$6,0) -> 25 | H24: =Inputs!E33 ->  | I24: =H24^3*Assumptions!$C$23 ->  | J24: 0 | K24: =LinInterpolate($I24,INDEX(Lookup_Performance!$B$8:$BT$29,N(IF(1,,{1,2,3,4,5,6,7,8,9,10})),$G24+1),INDEX(Lookup_Performance!$B$8:$BT$29,N(IF(1,,{1,2,3,4,5,6,7,8,9,10})),$G24),0)/1000 ->  | L24: =LinInterpolate($I24,INDEX(Lookup_Performance!$B$62:$BT$83,N(IF(1,,{1,2,3,4,5,6,7,8,9,10})),$G24+1),INDEX(Lookup_Performance!$B$62:$BT$83,N(IF(1,,{1,2,3,4,5,6,7,8,9,10})),$G24),0)/1000 -> 
F25: =Assumptions!$B$23&"-"&'Used Values'!$C$5 -> HCylinder-Heave | G25: =MATCH(F25,Lookup_Performance!$B$6:$BT$6,0) -> 25 | H25: =Inputs!E34 ->  | I25: =H25^3*Assumptions!$C$23 ->  | J25: 0 | K25: =LinInterpolate($I25,INDEX(Lookup_Performance!$B$8:$BT$29,N(IF(1,,{1,2,3,4,5,6,7,8,9,10})),$G25+1),INDEX(Lookup_Performance!$B$8:$BT$29,N(IF(1,,{1,2,3,4,5,6,7,8,9,10})),$G25),0)/1000 ->  | L25: =LinInterpolate($I25,INDEX(Lookup_Performance!$B$62:$BT$83,N(IF(1,,{1,2,3,4,5,6,7,8,9,10})),$G25+1),INDEX(Lookup_Performance!$B$62:$BT$83,N(IF(1,,{1,2,3,4,5,6,7,8,9,10})),$G25),0)/1000 -> 
F26: =Assumptions!$B$23&"-"&'Used Values'!$C$5 -> HCylinder-Heave | G26: =MATCH(F26,Lookup_Performance!$B$6:$BT$6,0) -> 25 | H26: =Inputs!E35 ->  | I26: =H26^3*Assumptions!$C$23 ->  | J26: 0 | K26: =LinInterpolate($I26,INDEX(Lookup_Performance!$B$8:$BT$29,N(IF(1,,{1,2,3,4,5,6,7,8,9,10})),$G26+1),INDEX(Lookup_Performance!$B$8:$BT$29,N(IF(1,,{1,2,3,4,5,6,7,8,9,10})),$G26),0)/1000 ->  | L26: =LinInterpolate($I26,INDEX(Lookup_Performance!$B$62:$BT$83,N(IF(1,,{1,2,3,4,5,6,7,8,9,10})),$G26+1),INDEX(Lookup_Performance!$B$62:$BT$83,N(IF(1,,{1,2,3,4,5,6,7,8,9,10})),$G26),0)/1000 -> 
F27: =Assumptions!$B$23&"-"&'Used Values'!$C$5 -> HCylinder-Heave | G27: =MATCH(F27,Lookup_Performance!$B$6:$BT$6,0) -> 25 | H27: =Inputs!E36 ->  | I27: =H27^3*Assumptions!$C$23 ->  | J27: 0 | K27: =LinInterpolate($I27,INDEX(Lookup_Performance!$B$8:$BT$29,N(IF(1,,{1,2,3,4,5,6,7,8,9,10})),$G27+1),INDEX(Lookup_Performance!$B$8:$BT$29,N(IF(1,,{1,2,3,4,5,6,7,8,9,10})),$G27),0)/1000 ->  | L27: =LinInterpolate($I27,INDEX(Lookup_Performance!$B$62:$BT$83,N(IF(1,,{1,2,3,4,5,6,7,8,9,10})),$G27+1),INDEX(Lookup_Performance!$B$62:$BT$83,N(IF(1,,{1,2,3,4,5,6,7,8,9,10})),$G27),0)/1000 -> 
F29: Shape key: 3 | G29: Column (#) | H29: Scale (m) | I29: Displaced volume [m3] | J29: Possible Threshold: Av. Power (kW) @ Resource Level (kW/m)
J30: 0 | K30: =Lookup_Performance!$C$4 -> 15 | L30: =Lookup_Performance!$C$58 -> 75 | M30: =Inputs!$F$27 -> 55 | N30: =Inputs!$F$28 -> 65 | O30: =Inputs!$F$29 ->  | P30: =Inputs!$F$30 ->  | Q30: =Inputs!$F$31 ->  | R30: =Inputs!$F$32 ->  | S30: =Inputs!$F$33 ->  | T30: =Inputs!$F$34 ->  | U30: =Inputs!$F$35 ->  | V30: =Inputs!$F$36 -> 
F31: =Assumptions!$B$24&"-"&'Used Values'!$C$5 -> VCylinder-Heave | G31: =MATCH(F31,Lookup_Performance!$B$6:$BT$6,0) -> 43 | H31: =Inputs!E27 -> 10 | I31: =H31^3*Assumptions!$C$24 -> 500 | J31: 0 | K31: =LinInterpolate($I31,INDEX(Lookup_Performance!$B$8:$BT$29,N(IF(1,,{1,2,3,4,5,6,7,8,9,10})),$G31+1),INDEX(Lookup_Performance!$B$8:$BT$29,N(IF(1,,{1,2,3,4,5,6,7,8,9,10})),$G31),0)/1000 -> 214.6975364 | L31: =LinInterpolate($I31,INDEX(Lookup_Performance!$B$62:$BT$83,N(IF(1,,{1,2,3,4,5,6,7,8,9,10})),$G31+1),INDEX(Lookup_Performance!$B$62:$BT$83,N(IF(1,,{1,2,3,4,5,6,7,8,9,10})),$G31),0)/1000 -> 528.3784868 | M31: =LinInterpolate(M$30,$J$30:$L$30,$J31:$L31) -> 423.81817 | N31: =LinInterpolate(N$30,$J$30:$L$30,$J31:$L31) -> 476.0983284
F32: =Assumptions!$B$24&"-"&'Used Values'!$C$5 -> VCylinder-Heave | G32: =MATCH(F32,Lookup_Performance!$B$6:$BT$6,0) -> 43 | H32: =Inputs!E28 -> 40 | I32: =H32^3*Assumptions!$C$24 -> 32000 | J32: 0 | K32: =LinInterpolate($I32,INDEX(Lookup_Performance!$B$8:$BT$29,N(IF(1,,{1,2,3,4,5,6,7,8,9,10})),$G32+1),INDEX(Lookup_Performance!$B$8:$BT$29,N(IF(1,,{1,2,3,4,5,6,7,8,9,10})),$G32),0)/1000 -> 692.9950133 | L32: =LinInterpolate($I32,INDEX(Lookup_Performance!$B$62:$BT$83,N(IF(1,,{1,2,3,4,5,6,7,8,9,10})),$G32+1),INDEX(Lookup_Performance!$B$62:$BT$83,N(IF(1,,{1,2,3,4,5,6,7,8,9,10})),$G32),0)/1000 -> 8430.009555 | M32: =LinInterpolate(M$30,$J$30:$L$30,$J32:$L32) -> 5851.004708 | N32: 7140.507131
F33: =Assumptions!$B$24&"-"&'Used Values'!$C$5 -> VCylinder-Heave | G33: =MATCH(F33,Lookup_Performance!$B$6:$BT$6,0) -> 43 | H33: =Inputs!E29 ->  | I33: =H33^3*Assumptions!$C$24 ->  | J33: 0 | K33: =LinInterpolate($I33,INDEX(Lookup_Performance!$B$8:$BT$29,N(IF(1,,{1,2,3,4,5,6,7,8,9,10})),$G33+1),INDEX(Lookup_Performance!$B$8:$BT$29,N(IF(1,,{1,2,3,4,5,6,7,8,9,10})),$G33),0)/1000 ->  | L33: =LinInterpolate($I33,INDEX(Lookup_Performance!$B$62:$BT$83,N(IF(1,,{1,2,3,4,5,6,7,8,9,10})),$G33+1),INDEX(Lookup_Performance!$B$62:$BT$83,N(IF(1,,{1,2,3,4,5,6,7,8,9,10})),$G33),0)/1000 -> 
F34: =Assumptions!$B$24&"-"&'Used Values'!$C$5 -> VCylinder-Heave | G34: =MATCH(F34,Lookup_Performance!$B$6:$BT$6,0) -> 43 | H34: =Inputs!E30 ->  | I34: =H34^3*Assumptions!$C$24 ->  | J34: 0 | K34: =LinInterpolate($I34,INDEX(Lookup_Performance!$B$8:$BT$29,N(IF(1,,{1,2,3,4,5,6,7,8,9,10})),$G34+1),INDEX(Lookup_Performance!$B$8:$BT$29,N(IF(1,,{1,2,3,4,5,6,7,8,9,10})),$G34),0)/1000 ->  | L34: =LinInterpolate($I34,INDEX(Lookup_Performance!$B$62:$BT$83,N(IF(1,,{1,2,3,4,5,6,7,8,9,10})),$G34+1),INDEX(Lookup_Performance!$B$62:$BT$83,N(IF(1,,{1,2,3,4,5,6,7,8,9,10})),$G34),0)/1000 -> 
F35: =Assumptions!$B$24&"-"&'Used Values'!$C$5 -> VCylinder-Heave | G35: =MATCH(F35,Lookup_Performance!$B$6:$BT$6,0) -> 43 | H35: =Inputs!E31 ->  | I35: =H35^3*Assumptions!$C$24 ->  | J35: 0 | K35: =LinInterpolate($I35,INDEX(Lookup_Performance!$B$8:$BT$29,N(IF(1,,{1,2,3,4,5,6,7,8,9,10})),$G35+1),INDEX(Lookup_Performance!$B$8:$BT$29,N(IF(1,,{1,2,3,4,5,6,7,8,9,10})),$G35),0)/1000 ->  | L35: =LinInterpolate($I35,INDEX(Lookup_Performance!$B$62:$BT$83,N(IF(1,,{1,2,3,4,5,6,7,8,9,10})),$G35+1),INDEX(Lookup_Performance!$B$62:$BT$83,N(IF(1,,{1,2,3,4,5,6,7,8,9,10})),$G35),0)/1000 -> 
F36: =Assumptions!$B$24&"-"&'Used Values'!$C$5 -> VCylinder-Heave | G36: =MATCH(F36,Lookup_Performance!$B$6:$BT$6,0) -> 43 | H36: =Inputs!E32 ->  | I36: =H36^3*Assumptions!$C$24 ->  | J36: 0 | K36: =LinInterpolate($I36,INDEX(Lookup_Performance!$B$8:$BT$29,N(IF(1,,{1,2,3,4,5,6,7,8,9,10})),$G36+1),INDEX(Lookup_Performance!$B$8:$BT$29,N(IF(1,,{1,2,3,4,5,6,7,8,9,10})),$G36),0)/1000 ->  | L36: =LinInterpolate($I36,INDEX(Lookup_Performance!$B$62:$BT$83,N(IF(1,,{1,2,3,4,5,6,7,8,9,10})),$G36+1),INDEX(Lookup_Performance!$B$62:$BT$83,N(IF(1,,{1,2,3,4,5,6,7,8,9,10})),$G36),0)/1000 -> 
F37: =Assumptions!$B$24&"-"&'Used Values'!$C$5 -> VCylinder-Heave | G37: =MATCH(F37,Lookup_Performance!$B$6:$BT$6,0) -> 43 | H37: =Inputs!E33 ->  | I37: =H37^3*Assumptions!$C$24 ->  | J37: 0 | K37: =LinInterpolate($I37,INDEX(Lookup_Performance!$B$8:$BT$29,N(IF(1,,{1,2,3,4,5,6,7,8,9,10})),$G37+1),INDEX(Lookup_Performance!$B$8:$BT$29,N(IF(1,,{1,2,3,4,5,6,7,8,9,10})),$G37),0)/1000 ->  | L37: =LinInterpolate($I37,INDEX(Lookup_Performance!$B$62:$BT$83,N(IF(1,,{1,2,3,4,5,6,7,8,9,10})),$G37+1),INDEX(Lookup_Performance!$B$62:$BT$83,N(IF(1,,{1,2,3,4,5,6,7,8,9,10})),$G37),0)/1000 -> 
F38: =Assumptions!$B$24&"-"&'Used Values'!$C$5 -> VCylinder-Heave | G38: =MATCH(F38,Lookup_Performance!$B$6:$BT$6,0) -> 43 | H38: =Inputs!E34 ->  | I38: =H38^3*Assumptions!$C$24 ->  | J38: 0 | K38: =LinInterpolate($I38,INDEX(Lookup_Performance!$B$8:$BT$29,N(IF(1,,{1,2,3,4,5,6,7,8,9,10})),$G38+1),INDEX(Lookup_Performance!$B$8:$BT$29,N(IF(1,,{1,2,3,4,5,6,7,8,9,10})),$G38),0)/1000 ->  | L38: =LinInterpolate($I38,INDEX(Lookup_Performance!$B$62:$BT$83,N(IF(1,,{1,2,3,4,5,6,7,8,9,10})),$G38+1),INDEX(Lookup_Performance!$B$62:$BT$83,N(IF(1,,{1,2,3,4,5,6,7,8,9,10})),$G38),0)/1000 -> 
F39: =Assumptions!$B$24&"-"&'Used Values'!$C$5 -> VCylinder-Heave | G39: =MATCH(F39,Lookup_Performance!$B$6:$BT$6,0) -> 43 | H39: =Inputs!E35 ->  | I39: =H39^3*Assumptions!$C$24 ->  | J39: 0 | K39: =LinInterpolate($I39,INDEX(Lookup_Performance!$B$8:$BT$29,N(IF(1,,{1,2,3,4,5,6,7,8,9,10})),$G39+1),INDEX(Lookup_Performance!$B$8:$BT$29,N(IF(1,,{1,2,3,4,5,6,7,8,9,10})),$G39),0)/1000 ->  | L39: =LinInterpolate($I39,INDEX(Lookup_Performance!$B$62:$BT$83,N(IF(1,,{1,2,3,4,5,6,7,8,9,10})),$G39+1),INDEX(Lookup_Performance!$B$62:$BT$83,N(IF(1,,{1,2,3,4,5,6,7,8,9,10})),$G39),0)/1000 -> 
F40: =Assumptions!$B$24&"-"&'Used Values'!$C$5 -> VCylinder-Heave | G40: =MATCH(F40,Lookup_Performance!$B$6:$BT$6,0) -> 43 | H40: =Inputs!E36 ->  | I40: =H40^3*Assumptions!$C$24 ->  | J40: 0 | K40: =LinInterpolate($I40,INDEX(Lookup_Performance!$B$8:$BT$29,N(IF(1,,{1,2,3,4,5,6,7,8,9,10})),$G40+1),INDEX(Lookup_Performance!$B$8:$BT$29,N(IF(1,,{1,2,3,4,5,6,7,8,9,10})),$G40),0)/1000 ->  | L40: =LinInterpolate($I40,INDEX(Lookup_Performance!$B$62:$BT$83,N(IF(1,,{1,2,3,4,5,6,7,8,9,10})),$G40+1),INDEX(Lookup_Performance!$B$62:$BT$83,N(IF(1,,{1,2,3,4,5,6,7,8,9,10})),$G40),0)/1000 -> 
F42: Shape key: 4 | G42: Column (#) | H42: Scale (m) | I42: Displaced volume [m3] | J42: Possible Threshold: Av. Power (W) @ Resource Level (kW/m)
J43: 0 | K43: 15 | L43: 75 | M43: =Inputs!$F$27 -> 55 | N43: =Inputs!$F$28 -> 65 | O43: =Inputs!$F$29 ->  | P43: =Inputs!$F$30 ->  | Q43: =Inputs!$F$31 ->  | R43: =Inputs!$F$32 ->  | S43: =Inputs!$F$33 ->  | T43: =Inputs!$F$34 ->  | U43: =Inputs!$F$35 ->  | V43: =Inputs!$F$36 -> 
F44: =Assumptions!$B$25&"-"&'Used Values'!$C$5 -> Sphere-Heave | G44: =MATCH(F44,Lookup_Performance!$B$6:$BT$6,0) -> 61 | H44: =Inputs!E27 -> 10 | I44: =H44^3*Assumptions!$C$25 -> 500 | J44: 0 | K44: =LinInterpolate($I44,INDEX(Lookup_Performance!$B$8:$BT$29,N(IF(1,,{1,2,3,4,5,6,7,8,9,10})),$G44+1),INDEX(Lookup_Performance!$B$8:$BT$29,N(IF(1,,{1,2,3,4,5,6,7,8,9,10})),$G44),0)/1000 -> 335.660995 | L44: =LinInterpolate($I44,INDEX(Lookup_Performance!$B$62:$BT$83,N(IF(1,,{1,2,3,4,5,6,7,8,9,10})),$G44+1),INDEX(Lookup_Performance!$B$62:$BT$83,N(IF(1,,{1,2,3,4,5,6,7,8,9,10})),$G44),0)/1000 -> 781.3786305 | M44: =LinInterpolate(M$43,$J$43:$L$43,$J44:$L44) -> 632.8060853 | N44: =LinInterpolate(N$43,$J$43:$L$43,$J44:$L44) -> 707.0923579
F45: =Assumptions!$B$25&"-"&'Used Values'!$C$5 -> Sphere-Heave | G45: =MATCH(F45,Lookup_Performance!$B$6:$BT$6,0) -> 61 | H45: =Inputs!E28 -> 40 | I45: =H45^3*Assumptions!$C$25 -> 32000 | J45: 0 | K45: =LinInterpolate($I45,INDEX(Lookup_Performance!$B$8:$BT$29,N(IF(1,,{1,2,3,4,5,6,7,8,9,10})),$G45+1),INDEX(Lookup_Performance!$B$8:$BT$29,N(IF(1,,{1,2,3,4,5,6,7,8,9,10})),$G45),0)/1000 -> 8082.075758 | L45: =LinInterpolate($I45,INDEX(Lookup_Performance!$B$62:$BT$83,N(IF(1,,{1,2,3,4,5,6,7,8,9,10})),$G45+1),INDEX(Lookup_Performance!$B$62:$BT$83,N(IF(1,,{1,2,3,4,5,6,7,8,9,10})),$G45),0)/1000 -> 12408.76473 | M45: =LinInterpolate(M$43,$J$43:$L$43,$J45:$L45) -> 10966.53507 | N45: 11687.6499
F46: =Assumptions!$B$25&"-"&'Used Values'!$C$5 -> Sphere-Heave | G46: =MATCH(F46,Lookup_Performance!$B$6:$BT$6,0) -> 61 | H46: =Inputs!E29 ->  | I46: =H46^3*Assumptions!$C$25 ->  | J46: 0 | K46: =LinInterpolate($I46,INDEX(Lookup_Performance!$B$8:$BT$29,N(IF(1,,{1,2,3,4,5,6,7,8,9,10})),$G46+1),INDEX(Lookup_Performance!$B$8:$BT$29,N(IF(1,,{1,2,3,4,5,6,7,8,9,10})),$G46),0)/1000 ->  | L46: =LinInterpolate($I46,INDEX(Lookup_Performance!$B$62:$BT$83,N(IF(1,,{1,2,3,4,5,6,7,8,9,10})),$G46+1),INDEX(Lookup_Performance!$B$62:$BT$83,N(IF(1,,{1,2,3,4,5,6,7,8,9,10})),$G46),0)/1000 -> 
F47: =Assumptions!$B$25&"-"&'Used Values'!$C$5 -> Sphere-Heave | G47: =MATCH(F47,Lookup_Performance!$B$6:$BT$6,0) -> 61 | H47: =Inputs!E30 ->  | I47: =H47^3*Assumptions!$C$25 ->  | J47: 0 | K47: =LinInterpolate($I47,INDEX(Lookup_Performance!$B$8:$BT$29,N(IF(1,,{1,2,3,4,5,6,7,8,9,10})),$G47+1),INDEX(Lookup_Performance!$B$8:$BT$29,N(IF(1,,{1,2,3,4,5,6,7,8,9,10})),$G47),0)/1000 ->  | L47: =LinInterpolate($I47,INDEX(Lookup_Performance!$B$62:$BT$83,N(IF(1,,{1,2,3,4,5,6,7,8,9,10})),$G47+1),INDEX(Lookup_Performance!$B$62:$BT$83,N(IF(1,,{1,2,3,4,5,6,7,8,9,10})),$G47),0)/1000 -> 
F48: =Assumptions!$B$25&"-"&'Used Values'!$C$5 -> Sphere-Heave | G48: =MATCH(F48,Lookup_Performance!$B$6:$BT$6,0) -> 61 | H48: =Inputs!E31 ->  | I48: =H48^3*Assumptions!$C$25 ->  | J48: 0 | K48: =LinInterpolate($I48,INDEX(Lookup_Performance!$B$8:$BT$29,N(IF(1,,{1,2,3,4,5,6,7,8,9,10})),$G48+1),INDEX(Lookup_Performance!$B$8:$BT$29,N(IF(1,,{1,2,3,4,5,6,7,8,9,10})),$G48),0)/1000 ->  | L48: =LinInterpolate($I48,INDEX(Lookup_Performance!$B$62:$BT$83,N(IF(1,,{1,2,3,4,5,6,7,8,9,10})),$G48+1),INDEX(Lookup_Performance!$B$62:$BT$83,N(IF(1,,{1,2,3,4,5,6,7,8,9,10})),$G48),0)/1000 -> 
F49: =Assumptions!$B$25&"-"&'Used Values'!$C$5 -> Sphere-Heave | G49: =MATCH(F49,Lookup_Performance!$B$6:$BT$6,0) -> 61 | H49: =Inputs!E32 ->  | I49: =H49^3*Assumptions!$C$25 ->  | J49: 0 | K49: =LinInterpolate($I49,INDEX(Lookup_Performance!$B$8:$BT$29,N(IF(1,,{1,2,3,4,5,6,7,8,9,10})),$G49+1),INDEX(Lookup_Performance!$B$8:$BT$29,N(IF(1,,{1,2,3,4,5,6,7,8,9,10})),$G49),0)/1000 ->  | L49: =LinInterpolate($I49,INDEX(Lookup_Performance!$B$62:$BT$83,N(IF(1,,{1,2,3,4,5,6,7,8,9,10})),$G49+1),INDEX(Lookup_Performance!$B$62:$BT$83,N(IF(1,,{1,2,3,4,5,6,7,8,9,10})),$G49),0)/1000 -> 
F50: =Assumptions!$B$25&"-"&'Used Values'!$C$5 -> Sphere-Heave | G50: =MATCH(F50,Lookup_Performance!$B$6:$BT$6,0) -> 61 | H50: =Inputs!E33 ->  | I50: =H50^3*Assumptions!$C$25 ->  | J50: 0 | K50: =LinInterpolate($I50,INDEX(Lookup_Performance!$B$8:$BT$29,N(IF(1,,{1,2,3,4,5,6,7,8,9,10})),$G50+1),INDEX(Lookup_Performance!$B$8:$BT$29,N(IF(1,,{1,2,3,4,5,6,7,8,9,10})),$G50),0)/1000 ->  | L50: =LinInterpolate($I50,INDEX(Lookup_Performance!$B$62:$BT$83,N(IF(1,,{1,2,3,4,5,6,7,8,9,10})),$G50+1),INDEX(Lookup_Performance!$B$62:$BT$83,N(IF(1,,{1,2,3,4,5,6,7,8,9,10})),$G50),0)/1000 -> 
F51: =Assumptions!$B$25&"-"&'Used Values'!$C$5 -> Sphere-Heave | G51: =MATCH(F51,Lookup_Performance!$B$6:$BT$6,0) -> 61 | H51: =Inputs!E34 ->  | I51: =H51^3*Assumptions!$C$25 ->  | J51: 0 | K51: =LinInterpolate($I51,INDEX(Lookup_Performance!$B$8:$BT$29,N(IF(1,,{1,2,3,4,5,6,7,8,9,10})),$G51+1),INDEX(Lookup_Performance!$B$8:$BT$29,N(IF(1,,{1,2,3,4,5,6,7,8,9,10})),$G51),0)/1000 ->  | L51: =LinInterpolate($I51,INDEX(Lookup_Performance!$B$62:$BT$83,N(IF(1,,{1,2,3,4,5,6,7,8,9,10})),$G51+1),INDEX(Lookup_Performance!$B$62:$BT$83,N(IF(1,,{1,2,3,4,5,6,7,8,9,10})),$G51),0)/1000 -> 
F52: =Assumptions!$B$25&"-"&'Used Values'!$C$5 -> Sphere-Heave | G52: =MATCH(F52,Lookup_Performance!$B$6:$BT$6,0) -> 61 | H52: =Inputs!E35 ->  | I52: =H52^3*Assumptions!$C$25 ->  | J52: 0 | K52: =LinInterpolate($I52,INDEX(Lookup_Performance!$B$8:$BT$29,N(IF(1,,{1,2,3,4,5,6,7,8,9,10})),$G52+1),INDEX(Lookup_Performance!$B$8:$BT$29,N(IF(1,,{1,2,3,4,5,6,7,8,9,10})),$G52),0)/1000 ->  | L52: =LinInterpolate($I52,INDEX(Lookup_Performance!$B$62:$BT$83,N(IF(1,,{1,2,3,4,5,6,7,8,9,10})),$G52+1),INDEX(Lookup_Performance!$B$62:$BT$83,N(IF(1,,{1,2,3,4,5,6,7,8,9,10})),$G52),0)/1000 -> 
F53: =Assumptions!$B$25&"-"&'Used Values'!$C$5 -> Sphere-Heave | G53: =MATCH(F53,Lookup_Performance!$B$6:$BT$6,0) -> 61 | H53: =Inputs!E36 ->  | I53: =H53^3*Assumptions!$C$25 ->  | J53: 0 | K53: =LinInterpolate($I53,INDEX(Lookup_Performance!$B$8:$BT$29,N(IF(1,,{1,2,3,4,5,6,7,8,9,10})),$G53+1),INDEX(Lookup_Performance!$B$8:$BT$29,N(IF(1,,{1,2,3,4,5,6,7,8,9,10})),$G53),0)/1000 ->  | L53: =LinInterpolate($I53,INDEX(Lookup_Performance!$B$62:$BT$83,N(IF(1,,{1,2,3,4,5,6,7,8,9,10})),$G53+1),INDEX(Lookup_Performance!$B$62:$BT$83,N(IF(1,,{1,2,3,4,5,6,7,8,9,10})),$G53),0)/1000 -> 
I56: Scale (m) | J56: SOA Threshold: Av. Power (kW) @ Resource Level (kW/m)
J57: =Lookup_Performance!C88 -> 15 | K57: =Lookup_Performance!C102 -> 45 | L57: =Lookup_Performance!C116 -> 75 | M57: =Inputs!$F$27 -> 55 | N57: =Inputs!$F$28 -> 65 | O57: =Inputs!$F$29 ->  | P57: =Inputs!$F$30 ->  | Q57: =Inputs!$F$31 ->  | R57: =Inputs!$F$32 ->  | S57: =Inputs!$F$33 ->  | T57: =Inputs!$F$34 ->  | U57: =Inputs!$F$35 ->  | V57: =Inputs!$F$36 -> 
I58: =Inputs!E27 -> 10 | J58: =LinInterpolate($I58,Lookup_Performance!$B$91:$B$100,Lookup_Performance!$H$91:$H$100) -> 33.87288789 | K58: =LinInterpolate($I58,Lookup_Performance!$B$105:$B$114,Lookup_Performance!$H$105:$H$114) -> 62.36907346 | L58: =LinInterpolate($I58,Lookup_Performance!$B$119:$B$128,Lookup_Performance!$H$119:$H$128) -> 82.99207407 | M58: =LinInterpolate(M$57,$J$57:$L$57,$J58:$L58) -> 69.243407 | N58: =LinInterpolate(N$57,$J$57:$L$57,$J58:$L58) -> 76.11774053
I59: =Inputs!E28 -> 40 | J59: =LinInterpolate($I59,Lookup_Performance!$B$91:$B$100,Lookup_Performance!$H$91:$H$100) -> 303.7272724 | K59: =LinInterpolate($I59,Lookup_Performance!$B$105:$B$114,Lookup_Performance!$H$105:$H$114) -> 913.0905071 | L59: =LinInterpolate($I59,Lookup_Performance!$B$119:$B$128,Lookup_Performance!$H$119:$H$128) -> 1714.434285 | M59: =LinInterpolate(M$57,$J$57:$L$57,$J59:$L59) -> 1180.2051 | N59: 1447.319692
I60: =Inputs!E29 ->  | J60: =LinInterpolate($I60,Lookup_Performance!$B$91:$B$100,Lookup_Performance!$H$91:$H$100) ->  | K60: =LinInterpolate($I60,Lookup_Performance!$B$105:$B$114,Lookup_Performance!$H$105:$H$114) ->  | L60: =LinInterpolate($I60,Lookup_Performance!$B$119:$B$128,Lookup_Performance!$H$119:$H$128) -> 
I61: =Inputs!E30 ->  | J61: =LinInterpolate($I61,Lookup_Performance!$B$91:$B$100,Lookup_Performance!$H$91:$H$100) ->  | K61: =LinInterpolate($I61,Lookup_Performance!$B$105:$B$114,Lookup_Performance!$H$105:$H$114) ->  | L61: =LinInterpolate($I61,Lookup_Performance!$B$119:$B$128,Lookup_Performance!$H$119:$H$128) -> 
I62: =Inputs!E31 ->  | J62: =LinInterpolate($I62,Lookup_Performance!$B$91:$B$100,Lookup_Performance!$H$91:$H$100) ->  | K62: =LinInterpolate($I62,Lookup_Performance!$B$105:$B$114,Lookup_Performance!$H$105:$H$114) ->  | L62: =LinInterpolate($I62,Lookup_Performance!$B$119:$B$128,Lookup_Performance!$H$119:$H$128) -> 
I63: =Inputs!E32 ->  | J63: =LinInterpolate($I63,Lookup_Performance!$B$91:$B$100,Lookup_Performance!$H$91:$H$100) ->  | K63: =LinInterpolate($I63,Lookup_Performance!$B$105:$B$114,Lookup_Performance!$H$105:$H$114) ->  | L63: =LinInterpolate($I63,Lookup_Performance!$B$119:$B$128,Lookup_Performance!$H$119:$H$128) -> 
I64: =Inputs!E33 ->  | J64: =LinInterpolate($I64,Lookup_Performance!$B$91:$B$100,Lookup_Performance!$H$91:$H$100) ->  | K64: =LinInterpolate($I64,Lookup_Performance!$B$105:$B$114,Lookup_Performance!$H$105:$H$114) ->  | L64: =LinInterpolate($I64,Lookup_Performance!$B$119:$B$128,Lookup_Performance!$H$119:$H$128) -> 
I65: =Inputs!E34 ->  | J65: =LinInterpolate($I65,Lookup_Performance!$B$91:$B$100,Lookup_Performance!$H$91:$H$100) ->  | K65: =LinInterpolate($I65,Lookup_Performance!$B$105:$B$114,Lookup_Performance!$H$105:$H$114) ->  | L65: =LinInterpolate($I65,Lookup_Performance!$B$119:$B$128,Lookup_Performance!$H$119:$H$128) -> 
I66: =Inputs!E35 ->  | J66: =LinInterpolate($I66,Lookup_Performance!$B$91:$B$100,Lookup_Performance!$H$91:$H$100) ->  | K66: =LinInterpolate($I66,Lookup_Performance!$B$105:$B$114,Lookup_Performance!$H$105:$H$114) ->  | L66: =LinInterpolate($I66,Lookup_Performance!$B$119:$B$128,Lookup_Performance!$H$119:$H$128) -> 
I67: =Inputs!E36 ->  | J67: =LinInterpolate($I67,Lookup_Performance!$B$91:$B$100,Lookup_Performance!$H$91:$H$100) ->  | K67: =LinInterpolate($I67,Lookup_Performance!$B$105:$B$114,Lookup_Performance!$H$105:$H$114) ->  | L67: =LinInterpolate($I67,Lookup_Performance!$B$119:$B$128,Lookup_Performance!$H$119:$H$128) -> 

Sheet Lookup_Performance
B2: Possible average power by shape and DOF
B4: Resource level (kW/m): | C4: 15
B5: 1 | C5: 2 | D5: 3 | E5: 4 | F5: 5 | G5: 6 | H5: 7 | I5: 8 | J5: 9 | K5: 10 | L5: 11 | M5: 12 | N5: 13 | O5: 14 | P5: 15 | Q5: 16 | R5: 17 | S5: 18 | T5: 19 | U5: 20 | V5: 21 | W5: 22 | X5: 23 | Y5: 24 | Z5: 25 | AA5: 26 | AB5: 27 | AC5: 28 | AD5: 29 | AE5: 30 | AF5: 31 | AG5: 32 | AH5: 33 | AI5: 34 | AJ5: 35 | AK5: 36 | AL5: 37 | AM5: 38 | AN5: 39 | AO5: 40 | AP5: 41 | AQ5: 42 | AR5: 43 | AS5: 44 | AT5: 45 | AU5: 46 | AV5: 47 | AW5: 48 | AX5: 49 | AY5: 50 | AZ5: 51 | BA5: 52 | BB5: 53 | BC5: 54 | BD5: 55 | BE5: 56 | BF5: 57 | BG5: 58 | BH5: 59 | BI5: 60 | BJ5: 61 | BK5: 62 | BL5: 63 | BM5: 64 | BN5: 65 | BO5: 66 | BP5: 67 | BQ5: 68 | BR5: 69 | BS5: 70 | BT5: 71
B6: Cuboid-Surge | C6: Displaced | E6: Cuboid-Pitch | F6: Displaced | H6: Cuboid-Heave | I6: Displaced | K6: Cuboid-Roll | L6: Displaced | N6: Cuboid-Surge_Heave | O6: Displaced | Q6: Cuboid-Heave_Pitch | R6: Displaced | T6: HCylinder-Surge | U6: Displaced | W6: HCylinder-Pitch | X6: Displaced | Z6: HCylinder-Heave | AA6: Displaced | AC6: HCylinder-Roll | AD6: Displaced | AF6: HCylinder-Surge_Heave | AG6: Displaced | AI6: HCylinder-Heave_Pitch | AJ6: Displaced | AL6: VCylinder-Surge | AM6: Displaced | AO6: VCylinder-Pitch | AP6: Displaced | AR6: VCylinder-Heave | AS6: Displaced | AU6: VCylinder-Roll | AV6: Displaced | AX6: VCylinder-Surge_Heave | AY6: Displaced | BA6: VCylinder-Heave_Pitch | BB6: Displaced | BD6: Sphere-Surge | BE6: Displaced | BG6: Sphere-Pitch | BH6: Displaced | BJ6: Sphere-Heave | BK6: Displaced | BM6: Sphere-Roll | BN6: Displaced | BP6: Sphere-Surge_Heave | BQ6: Displaced | BS6: Sphere-Heave_Pitch | BT6: Displaced
B7: Mean Annual Power [W] | C7: Volume [m3] | E7: Mean Annual Power [W] | F7: Volume [m3] | H7: Mean Annual Power [W] | I7: Volume [m3] | K7: Mean Annual Power [W] | L7: Volume [m3] | N7: Mean Annual Power [W] | O7: Volume [m3] | Q7: Mean Annual Power [W] | R7: Volume [m3] | T7: Mean Annual Power [W] | U7: Volume [m3] | W7: Mean Annual Power [W] | X7: Volume [m3] | Z7: Mean Annual Power [W] | AA7: Volume [m3] | AC7: Mean Annual Power [W] | AD7: Volume [m3] | AF7: Mean Annual Power [W] | AG7: Volume [m3] | AI7: Mean Annual Power [W] | AJ7: Volume [m3] | AL7: Mean Annual Power [W] | AM7: Volume [m3] | AO7: Mean Annual Power [W] | AP7: Volume [m3] | AR7: Mean Annual Power [W] | AS7: Volume [m3] | AU7: Mean Annual Power [W] | AV7: Volume [m3] | AX7: Mean Annual Power [W] | AY7: Volume [m3] | BA7: Mean Annual Power [W] | BB7: Volume [m3] | BD7: Mean Annual Power [W] | BE7: Volume [m3] | BG7: Mean Annual Power [W] | BH7: Volume [m3] | BJ7: Mean Annual Power [W] | BK7: Volume [m3] | BM7: Mean Annual Power [W] | BN7: Volume [m3] | BP7: Mean Annual Power [W] | BQ7: Volume [m3] | BS7: Mean Annual Power [W] | BT7: Volume [m3]
B8: 1178565.9 | C8: 54218.9 | E8: 1221577.288 | F8: 15593.4 | H8: 692392.3601 | I8: 12792.4 | N8: 1908671.243 | O8: 49368.3 | Q8: 1897411.775 | R8: 14850.5 | T8: 1187647.058 | U8: 69661.06667 | W8: 1142673.369 | X8: 18691.8 | Z8: 693841.9509 | AA8: 25233.4 | AF8: 1958060.753 | AG8: 64691.36667 | AI8: 1953830.816 | AJ8: 68995.86667 | AL8: 1140325.54 | AM8: 41527.2 | AO8: 1324939.267 | AP8: 48687.43333 | AR8: 695475.7546 | AS8: 43310.03333 | AX8: 1919231.428 | AY8: 49621.66667 | BA8: 2020260.122 | BB8: 38096.9 | BD8: 1137749.289 | BE8: 38798.4 | BJ8: 487233.3668 | BK8: 1643.57 | BP8: 1740123.073 | BQ8: 25199.7
B9: 1165781.309 | C9: 46872.2 | E9: 1215787.679 | F9: 14383.4 | H9: 690001.9205 | I9: 11127.1 | N9: 1902112.608 | O9: 45903.5 | Q9: 1875811.268 | R9: 13716.3 | T9: 1180255.288 | U9: 65964.5 | W9: 1139037.55 | X9: 15020 | Z9: 693592.9617 | AA9: 24808.7 | AF9: 1938845.029 | AG9: 57125.06667 | AI9: 1929841.797 | AJ9: 63880.5 | AL9: 1127127.735 | AM9: 38871.6 | AO9: 1317935.521 | AP9: 43573.1 | AR9: 694609.4047 | AS9: 40219 | AX9: 1901368.482 | AY9: 45457.9 | BA9: 2020260.122 | BB9: 38096.9 | BD9: 1137749.289 | BE9: 38798.4 | BJ9: 487233.3668 | BK9: 1643.57 | BP9: 1717451.241 | BQ9: 23147.6
B10: 1134624.026 | C10: 39843.7 | E10: 1210037.191 | F10: 14023.8 | H10: 684465.8926 | I10: 10283.3 | N10: 1868045.552 | O10: 40361.16667 | Q10: 1829988.3 | R10: 11432.7 | T10: 1172176.767 | U10: 59972.56667 | W10: 1125185.577 | X10: 14061.36667 | Z10: 693531.4933 | AA10: 22391.8 | AF10: 1913120.318 | AG10: 52940.2 | AI10: 1896014.462 | AJ10: 55268.8 | AL10: 1115491.07 | AM10: 36961.8 | AO10: 1312541.602 | AP10: 38325.2 | AR10: 694244.0738 | AS10: 34759.23333 | AX10: 1876169.541 | AY10: 40350.6 | BA10: 2006872.179 | BB10: 35609.2 | BD10: 1108988.456 | BE10: 34263.9 | BJ10: 484162.6792 | BK10: 1606.33 | BP10: 1695934.196 | BQ10: 21396.16667
B11: 1126578.159 | C11: 36884 | E11: 1195193.74 | F11: 13160.3 | H11: 682409.8385 | I11: 9261.22 | N11: 1851425.944 | O11: 37025.8 | Q11: 1824918.053 | R11: 10883.3 | T11: 1159205.293 | U11: 54159.43333 | W11: 1111684.315 | X11: 13215.73333 | Z11: 691656.7683 | AA11: 21452.4 | AF11: 1912990.713 | AG11: 48013.23333 | AI11: 1892532.195 | AJ11: 53981.4 | AL11: 1099459.961 | AM11: 34214.8 | AO11: 1302377.499 | AP11: 35545.2 | AR11: 692910.0446 | AS11: 31812.3 | AX11: 1851123.171 | AY11: 36067.1 | BA11: 1995096.078 | BB11: 33021.33333 | BD11: 1086918.041 | BE11: 31286.1 | BJ11: 477029.6136 | BK11: 1460.42 | BP11: 1658484.799 | BQ11: 18727.1
B12: 1106971.644 | C12: 34994.7 | E12: 1191775.861 | F12: 11507.7 | H12: 678651.1805 | I12: 8296.59 | N12: 1822723.202 | O12: 32399.3 | Q12: 1814055.153 | R12: 9657.77 | T12: 1146559.029 | U12: 49374.63333 | W12: 1101036.22 | X12: 12511 | Z12: 690591.4769 | AA12: 17014.1 | AF12: 1885476.652 | AG12: 43928.36667 | AI12: 1759164.189 | AJ12: 17386.9 | AL12: 1088307.733 | AM12: 32512.7 | AO12: 1281635.222 | AP12: 28055.4 | AR12: 684388.6722 | AS12: 27845.2 | AX12: 1842295.158 | AY12: 34642 | BA12: 1982563.086 | BB12: 30564.8 | BD12: 1072959.372 | BE12: 29559 | BJ12: 460958.0684 | BK12: 1328.99 | BP12: 1605059.249 | BQ12: 15598.8
B13: 1083836.998 | C13: 32556.9 | E13: 1168731.817 | F13: 10232.2 | H13: 676741.8552 | I13: 6951.31 | N13: 1792965.509 | O13: 28827.3 | Q13: 1764739.954 | R13: 8330.27 | T13: 1120038.949 | U13: 43358.9 | W13: 1078840.363 | X13: 11302.2 | Z13: 683319.4829 | AA13: 11431.6 | AF13: 1847110.369 | AG13: 37593.3 | AI13: 1753497.504 | AJ13: 13792.3 | AL13: 1031210.963 | AM13: 25787.4 | AO13: 1251507.339 | AP13: 23993.5 | AR13: 663109.2403 | AS13: 25569.6 | AX13: 1782890.173 | AY13: 27251.56667 | BA13: 1924989.643 | BB13: 29180.33333 | BD13: 1057700.527 | BE13: 27838.7 | BJ13: 456765.681 | BK13: 1298.93 | BP13: 1602786.879 | BQ13: 12574.9
B14: 1057201.102 | C14: 30823.6 | E14: 1146769.025 | F14: 9440.16 | H14: 670140.9577 | I14: 5979.39 | N14: 1762960.177 | O14: 24011.9 | Q14: 1733960.555 | R14: 7732.053333 | T14: 1110392.064 | U14: 42318.5 | W14: 1050101.826 | X14: 9988.916667 | Z14: 677814.2898 | AA14: 8383.193333 | AF14: 1823012.723 | AG14: 31953.3 | AI14: 1720239.893 | AJ14: 11338.3 | AL14: 1030102.394 | AM14: 25667.9 | AO14: 1224483.955 | AP14: 19990.8 | AR14: 621366.491 | AS14: 25060.2 | AX14: 1743155.531 | AY14: 23273.5 | BA14: 1907866.277 | BB14: 25557.8 | BD14: 1038177.2 | BE14: 25796.9 | BJ14: 446499.0651 | BK14: 1191.54 | BP14: 1548833.283 | BQ14: 10615.8
B15: 1055544.662 | C15: 27282.3 | E15: 1127736.219 | F15: 8441.31 | H15: 650380.6535 | I15: 4798.37 | N15: 1712720.504 | O15: 22687.7 | Q15: 1723509.482 | R15: 7040.74 | T15: 1103385.322 | U15: 36136.9 | W15: 1026042.086 | X15: 8782.963333 | Z15: 667064.201 | AA15: 6985.983333 | AF15: 1768336.935 | AG15: 26804.3 | AI15: 1660558.098 | AJ15: 8841.543333 | AL15: 1024073.276 | AM15: 21097.2 | AO15: 1193472.761 | AP15: 16608.6 | AR15: 607380.6637 | AS15: 23671.3 | AX15: 1711281.899 | AY15: 20692.1 | BA15: 1893433.377 | BB15: 22630.1 | BD15: 1015092.645 | BE15: 20375.4 | BJ15: 421857.9825 | BK15: 1050.13 | BP15: 1512379.472 | BQ15: 9484.273333
B16: 1051225.804 | C16: 22159 | E16: 1110466.762 | F16: 8153.84 | H16: 633255.055 | I16: 4053.55 | N16: 1649497.408 | O16: 19316 | Q16: 1699938.103 | R16: 6144.18 | T16: 1077597.869 | U16: 29756.33333 | W16: 928591.3694 | X16: 5181.15 | Z16: 665871.8539 | AA16: 5343.636667 | AF16: 1707356.265 | AG16: 23159.2 | AI16: 1572390.884 | AJ16: 6497.603333 | AL16: 980842.3461 | AM16: 17859.1 | AO16: 1150907.431 | AP16: 15422.3 | AR16: 569227.303 | AS16: 22999.6 | AX16: 1630993.639 | AY16: 15125.7 | BA16: 1802779.5 | BB16: 20345.2 | BD16: 1005497.418 | BE16: 19581.3 | BJ16: 411079.2544 | BK16: 950.621 | BP16: 1471534.056 | BQ16: 8368.54
B17: 1003158.819 | C17: 16246 | E17: 1086717.395 | F17: 6506.01 | H17: 609876.7988 | I17: 3254.32 | N17: 1628311.075 | O17: 15806.9 | Q17: 1671821.867 | R17: 5796.82 | T17: 1035471.842 | U17: 20492.8 | W17: 883125.9448 | X17: 3950.13 | Z17: 650559.8377 | AA17: 4770.123333 | AF17: 1678515.835 | AG17: 17708.1 | AI17: 1455623.635 | AJ17: 4191.44 | AL17: 938503.9396 | AM17: 15200.6 | AO17: 1121546.492 | AP17: 12262.7 | AR17: 568961.1104 | AS17: 11602.2 | AX17: 1591306.011 | AY17: 11558.4 | BA17: 1757796.205 | BB17: 17166.9 | BD17: 965531.5074 | BE17: 17057.06667 | BJ17: 405829.0958 | BK17: 861.772 | BP17: 1386660.973 | BQ17: 6312.25
B18: 986192.8414 | C18: 12498.9 | E18: 1038933.66 | F18: 5810.76 | H18: 583051.7873 | I18: 2796.23 | N18: 1549753.148 | O18: 13668.9 | Q18: 1548380.972 | R18: 4041.46 | T18: 1021085.363 | U18: 18729.93333 | W18: 833011.0293 | X18: 2740.163333 | Z18: 592776.7361 | AA18: 2743.406667 | AF18: 1566225.538 | AG18: 13561.8 | AI18: 1370066.052 | AJ18: 3291.52 | AL18: 905859.9221 | AM18: 13404.4 | AO18: 1093447.572 | AP18: 10143.8 | AR18: 550891.8512 | AS18: 10487.5 | AX18: 1561408.726 | AY18: 9893.356667 | BA18: 1736258.082 | BB18: 8623.45 | BD18: 912069.8821 | BE18: 14261.4 | BJ18: 376359.6709 | BK18: 748.942 | BP18: 1247867.747 | BQ18: 4170.456667
B19: 882244.723 | C19: 6270.55 | E19: 1026805.616 | F19: 4860.31 | H19: 543985.7218 | I19: 2587.5 | N19: 1532161.883 | O19: 8900.47 | Q19: 1514078.391 | R19: 3367.06 | T19: 980177.333 | U19: 14559.1 | W19: 811581.282 | X19: 2315.08 | Z19: 571892.6795 | AA19: 1915.596667 | AF19: 1530557.359 | AG19: 7788.413333 | AI19: 1300900.659 | AJ19: 2433.17 | AL19: 843910.5963 | AM19: 10869.8 | AO19: 1032693.497 | AP19: 6154.16 | AR19: 506970.7978 | AS19: 8497.313333 | AX19: 1496377.977 | AY19: 8095.316667 | BA19: 1611652.105 | BB19: 5500.406667 | BD19: 867213.6034 | BE19: 12309.8 | BJ19: 371573.6579 | BK19: 666.157 | BP19: 1221183.878 | BQ19: 3855.713333
B20: 840869.294 | C20: 4804.63 | E20: 914621.6333 | F20: 3282.5 | H20: 528573.2733 | I20: 1885.04 | N20: 1455920.166 | O20: 7239.856667 | Q20: 1448494.236 | R20: 2880.34 | T20: 931299.251 | U20: 8243.193333 | W20: 775570.1824 | X20: 1674.03 | Z20: 534745.4753 | AA20: 1563.44 | AF20: 1383837.772 | AG20: 7618.256667 | AI20: 1229615.085 | AJ20: 1859.86 | AL20: 781415.5947 | AM20: 9403.15 | AO20: 967384.2757 | AP20: 5046.05 | AR20: 484398.668 | AS20: 5297.303333 | AX20: 1241120.522 | AY20: 4043.85 | BA20: 1580761.395 | BB20: 4853.38 | BD20: 827282.5467 | BE20: 10634.6 | BJ20: 348144.1344 | BK20: 544.644 | BP20: 1130013.139 | BQ20: 2958.58
B21: 734527.7306 | C21: 4371.74 | E21: 845597.0064 | F21: 2182.85 | H21: 474557.2896 | I21: 1828.07 | N21: 1278745.782 | O21: 3076.82 | Q21: 1296670.965 | R21: 2170.37 | T21: 779184.7533 | U21: 5677.836667 | W21: 728429.361 | X21: 1009.22 | Z21: 487682.5094 | AA21: 1298.89 | AF21: 1297895.101 | AG21: 4724.706667 | AI21: 1141294.093 | AJ21: 1330.55 | AL21: 683906.3123 | AM21: 7530.366667 | AO21: 848500.0619 | AP21: 4089.82 | AR21: 458251.5599 | AS21: 3848.066667 | AX21: 1117741.435 | AY21: 3104.81 | BA21: 1343725.605 | BB21: 4475.15 | BD21: 782000.7568 | BE21: 9190.18 | BJ21: 328217.6393 | BK21: 473.38 | BP21: 1034276.146 | BQ21: 2255.103333
B22: 615947.7488 | C22: 2703.43 | E22: 790134.9592 | F22: 2046.29 | H22: 436052.3622 | I22: 1453.56 | N22: 1150645.523 | O22: 2498.45 | Q22: 1217320.1 | R22: 1702.52 | T22: 697572.4866 | U22: 4130.15 | W22: 700376.1715 | X22: 718.907 | Z22: 426050.655 | AA22: 943.4803333 | AF22: 1184330.047 | AG22: 2503.23 | AI22: 1062454.403 | AJ22: 1109.843333 | AL22: 666144.7827 | AM22: 5210.396667 | AO22: 719911.018 | AP22: 2522.46 | AR22: 379551.3793 | AS22: 1232.91 | AX22: 884470.9966 | AY22: 1927.81 | BA22: 1205506.264 | BB22: 2963.803333 | BD22: 682192.0715 | BE22: 6662.54 | BJ22: 303361.1387 | BK22: 410.717 | BP22: 924976.2307 | BQ22: 1669.53
B23: 535471.0041 | C23: 1975.58 | E23: 788576.2944 | F23: 1272.11 | H23: 400655.8813 | I23: 1365.12 | N23: 922844.8913 | O23: 1600.89 | Q23: 1060946.323 | R23: 1210.19 | T23: 613556.1552 | U23: 3452.793333 | W23: 539506.9985 | X23: 694.7316667 | Z23: 375170.7742 | AA23: 674.8006667 | AF23: 1018197.004 | AG23: 2116.2 | AI23: 946082.3606 | AJ23: 973.728 | AL23: 605773.5374 | AM23: 4963.263333 | AO23: 605025.3182 | AP23: 2323.113333 | AR23: 326423.7649 | AS23: 916.415 | AX23: 768540.9958 | AY23: 1439.61 | BA23: 1036566.752 | BB23: 2489.586667 | BD23: 617955.1308 | BE23: 5390.86 | BJ23: 269366.06 | BK23: 402.752 | BP23: 905771.4466 | BQ23: 1585.83
B24: 478206.9122 | C24: 1782.68 | E24: 633687.5008 | F24: 1068.24 | H24: 342272.9504 | I24: 760.203 | N24: 768775.8597 | O24: 1260.19 | Q24: 929824.0408 | R24: 799.42 | T24: 478386.4153 | U24: 3311.71 | W24: 461174.8355 | X24: 467.405 | Z24: 371125.5927 | AA24: 649.3196667 | AF24: 894504.8097 | AG24: 1582.81 | AI24: 746570.506 | AJ24: 474.8683333 | AL24: 504950.032 | AM24: 2577.85 | AO24: 510358.5516 | AP24: 1372.39 | AR24: 289793.2853 | AS24: 715.652 | AX24: 626193.0515 | AY24: 990.422 | BA24: 931106.0237 | BB24: 1865.31 | BD24: 591328.2693 | BE24: 4927.57 | BJ24: 253208.2093 | BK24: 299.615 | BP24: 734326.014 | BQ24: 995.3146667
B25: 411642.1954 | C25: 1606.46 | E25: 575381.0535 | F25: 750.489 | H25: 289418.4435 | I25: 565.679 | N25: 643289.3401 | O25: 893.546 | Q25: 782514.5162 | R25: 691.603 | T25: 417329.8693 | U25: 2071.16 | W25: 366940.2652 | X25: 390.978 | Z25: 276450.4698 | AA25: 408.8033333 | AF25: 743356.388 | AG25: 1154.69 | AI25: 460765.9764 | AJ25: 398.6153333 | AL25: 402172.2851 | AM25: 1525.96 | AO25: 391435.644 | AP25: 826.258 | AR25: 245201.3212 | AS25: 562.998 | AX25: 549544.6602 | AY25: 311.398 | BA25: 800743.4752 | BB25: 1129.16 | BD25: 507851.8012 | BE25: 3674.86 | BJ25: 231573.7463 | BK25: 265.017 | BP25: 627772.8286 | BQ25: 739.109
B26: 297476.5324 | C26: 1507.52 | E26: 451331.2063 | F26: 570.83 | H26: 253061.3312 | I26: 490.664 | N26: 497849.2593 | O26: 630.23 | Q26: 705604.457 | R26: 648.925 | T26: 285664.3993 | U26: 1579.44 | W26: 232047.0604 | X26: 298.954 | Z26: 242622.6675 | AA26: 320.947 | AF26: 641191.1923 | AG26: 880.698 | AI26: 303694.3402 | AJ26: 232.941 | AL26: 338439.1432 | AM26: 1058.23 | AO26: 345760.9729 | AP26: 738.7136667 | AR26: 222378.1771 | AS26: 529.994 | AX26: 392847.2868 | AY26: 114.084 | BA26: 653571.4685 | BB26: 919.116 | BD26: 336063.3191 | BE26: 1830.84 | BJ26: 187475.2627 | BK26: 223.71 | BP26: 501222.0061 | BQ26: 692.705
B27: 202084.4344 | C27: 641.306 | E27: 255017.6582 | F27: 514.764 | H27: 186600.413 | I27: 303.474 | N27: 347896.7805 | O27: 540.616 | Q27: 567649.9503 | R27: 486.365 | T27: 118043.6163 | U27: 613.052 | W27: 150883.6176 | X27: 249.082 | Z27: 198047.617 | AA27: 293.23 | AF27: 471747.9203 | AG27: 543.188 | AI27: 168287.8602 | AJ27: 171.854 | AL27: 236854.4494 | AM27: 998.816 | AO27: 137913.8231 | AP27: 418.8573333 | AR27: 168882.0563 | AS27: 321.084 | AX27: 111586.884 | AY27: 104.801 | BA27: 435131.0478 | BB27: 547.3136667 | BD27: 229045.7124 | BE27: 1640.63 | BJ27: 169703.9707 | BK27: 167.509 | BP27: 424253.9538 | BQ27: 391.738
B28: 146754.3887 | C28: 585.759 | E28: 203227.5027 | F28: 355.139 | H28: 169186.203 | I28: 267.374 | N28: 220941.0862 | O28: 289.405 | Q28: 425260.1971 | R28: 446.554 | T28: 48825.96158 | U28: 164.277 | W28: 118866.3457 | X28: 196.06 | Z28: 158541.309 | AA28: 182.407 | AF28: 350053.6768 | AG28: 352.697 | AI28: 112546.0499 | AJ28: 116.464 | AL28: 149085.2419 | AM28: 548.0626667 | AO28: 22048.7305 | AP28: 104.067 | AR28: 98256.08974 | AS28: 152.879 | AX28: 111579.481 | AY28: 104.793 | BA28: 284595.5191 | BB28: 322.33 | BD28: 142301.6255 | BE28: 543.851 | BJ28: 130113.5016 | BK28: 137.3966667 | BP28: 253010.4137 | BQ28: 192.869
B29: 65857.31227 | C29: 255.1286667 | E29: 21084.55673 | F29: 156.503 | H29: 84687.6923 | I29: 113.577 | N29: 95182.80953 | O29: 108.245 | Q29: 329613.0854 | R29: 321.307 | T29: 23058.75701 | U29: 103.8993333 | W29: 21404.16229 | X29: 104.026 | Z29: 92596.83523 | AA29: 108.984 | AF29: 116619.8109 | AG29: 107.686 | AI29: 112546.0499 | AJ29: 116.464 | AL29: 36410.67431 | AM29: 172.826 | AO29: 22048.7305 | AP29: 104.067 | AR29: 67458.56715 | AS29: 101.191 | AX29: 111579.481 | AY29: 104.793 | BA29: 108828.2228 | BB29: 139.27 | BD29: 36804.06638 | BE29: 105.3663333 | BJ29: 101235.2316 | BK29: 100.7433333 | BP29: 126594.3 | BQ29: 100.105
B31: Resource level (kW/m): | C31: 45
B32: 1 | C32: 2 | D32: 3 | E32: 4 | F32: 5 | G32: 6 | H32: 7 | I32: 8 | J32: 9 | K32: 10 | L32: 11 | M32: 12 | N32: 13 | O32: 14 | P32: 15 | Q32: 16 | R32: 17 | S32: 18 | T32: 19 | U32: 20 | V32: 21 | W32: 22 | X32: 23 | Y32: 24 | Z32: 25 | AA32: 26 | AB32: 27 | AC32: 28 | AD32: 29 | AE32: 30 | AF32: 31 | AG32: 32 | AH32: 33 | AI32: 34 | AJ32: 35 | AK32: 36 | AL32: 37 | AM32: 38 | AN32: 39 | AO32: 40 | AP32: 41 | AQ32: 42 | AR32: 43 | AS32: 44 | AT32: 45 | AU32: 46 | AV32: 47 | AW32: 48 | AX32: 49 | AY32: 50 | AZ32: 51 | BA32: 52 | BB32: 53 | BC32: 54 | BD32: 55 | BE32: 56 | BF32: 57 | BG32: 58 | BH32: 59 | BI32: 60 | BJ32: 61 | BK32: 62 | BL32: 63 | BM32: 64 | BN32: 65 | BO32: 66 | BP32: 67 | BQ32: 68 | BR32: 69 | BS32: 70 | BT32: 71
B33: Cuboid-Surge | C33: Displaced | E33: Cuboid-Pitch | F33: Displaced | H33: Cuboid-Heave | I33: Displaced | K33: Cuboid-Roll | L33: Displaced | N33: Cuboid-Surge_Heave | O33: Displaced | Q33: Cuboid-Heave_Pitch | R33: Displaced | T33: HCylinder-Surge | U33: Displaced | W33: HCylinder-Pitch | X33: Displaced | Z33: HCylinder-Heave | AA33: Displaced | AC33: HCylinder-Roll | AD33: Displaced | AF33: HCylinder-Surge_Heave | AG33: Displaced | AI33: HCylinder-Heave_Pitch | AJ33: Displaced | AL33: VCylinder-Surge | AM33: Displaced | AO33: VCylinder-Pitch | AP33: Displaced | AR33: VCylinder-Heave | AS33: Displaced | AU33: VCylinder-Roll | AV33: Displaced | AX33: VCylinder-Surge_Heave | AY33: Displaced | BA33: VCylinder-Heave_Pitch | BB33: Displaced | BD33: Sphere-Surge | BE33: Displaced | BG33: Sphere-Pitch | BH33: Displaced | BJ33: Sphere-Heave | BK33: Displaced | BM33: Sphere-Roll | BN33: Displaced | BP33: Sphere-Surge_Heave | BQ33: Displaced | BS33: Sphere-Heave_Pitch | BT33: Displaced
B34: Mean Annual Power [W] | C34: Volume [m3] | E34: Mean Annual Power [W] | F34: Volume [m3] | H34: Mean Annual Power [W] | I34: Volume [m3] | K34: Mean Annual Power [W] | L34: Volume [m3] | N34: Mean Annual Power [W] | O34: Volume [m3] | Q34: Mean Annual Power [W] | R34: Volume [m3] | T34: Mean Annual Power [W] | U34: Volume [m3] | W34: Mean Annual Power [W] | X34: Volume [m3] | Z34: Mean Annual Power [W] | AA34: Volume [m3] | AC34: Mean Annual Power [W] | AD34: Volume [m3] | AF34: Mean Annual Power [W] | AG34: Volume [m3] | AI34: Mean Annual Power [W] | AJ34: Volume [m3] | AL34: Mean Annual Power [W] | AM34: Volume [m3] | AO34: Mean Annual Power [W] | AP34: Volume [m3] | AR34: Mean Annual Power [W] | AS34: Volume [m3] | AU34: Mean Annual Power [W] | AV34: Volume [m3] | AX34: Mean Annual Power [W] | AY34: Volume [m3] | BA34: Mean Annual Power [W] | BB34: Volume [m3] | BD34: Mean Annual Power [W] | BE34: Volume [m3] | BG34: Mean Annual Power [W] | BH34: Volume [m3] | BJ34: Mean Annual Power [W] | BK34: Volume [m3] | BM34: Mean Annual Power [W] | BN34: Volume [m3] | BP34: Mean Annual Power [W] | BQ34: Volume [m3] | BS34: Mean Annual Power [W] | BT34: Volume [m3]
B35: 3712131.513 | C35: 255964 | E35: 3832726.911 | F35: 45325.8 | H35: 2270159.749 | I35: 24053.8 | N35: 6439332.823 | O35: 242936 | Q35: 6716400.461 | R35: 69846.9 | T35: 3001841.657 | U35: 121733 | W35: 3599221.724 | X35: 60164.66667 | Z35: 2305342.183 | AA35: 17865.3 | AF35: 5830404.667 | AG35: 87571.4 | AI35: 6178850.114 | AJ35: 80006.4 | AL35: 3667545.399 | AM35: 178721 | AO35: 4431031.294 | AP35: 159767 | AR35: 1444645.185 | AS35: 6316.803333 | AX35: 6582616.372 | AY35: 247895 | BA35: 6567382.173 | BB35: 65633.66667 | BD35: 2770002.305 | BE35: 56302.5 | BJ35: 1399181.828 | BK35: 2276.23 | BP35: 2703749.464 | BQ35: 3983.09
B36: 3712131.513 | C36: 255964 | E36: 3750719.968 | F36: 42135.1 | H36: 2270159.749 | I36: 24053.8 | N36: 6363106.656 | O36: 222221 | Q36: 6618621.521 | R36: 59213.5 | T36: 2988407.872 | U36: 110950 | W36: 3599221.724 | X36: 60164.66667 | Z36: 2293953.269 | AA36: 15262.4 | AF36: 5725162.132 | AG36: 79830.9 | AI36: 6092256.613 | AJ36: 72152.96667 | AL36: 3546775.211 | AM36: 152562 | AO36: 4412487.815 | AP36: 152005.6667 | AR36: 1436769.759 | AS36: 4899.446667 | AX36: 6518302.334 | AY36: 211910.6667 | BA36: 6496134.505 | BB36: 60574.33333 | BD36: 2758915.099 | BE36: 55643.7 | BJ36: 1399181.828 | BK36: 2276.23 | BP36: 2653567.066 | BQ36: 3807.31
B37: 3661441.335 | C37: 231796 | E37: 3707989.819 | F37: 37049.7 | H37: 2261245.444 | I37: 21808.1 | N37: 6291915.43 | O37: 177084 | Q37: 6572115.079 | R37: 56649.3 | T37: 2957749.864 | U37: 99157.36667 | W37: 3547503.718 | X37: 56672.8 | Z37: 2267407.838 | AA37: 13000.5 | AF37: 5555470.138 | AG37: 65512.26667 | AI37: 6028939.622 | AJ37: 66899.13333 | AL37: 3443266.981 | AM37: 140938 | AO37: 4383866.659 | AP37: 139757 | AR37: 1396897.354 | AS37: 4333.07 | AX37: 6394645.772 | AY37: 177408 | BA37: 6383161.993 | BB37: 53902.46667 | BD37: 2688373.926 | BE37: 51622.13333 | BJ37: 1340512.703 | BK37: 2098.23 | BP37: 2594111.057 | BQ37: 3608.27
B38: 3638859.528 | C38: 212387 | E38: 3619200.099 | F38: 33930.2 | H38: 2250800.396 | I38: 19170.4 | N38: 6226551.291 | O38: 172023 | Q38: 6516673.799 | R38: 52736.1 | T38: 2922898.114 | U38: 91245.4 | W38: 3504023.261 | X38: 53266.53333 | Z38: 2228475.208 | AA38: 11610.4 | AF38: 5423524.566 | AG38: 61853.16667 | AI38: 5861847.216 | AJ38: 55749.66667 | AL38: 3399656.97 | AM38: 125071 | AO38: 4327712.314 | AP38: 124335 | AR38: 1353381.305 | AS38: 4268.66 | AX38: 6278595.602 | AY38: 151819 | BA38: 6192027.816 | BB38: 44405.73333 | BD38: 2604042.583 | BE38: 47227.7 | BJ38: 1289413.315 | BK38: 1952.88 | BP38: 2517713.634 | BQ38: 3369.14
B39: 3484709.603 | C39: 174494 | E39: 3609430.765 | F39: 31518.8 | H39: 2236396.713 | I39: 18054.6 | N39: 6164810.799 | O39: 153962 | Q39: 6452413.505 | R39: 49313.7 | T39: 2863744.891 | U39: 82219.33333 | W39: 3295112.059 | X39: 40391.7 | Z39: 2216121.728 | AA39: 10094.3 | AF39: 5377159.532 | AG39: 55228.9 | AI39: 5738942.044 | AJ39: 48053.63333 | AL39: 3340536.336 | AM39: 115468 | AO39: 4293646.131 | AP39: 116547 | AR39: 1311200.789 | AS39: 3745.423333 | AX39: 6205056.533 | AY39: 144451 | BA39: 6072581.731 | BB39: 39538.9 | BD39: 2561757.096 | BE39: 44202.5 | BJ39: 1266390.208 | BK39: 1816.69 | BP39: 2458652.624 | BQ39: 3194.63
B40: 3457303.24 | C40: 166626 | E40: 3525487.139 | F40: 28698.2 | H40: 2212101.085 | I40: 16482.7 | N40: 6050123.832 | O40: 142836 | Q40: 6162019.251 | R40: 37402.2 | T40: 2790596.009 | U40: 73605 | W40: 3216649.342 | X40: 36521.03333 | Z40: 2161941.667 | AA40: 8855.906667 | AF40: 5125222.33 | AG40: 49857.66667 | AI40: 5647702.041 | AJ40: 43696.53333 | AL40: 3299243.145 | AM40: 96356 | AO40: 4194515.672 | AP40: 100375 | AR40: 1269726.273 | AS40: 3321.85 | AX40: 6186598.083 | AY40: 129060 | BA40: 5901097.394 | BB40: 35649.8 | BD40: 2470260.255 | BE40: 40115.5 | BJ40: 1213509.532 | BK40: 1515.7 | BP40: 2411719.11 | BQ40: 2921.793333
B41: 3399860.123 | C41: 144566 | E41: 3499303.955 | F41: 25492.8 | H41: 2211581.328 | I41: 14922.6 | N41: 5994461.974 | O41: 120539 | Q41: 6049161.853 | R41: 33841.3 | T41: 2756025.648 | U41: 70230.03333 | W41: 3113186.538 | X41: 32105.7 | Z41: 2118471.38 | AA41: 7798.2 | AF41: 5006463.348 | AG41: 45770.83333 | AI41: 5474814.485 | AJ41: 36280.23333 | AL41: 3187429.763 | AM41: 81599.16667 | AO41: 4085608.723 | AP41: 88263.53333 | AR41: 1233783.803 | AS41: 3104.43 | AX41: 5994768.395 | AY41: 103268 | BA41: 5880840.647 | BB41: 33326.06667 | BD41: 2382651.848 | BE41: 36524.7 | BJ41: 1186855.373 | BK41: 1444.86 | BP41: 2356184.783 | BQ41: 2621.37
B42: 3195672.312 | C42: 120855 | E42: 3409008.82 | F42: 24317.9 | H42: 2174973.046 | I42: 13152.3 | N42: 5884201.624 | O42: 107900 | Q42: 5824360.132 | R42: 20715.3 | T42: 2663272.143 | U42: 61901.16667 | W42: 3019036.621 | X42: 27415.6 | Z42: 2042806.516 | AA42: 6204.253333 | AF42: 5003658.681 | AG42: 36184.9 | AI42: 5371782.727 | AJ42: 31992.4 | AL42: 2881329.245 | AM42: 60215.4 | AO42: 4010887.589 | AP42: 74943.86667 | AR42: 1182564.524 | AS42: 2839.2 | AX42: 5742582.233 | AY42: 77131.6 | BA42: 5870132.127 | BB42: 27999.2 | BD42: 2311378.546 | BE42: 33818.4 | BJ42: 1139319.865 | BK42: 1343.8 | BP42: 2227626.647 | BQ42: 2593.74
B43: 3116158.885 | C43: 99740 | E43: 3338159.257 | F43: 22037.1 | H43: 2135594.294 | I43: 11718.5 | N43: 5774054.332 | O43: 91950.7 | Q43: 5591967.577 | R43: 19473.5 | T43: 2561995.937 | U43: 55429.83333 | W43: 2986448.385 | X43: 26095.7 | Z43: 1947117.387 | AA43: 5226.8 | AF43: 4748437.079 | AG43: 30580.9 | AI43: 5316659.795 | AJ43: 30283.1 | AL43: 2880661.218 | AM43: 53896.46667 | AO43: 3946819.303 | AP43: 68974.9 | AR43: 1141436.776 | AS43: 2429 | AX43: 5516940.418 | AY43: 62051.86667 | BA43: 5833087.43 | BB43: 23395.1 | BD43: 2197781.775 | BE43: 29889.7 | BJ43: 1020410.562 | BK43: 1117.88 | BP43: 2192320.816 | BQ43: 1859.946667
B44: 2957403.209 | C44: 78430.8 | E44: 3158847.813 | F44: 21762 | H44: 2063273.133 | I44: 9520.8 | N44: 5579430.007 | O44: 83529 | Q44: 5402486.128 | R44: 16012.3 | T44: 2451394.574 | U44: 47944.6 | W44: 2882596.087 | X44: 22208.9 | Z44: 1727495.511 | AA44: 3763.97 | AF44: 4730232.563 | AG44: 23431.53333 | AI44: 5071714.18 | AJ44: 22675.1 | AL44: 2749921.67 | AM44: 46432.23333 | AO44: 3752703.137 | AP44: 57199.53333 | AR44: 1045462.664 | AS44: 2030.59 | AX44: 5147126.312 | AY44: 37344.3 | BA44: 5511324.665 | BB44: 22473.73333 | BD44: 2073194.587 | BE44: 26044 | BJ44: 982229.4768 | BK44: 1055.25 | BP44: 2144971.756 | BQ44: 1672.12
B45: 2867382.378 | C45: 71927.1 | E45: 3137183.059 | F45: 18809.5 | H45: 2023919.888 | I45: 8552.67 | N45: 5297547.695 | O45: 56358.1 | Q45: 5152475.931 | R45: 12432.7 | T45: 2163344.313 | U45: 46144.7 | W45: 2773354.51 | X45: 18583.43333 | Z45: 1571485.568 | AA45: 2889.336667 | AF45: 4575532.578 | AG45: 21654 | AI45: 5043400.419 | AJ45: 21988.9 | AL45: 2641737.888 | AM45: 37691.9 | AO45: 3682305.855 | AP45: 52145.86667 | AR45: 907856.0351 | AS45: 1540.12 | AX45: 4931775.165 | AY45: 23847.5 | BA45: 5428938.147 | BB45: 17664 | BD45: 1914230.206 | BE45: 25994.8 | BJ45: 934603.0683 | BK45: 947.322 | BP45: 2125431.354 | BQ45: 1599.02
B46: 2771313.843 | C46: 57346.9 | E46: 3029177.363 | F46: 15380.2 | H46: 1890215.097 | I46: 6995.87 | N46: 4916347.646 | O46: 34570.3 | Q46: 4946262.261 | R46: 10918.5 | T46: 2129431.678 | U46: 30596 | W46: 2572305.143 | X46: 12760.76667 | Z46: 1534318.301 | AA46: 2790.81 | AF46: 4413427.636 | AG46: 17738.5 | AI46: 4831702.6 | AJ46: 17595.83333 | AL46: 2560052.762 | AM46: 33039.9 | AO46: 3463032.988 | AP46: 28170 | AR46: 867782.08 | AS46: 1433.4 | AX46: 4602783.183 | AY46: 19533.4 | BA46: 4927951.246 | BB46: 11760.5 | BD46: 1898757.109 | BE46: 21360.4 | BJ46: 873573.6518 | BK46: 859.063 | BP46: 2057334.605 | BQ46: 1360.23
B47: 2598785.254 | C47: 45059.4 | E47: 2766589.586 | F47: 8934.14 | H47: 1750124.397 | I47: 5571.55 | N47: 4835948.83 | O47: 25180.8 | Q47: 4310515.115 | R47: 7528.03 | T47: 1979616.769 | U47: 24045.83333 | W47: 2493240.239 | X47: 10513.46667 | Z47: 1397967.133 | AA47: 2214.66 | AF47: 4183094.989 | AG47: 11457.5 | AI47: 4785686.973 | AJ47: 16544.4 | AL47: 2375300.917 | AM47: 26937.2 | AO47: 3216470.866 | AP47: 19462.5 | AR47: 816937.7814 | AS47: 1260.3 | AX47: 4203673.423 | AY47: 14165.1 | BA47: 4543823.222 | BB47: 9711.336667 | BD47: 1808008.303 | BE47: 19219.4 | BJ47: 806962.3165 | BK47: 746.8866667 | BP47: 2000319.25 | BQ47: 1180.27
B48: 2597573.73 | C48: 15816.6 | E48: 2546493.412 | F48: 7311.57 | H48: 1692111.948 | I48: 5123.08 | N48: 4593497.132 | O48: 14348.5 | Q48: 3686001.759 | R48: 4454.81 | T48: 1817961.432 | U48: 17804.5 | W48: 2259043.224 | X48: 5984.51 | Z48: 1300368.348 | AA48: 1959.56 | AF48: 4070299.775 | AG48: 11152.4 | AI48: 4565729.526 | AJ48: 12841.8 | AL48: 2138180.335 | AM48: 24072.76667 | AO48: 3069405.159 | AP48: 14856.2 | AR48: 764017.3469 | AS48: 1139.59 | AX48: 3747865.545 | AY48: 8968.66 | BA48: 3999557.389 | BB48: 6383.116667 | BD48: 1650375.839 | BE48: 15853.7 | BJ48: 790884.0446 | BK48: 725.916 | BP48: 1897804.315 | BQ48: 900.1453333
B49: 2549304.523 | C49: 13463 | E49: 2307417.12 | F49: 5517.79 | H49: 1548326.882 | I49: 3962.17 | N49: 3800646.099 | O49: 9626.01 | Q49: 3262998.265 | R49: 2824.59 | T49: 1673312.484 | U49: 13464.6 | W49: 2075413.142 | X49: 3488.93 | Z49: 1245417.016 | AA49: 1902.17 | AF49: 3665089.633 | AG49: 7993.193333 | AI49: 4334134.144 | AJ49: 9771.176667 | AL49: 1969224.019 | AM49: 23743.86667 | AO49: 2849096.846 | AP49: 13297.5 | AR49: 669971.8562 | AS49: 1000.26 | AX49: 3438997.274 | AY49: 5472.386667 | BA49: 3622217.112 | BB49: 5240.523333 | BD49: 1003974.531 | BE49: 6373.41 | BJ49: 724647.3941 | BK49: 643.266 | BP49: 1789565.711 | BQ49: 660.464
B50: 2011195.834 | C50: 11096.5 | E50: 2286988.382 | F50: 5262.66 | H50: 1413177.397 | I50: 3351.83 | N50: 3509411.619 | O50: 7598.34 | Q50: 3100524.197 | R50: 2399.62 | T50: 1504823.529 | U50: 7384.426667 | W50: 1850143.509 | X50: 1552.31 | Z50: 1122715.815 | AA50: 1579.63 | AF50: 3158570.148 | AG50: 5995.266667 | AI50: 4012062.02 | AJ50: 6541.72 | AL50: 1936674.375 | AM50: 16930.63333 | AO50: 2475032.83 | AP50: 11936.86667 | AR50: 560117.9082 | AS50: 785.0896667 | AX50: 3091580.761 | AY50: 3451.09 | BA50: 3072442.411 | BB50: 4107.85 | BD50: 873394.7451 | BE50: 4689.33 | BJ50: 656295.5664 | BK50: 563.598 | BP50: 1778850.621 | BQ50: 639.612
B51: 1811657.097 | C51: 9337.21 | E51: 1943124.935 | F51: 4935.88 | H51: 1314371.939 | I51: 2850.97 | N51: 3287994.753 | O51: 5840.21 | Q51: 2578094.043 | R51: 1574.2 | T51: 1268068.348 | U51: 6745.86 | W51: 1524747.237 | X51: 906.6663333 | Z51: 978844.0759 | AA51: 1441.55 | AF51: 2178182.054 | AG51: 2735.466667 | AI51: 3615206.197 | AJ51: 3992.35 | AL51: 1020917.794 | AM51: 5057.8 | AO51: 2091517.443 | AP51: 11852.5 | AR51: 502040.1601 | AS51: 641.6413333 | AX51: 2849486.61 | AY51: 1992.55 | BA51: 2885525.478 | BB51: 3567.03 | BD51: 742753.5406 | BE51: 3548.11 | BJ51: 512762.3286 | BK51: 425.59 | BP51: 1701983.59 | BQ51: 504.802
B52: 1634578.994 | C52: 7433.88 | E52: 1699594.074 | F52: 1446.85 | H52: 1218553.602 | I52: 2385.07 | N52: 2908848.672 | O52: 3325.09 | Q52: 2219101.546 | R52: 1193.99 | T52: 1100784.934 | U52: 4922.646667 | W52: 1201742.509 | X52: 788.071 | Z52: 900653.3105 | AA52: 1262.35 | AF52: 1854711.163 | AG52: 2024.116667 | AI52: 3063468.673 | AJ52: 2132.11 | AL52: 821708.6759 | AM52: 4288.59 | AO52: 1570404.412 | AP52: 5174.786667 | AR52: 409867.1308 | AS52: 510.2273333 | AX52: 2226123.011 | AY52: 597.307 | BA52: 2454459.697 | BB52: 2684.01 | BD52: 546064.2479 | BE52: 2167.36 | BJ52: 404746.9105 | BK52: 302.408 | BP52: 1634826.848 | BQ52: 406.721
B53: 1463520.488 | C53: 5782.8 | E53: 1210816.656 | F53: 1159.15 | H53: 736613.4878 | I53: 1222.1 | N53: 2736733.743 | O53: 3036.82 | Q53: 1813119.619 | R53: 1119.99 | T53: 898678.6274 | U53: 3966.86 | W53: 873401.1213 | X53: 558.661 | Z53: 813257.5379 | AA53: 911.707 | AF53: 1304754.923 | AG53: 1225.07 | AI53: 2445854.518 | AJ53: 1839.236667 | AL53: 571395.995 | AM53: 1595.47 | AO53: 1359266.237 | AP53: 3583.63 | AR53: 237426.1929 | AS53: 264.306 | AX53: 2077245.262 | AY53: 392.587 | BA53: 1813661.419 | BB53: 1867.52 | BD53: 368166.7876 | BE53: 1212.59 | BJ53: 324449.8097 | BK53: 231.522 | BP53: 1515994.433 | BQ53: 272.627
B54: 1121367.308 | C54: 3571.47 | E54: 931526.5659 | F54: 980.877 | H54: 444996.3099 | I54: 570.483 | N54: 2463930.61 | O54: 1681.46 | Q54: 1600095.669 | R54: 883.196 | T54: 469568.0421 | U54: 1946.88 | W54: 546694.372 | X54: 442.7406667 | Z54: 683184.0372 | AA54: 706.5823333 | AF54: 1194513.814 | AG54: 1089.15 | AI54: 1612966.558 | AJ54: 634.0633333 | AL54: 409888.8789 | AM54: 1019.82 | AO54: 590191.7485 | AP54: 762.804 | AR54: 146392.7607 | AS54: 144.275 | AX54: 1510046.23 | AY54: 387.286 | BA54: 1141060.4 | BB54: 1058.46 | BD54: 209518.2915 | BE54: 682.419 | BJ54: 282483.9008 | BK54: 197.87 | BP54: 1319572.088 | BQ54: 136.794
B55: 774661.2473 | C55: 2249.22 | E55: 385458.7249 | F55: 483.096 | H55: 354327.2615 | I55: 421.85 | N55: 2341053.058 | O55: 1386.83 | Q55: 1297940.576 | R55: 631.0956667 | T55: 216051.9499 | U55: 874.053 | W55: 319210.9378 | X55: 296.187 | Z55: 203657.6924 | AA55: 158.923 | AF55: 756176.3407 | AG55: 585.846 | AI55: 1345568.832 | AJ55: 557.2283333 | AL55: 91714.96156 | AM55: 213.926 | AO55: 287901.3812 | AP55: 555.2266667 | AR55: 113234.4663 | AS55: 110.099 | AX55: 248187.5772 | AY55: 175.448 | BA55: 539510.3368 | BB55: 543.257 | BD55: 50470.08173 | BE55: 100.644 | BJ55: 222992.8311 | BK55: 147.84 | BP55: 1237897.389 | BQ55: 102.465
B56: 254510.5655 | C56: 548.505 | E56: 38335.21303 | F56: 192.4 | H56: 235840.5151 | I56: 260.475 | N56: 1902838.11 | O56: 583.216 | Q56: 870259.9644 | R56: 588.647 | T56: 56436.5347 | U56: 128.571 | W56: 24994.14521 | X56: 120.697 | Z56: 136459.4883 | AA56: 105.126 | AF56: 199271.6186 | AG56: 121.168 | AI56: 989612.6296 | AJ56: 478.949 | AL56: 60664.08863 | AM56: 126.8736667 | AO56: 15561.88426 | AP56: 112.598 | AR56: 113234.4663 | AS56: 110.099 | AX56: 248187.5772 | AY56: 175.448 | BA56: 135355.2789 | BB56: 115.586 | BD56: 50470.08173 | BE56: 100.644 | BJ56: 154598.6063 | BK56: 100.86 | BP56: 197158.2918 | BQ56: 101.61
B58: Resource level (kW/m): | C58: 75
B59: 1 | C59: 2 | D59: 3 | E59: 4 | F59: 5 | G59: 6 | H59: 7 | I59: 8 | J59: 9 | K59: 10 | L59: 11 | M59: 12 | N59: 13 | O59: 14 | P59: 15 | Q59: 16 | R59: 17 | S59: 18 | T59: 19 | U59: 20 | V59: 21 | W59: 22 | X59: 23 | Y59: 24 | Z59: 25 | AA59: 26 | AB59: 27 | AC59: 28 | AD59: 29 | AE59: 30 | AF59: 31 | AG59: 32 | AH59: 33 | AI59: 34 | AJ59: 35 | AK59: 36 | AL59: 37 | AM59: 38 | AN59: 39 | AO59: 40 | AP59: 41 | AQ59: 42 | AR59: 43 | AS59: 44 | AT59: 45 | AU59: 46 | AV59: 47 | AW59: 48 | AX59: 49 | AY59: 50 | AZ59: 51 | BA59: 52 | BB59: 53 | BC59: 54 | BD59: 55 | BE59: 56 | BF59: 57 | BG59: 58 | BH59: 59 | BI59: 60 | BJ59: 61 | BK59: 62 | BL59: 63 | BM59: 64 | BN59: 65 | BO59: 66 | BP59: 67 | BQ59: 68 | BR59: 69 | BS59: 70 | BT59: 71
B60: Cuboid-Surge | C60: Displaced | E60: Cuboid-Pitch | F60: Displaced | H60: Cuboid-Heave | I60: Displaced | K60: Cuboid-Roll | L60: Displaced | N60: Cuboid-Surge_Heave | O60: Displaced | Q60: Cuboid-Heave_Pitch | R60: Displaced | T60: HCylinder-Surge | U60: Displaced | W60: HCylinder-Pitch | X60: Displaced | Z60: HCylinder-Heave | AA60: Displaced | AC60: HCylinder-Roll | AD60: Displaced | AF60: HCylinder-Surge_Heave | AG60: Displaced | AI60: HCylinder-Heave_Pitch | AJ60: Displaced | AL60: VCylinder-Surge | AM60: Displaced | AO60: VCylinder-Pitch | AP60: Displaced | AR60: VCylinder-Heave | AS60: Displaced | AU60: VCylinder-Roll | AV60: Displaced | AX60: VCylinder-Surge_Heave | AY60: Displaced | BA60: VCylinder-Heave_Pitch | BB60: Displaced | BD60: Sphere-Surge | BE60: Displaced | BG60: Sphere-Pitch | BH60: Displaced | BJ60: Sphere-Heave | BK60: Displaced | BM60: Sphere-Roll | BN60: Displaced | BP60: Sphere-Surge_Heave | BQ60: Displaced | BS60: Sphere-Heave_Pitch | BT60: Displaced
B61: Mean Annual Power [W] | C61: Volume [m3] | E61: Mean Annual Power [W] | F61: Volume [m3] | H61: Mean Annual Power [W] | I61: Volume [m3] | K61: Mean Annual Power [W] | L61: Volume [m3] | N61: Mean Annual Power [W] | O61: Volume [m3] | Q61: Mean Annual Power [W] | R61: Volume [m3] | T61: Mean Annual Power [W] | U61: Volume [m3] | W61: Mean Annual Power [W] | X61: Volume [m3] | Z61: Mean Annual Power [W] | AA61: Volume [m3] | AC61: Mean Annual Power [W] | AD61: Volume [m3] | AF61: Mean Annual Power [W] | AG61: Volume [m3] | AI61: Mean Annual Power [W] | AJ61: Volume [m3] | AL61: Mean Annual Power [W] | AM61: Volume [m3] | AO61: Mean Annual Power [W] | AP61: Volume [m3] | AR61: Mean Annual Power [W] | AS61: Volume [m3] | AU61: Mean Annual Power [W] | AV61: Volume [m3] | AX61: Mean Annual Power [W] | AY61: Volume [m3] | BA61: Mean Annual Power [W] | BB61: Volume [m3] | BD61: Mean Annual Power [W] | BE61: Volume [m3] | BG61: Mean Annual Power [W] | BH61: Volume [m3] | BJ61: Mean Annual Power [W] | BK61: Volume [m3] | BM61: Mean Annual Power [W] | BN61: Volume [m3] | BP61: Mean Annual Power [W] | BQ61: Volume [m3] | BS61: Mean Annual Power [W] | BT61: Volume [m3]
B62: 9500168.26 | C62: 391462 | E62: 11382582.26 | F62: 184513 | H62: 6204851.582 | I62: 40321.8 | N62: 16663037.43 | O62: 318033 | Q62: 18645266.67 | R62: 229304 | T62: 6654858.749 | U62: 119222 | W62: 9554742.112 | X62: 122453 | Z62: 6427853.292 | AA62: 38272.3 | AF62: 14120714.34 | AG62: 114873 | AI62: 16913809.69 | AJ62: 179678.3333 | AL62: 9105062.25 | AM62: 253385 | AO62: 11901009.64 | AP62: 323990 | AR62: 3961523.286 | AS62: 14786.4 | AX62: 17499806.31 | AY62: 378424 | BA62: 19159678.89 | BB62: 308399 | BD62: 5651810.787 | BE62: 56508.5 | BJ62: 4076426.205 | BK62: 10215 | BP62: 12735123.31 | BQ62: 56248.4
B63: 9395139.15 | C63: 372083 | E63: 11382582.26 | F63: 184513 | H63: 6204851.582 | I63: 40321.8 | N63: 16382229.03 | O63: 289752 | Q63: 18535865.49 | R63: 214278 | T63: 6411917.104 | U63: 102674 | W63: 9481644.822 | X63: 117909 | Z63: 6427853.292 | AA63: 38272.3 | AF63: 14120714.34 | AG63: 114873 | AI63: 16823539.04 | AJ63: 172388 | AL63: 9084074.209 | AM63: 253332 | AO63: 11901009.64 | AP63: 323990 | AR63: 3931284.489 | AS63: 13854.2 | AX63: 17369833.11 | AY63: 344189 | BA63: 19100147.61 | BB63: 287327 | BD63: 5651810.787 | BE63: 56508.5 | BJ63: 4076426.205 | BK63: 10215 | BP63: 12586657.69 | BQ63: 53235.1
B64: 9226333.48 | C64: 338128 | E64: 11298975.17 | F64: 173581 | H64: 6133371.007 | I64: 36101.2 | N64: 16316064.77 | O64: 272165 | Q64: 18385592 | R64: 199794 | T64: 6287347.906 | U64: 95796.23333 | W64: 9332367.632 | X64: 109759 | Z64: 6402521.068 | AA64: 35896.43333 | AF64: 14087447.51 | AG64: 111451 | AI64: 16459785.2 | AJ64: 147344 | AL64: 9048498.149 | AM64: 218766 | AO64: 11807335.6 | AP64: 301399 | AR64: 3889075.193 | AS64: 13523.2 | AX64: 17158074.46 | AY64: 305600.6667 | BA64: 19006290.9 | BB64: 273593 | BD64: 5512924.662 | BE64: 53297.6 | BJ64: 4030153.893 | BK64: 9931.2 | BP64: 12225154.46 | BQ64: 46601.6
B65: 9091219.475 | C65: 312359 | E65: 11228138.84 | F65: 154999 | H65: 6030542.227 | I65: 31057.9 | N65: 15671456.31 | O65: 228355 | Q65: 18319295.02 | R65: 165406 | T65: 6142369.974 | U65: 88654.36667 | W65: 9153418.401 | X65: 99327.3 | Z65: 6336586.323 | AA65: 30588.16667 | AF65: 14049593.99 | AG65: 101085 | AI65: 16060402.18 | AJ65: 126904.6667 | AL65: 8858835.902 | AM65: 201667 | AO65: 11610914.93 | AP65: 260859 | AR65: 3836589.401 | AS65: 11943.6 | AX65: 16770879.9 | AY65: 261840 | BA65: 18940456.01 | BB65: 250776 | BD65: 5366654.063 | BE65: 50118.26667 | BJ65: 4021091.607 | BK65: 9106.57 | BP65: 11966877.55 | BQ65: 42378.8
B66: 8983738.564 | C66: 285021 | E66: 11017419.93 | F66: 145043 | H66: 5936921.242 | I66: 28667.4 | N66: 15609268.37 | O66: 206512 | Q66: 18253416.72 | R66: 148689 | T66: 5962402.958 | U66: 86722.3 | W66: 8968923.583 | X66: 91113.13333 | Z66: 6299778.13 | AA66: 27620.3 | AF66: 13948964.5 | AG66: 96591.36667 | AI66: 15821640.53 | AJ66: 114139 | AL66: 8595563.269 | AM66: 187403 | AO66: 11521601.05 | AP66: 245465 | AR66: 3705772.76 | AS66: 10740.5 | AX66: 16551379.9 | AY66: 232509.6667 | BA66: 18741899.11 | BB66: 223743.3333 | BD66: 5181055.243 | BE66: 46026.9 | BJ66: 4010935.22 | BK66: 8022.356667 | BP66: 11305981.3 | BQ66: 33013.6
B67: 8750730.828 | C67: 255829 | E67: 10947652.95 | F67: 124867 | H67: 5918525.344 | I67: 26980.6 | N67: 15121145.41 | O67: 183652 | Q67: 17654983.8 | R67: 132227 | T67: 5935962.556 | U67: 80291.16667 | W67: 8800804.407 | X67: 83474.46667 | Z67: 6184297.594 | AA67: 25408.9 | AF67: 13866378.73 | AG67: 89755.23333 | AI67: 15761972.21 | AJ67: 111186 | AL67: 8400587.062 | AM67: 171206 | AO67: 11332212.18 | AP67: 228544 | AR67: 3677958.408 | AS67: 9883.586667 | AX67: 16022305.53 | AY67: 212088 | BA67: 18487837.04 | BB67: 193433 | BD67: 5074074.587 | BE67: 43941.9 | BJ67: 3877559.178 | BK67: 7466.87 | BP67: 10978840.29 | BQ67: 29340.1
B68: 8378103.177 | C68: 216620 | E68: 10705168.45 | F68: 116179 | H68: 5684773.285 | I68: 24779.4 | N68: 15056114.88 | O68: 144968 | Q68: 17508363.28 | R68: 118238 | T68: 5673591.15 | U68: 75935.4 | W68: 8482761.971 | X68: 71021.7 | Z68: 6084787.36 | AA68: 23499.06667 | AF68: 13745806.26 | AG68: 84323.26667 | AI68: 15432397.39 | AJ68: 98062.4 | AL68: 8344685.243 | AM68: 156462 | AO68: 10739402.01 | AP68: 183478 | AR68: 3576584.214 | AS68: 8935.2 | AX68: 15672436.61 | AY68: 166389 | BA68: 17651664.98 | BB68: 145801.3333 | BD68: 4869263.978 | BE68: 40183.93333 | BJ68: 3875661.409 | BK68: 6054.43 | BP68: 10526668.78 | BQ68: 24988.2
B69: 8328209.401 | C69: 198196 | E69: 10548821.25 | F69: 100075 | H69: 5370062.741 | I69: 17469.8 | N69: 14550670.84 | O69: 126313 | Q69: 17396688.97 | R69: 111145 | T69: 5639573.15 | U69: 72731.46667 | W69: 8277933.883 | X69: 63608.4 | Z69: 5954947.171 | AA69: 18675 | AF69: 13397194.1 | AG69: 75248.5 | AI69: 15268286.77 | AJ69: 90033.43333 | AL69: 8184221.259 | AM69: 144551 | AO69: 10734641.23 | AP69: 166677 | AR69: 3439067.858 | AS69: 8295.173333 | AX69: 15488788.83 | AY69: 139188 | BA69: 17615922.46 | BB69: 134196 | BD69: 4588155.065 | BE69: 35434.6 | BJ69: 3822121.617 | BK69: 5446.863333 | BP69: 10165403.51 | BQ69: 22037.9
B70: 7946675.793 | C70: 158057 | E70: 10335915.53 | F70: 88846.9 | H70: 5266438.672 | I70: 16315 | N70: 14349057.6 | O70: 98796.8 | Q70: 17159017.66 | R70: 94831.4 | T70: 5448600.899 | U70: 65522.96667 | W70: 8202774.27 | X70: 61186.76667 | Z70: 5693370.323 | AA70: 15158.36667 | AF70: 12484796.36 | AG70: 57804.2 | AI70: 15025590.46 | AJ70: 79258.23333 | AL70: 7843994.108 | AM70: 132286 | AO70: 10391656.44 | AP70: 137828 | AR70: 3340937.295 | AS70: 7194.97 | AX70: 14914828.13 | AY70: 124645 | BA70: 17025293.66 | BB70: 118856 | BD70: 4389458.193 | BE70: 32336.9 | BJ70: 3632822.75 | BK70: 4950.84 | BP70: 9927272.889 | BQ70: 20302.2
B71: 7707606.283 | C71: 139955 | E71: 10009332.82 | F71: 81144.5 | H71: 4713770.598 | I71: 13520.9 | N71: 13872237.47 | O71: 81213.56667 | Q71: 16883084.45 | R71: 74790.6 | T71: 5197435.442 | U71: 58965.43333 | W71: 7921693.102 | X71: 52289.66667 | Z71: 5473717.1 | AA71: 13069.4 | AF71: 12234035.69 | AG71: 46573.2 | AI71: 13635003.58 | AJ71: 46939.23333 | AL71: 7714609.4 | AM71: 111938 | AO71: 9681905.873 | AP71: 101443 | AR71: 3244358.698 | AS71: 6906.72 | AX71: 14730232.38 | AY71: 96901.86667 | BA71: 16426066.65 | BB71: 86101.3 | BD71: 3914346.966 | BE71: 25772.8 | BJ71: 3458455.685 | BK71: 4400.3 | BP71: 8977665.911 | BQ71: 14801.9
B72: 7482815.756 | C72: 125597 | E72: 9830641.616 | F72: 67971.1 | H72: 4643418.724 | I72: 10974.1 | N72: 13276727.03 | O72: 64481.7 | Q72: 16426592.93 | R72: 61780.7 | T72: 4906434.212 | U72: 51925.7 | W72: 7615279.858 | X72: 44629.53333 | Z72: 5003434.695 | AA72: 9943.33 | AF72: 11220458.26 | AG72: 36164.4 | AI72: 13175709.99 | AJ72: 38486.2 | AL72: 7359784.32 | AM72: 99313.83333 | AO72: 9461534.007 | AP72: 82708.26667 | AR72: 2749688.722 | AS72: 4596.26 | AX72: 13873665.15 | AY72: 64704.16667 | BA72: 15860149.79 | BB72: 65890.33333 | BD72: 3531450.875 | BE72: 21211.8 | BJ72: 3232318.309 | BK72: 3821.37 | BP72: 8375530.061 | BQ72: 12189.5
B73: 7030610.96 | C73: 95344.2 | E73: 9557302.398 | F73: 63947.6 | H73: 4472437.048 | I73: 9921.25 | N73: 12970418.23 | O73: 47807.9 | Q73: 16172249.95 | R73: 49766.8 | T73: 4635315.209 | U73: 45524.5 | W73: 7575755.831 | X73: 42834.43333 | Z73: 4653936.999 | AA73: 8566.72 | AF73: 10138418.25 | AG73: 19911.1 | AI73: 12542587.41 | AJ73: 28800.5 | AL73: 7060911.245 | AM73: 84624.76667 | AO73: 9029399.742 | AP73: 56774.1 | AR73: 2612470.382 | AS73: 4151 | AX73: 11988013.3 | AY73: 38378.9 | BA73: 15578496.81 | BB73: 50122.4 | BD73: 3280939.79 | BE73: 18546.6 | BJ73: 3121006.64 | BK73: 3288.7 | BP73: 7913339.958 | BQ73: 10531.7
B74: 6421953.5 | C74: 67641.7 | E74: 9373956.453 | F74: 36322.7 | H74: 4108203.456 | I74: 8355.04 | N74: 11955085.82 | O74: 39480.1 | Q74: 14204901.89 | R74: 29996.5 | T74: 4407325.635 | U74: 41018.9 | W74: 7269470.348 | X74: 35336.8 | Z74: 4295679.188 | AA74: 7131.303333 | AF74: 8834406.284 | AG74: 16550.8 | AI74: 12280418.04 | AJ74: 25733 | AL74: 6627967.35 | AM74: 62785.3 | AO74: 8311226.736 | AP74: 38463.33333 | AR74: 2416334.545 | AS74: 3667.44 | AX74: 11517456.66 | AY74: 31697.7 | BA74: 14667149.55 | BB74: 40932.6 | BD74: 3046433.767 | BE74: 16243 | BJ74: 2904747.207 | BK74: 2917.48 | BP74: 7676628.438 | BQ74: 9773.5
B75: 6280045.65 | C75: 43191.9 | E75: 9369151.92 | F75: 35291.6 | H75: 3750718.806 | I75: 6922.46 | N75: 10521952.66 | O75: 26402.8 | Q75: 13415394 | R75: 21554.5 | T75: 3901608.985 | U75: 31351.5 | W75: 6869136.427 | X75: 27607.8 | Z75: 4118863.837 | AA75: 6294.1 | AF75: 8083567.669 | AG75: 13643.7 | AI75: 11593295.89 | AJ75: 19554.7 | AL75: 5882911.254 | AM75: 41996.3 | AO75: 7395551.378 | AP75: 31100.3 | AR75: 2286204.353 | AS75: 3415 | AX75: 10336829.01 | AY75: 27638.36667 | BA75: 13756656.84 | BB75: 32904.76667 | BD75: 2917881.827 | BE75: 15072.2 | BJ75: 2696454.458 | BK75: 2579.92 | BP75: 7250810.141 | BQ75: 8549.563333
B76: 5414051.322 | C76: 19033.1 | E76: 8844431.216 | F76: 28087.1 | H76: 3587159.279 | I76: 6772.17 | N76: 9667552.783 | O76: 13252.2 | Q76: 11801058.9 | R76: 16126 | T76: 3579460.52 | U76: 26499.96667 | W76: 6204286.309 | X76: 23839.7 | Z76: 3824326.23 | AA76: 5618.753333 | AF76: 7469230.688 | AG76: 10707.5 | AI76: 11186343.68 | AJ76: 16001.83333 | AL76: 4593548.554 | AM76: 29710.86667 | AO76: 5675541.14 | AP76: 11565.3 | AR76: 2073759.109 | AS76: 2811.49 | AX76: 9639986.966 | AY76: 18402 | BA76: 10609669.17 | BB76: 13580.53333 | BD76: 2468765.805 | BE76: 14868.6 | BJ76: 2372457.47 | BK76: 2112.8 | BP76: 6918034.499 | BQ76: 7700.51
B77: 5169367.821 | C77: 14608.7 | E77: 8313201.885 | F77: 22855 | H77: 3232670.431 | I77: 5298.23 | N77: 9027380.262 | O77: 11583 | Q77: 10455009.63 | R77: 15564.2 | T77: 3207880.421 | U77: 21594.1 | W77: 6195256.943 | X77: 14995 | Z77: 2732744.594 | AA77: 5616.046667 | AF77: 6684297.54 | AG77: 8357.593333 | AI77: 10193316.68 | AJ77: 10773.1 | AL77: 4229830.453 | AM77: 20731.9 | AO77: 4817091.87 | AP77: 9956.173333 | AR77: 1778650.66 | AS77: 2185.76 | AX77: 8516773.94 | AY77: 14800.7 | BA77: 8792324.056 | BB77: 9583.75 | BD77: 2347163.733 | BE77: 10474.6 | BJ77: 1836119.634 | BK77: 1964.12 | BP77: 6460616.195 | BQ77: 6668.25
B78: 4099969.443 | C78: 11142.2 | E78: 7439958.649 | F78: 15018.4 | H78: 2876520.052 | I78: 4276.02 | N78: 7756919.448 | O78: 8406.55 | Q78: 9257918.33 | R78: 8960.65 | T78: 2841907.356 | U78: 18084.4 | W78: 5939905.407 | X78: 11532.8 | Z78: 2678638.348 | AA78: 3181.45 | AF78: 6149686.988 | AG78: 6484.353333 | AI78: 9001425.467 | AJ78: 6987.18 | AL78: 3420419.018 | AM78: 15660.8 | AO78: 4109478.568 | AP78: 7681.43 | AR78: 1500974.055 | AS78: 2178.17 | AX78: 7075976.551 | AY78: 10277.23333 | BA78: 7344107.96 | BB78: 6766.82 | BD78: 2012853.015 | BE78: 8206.17 | BJ78: 1764166.373 | BK78: 1756.95 | BP78: 5650342.792 | BQ78: 5132.983333
B79: 3372561.379 | C79: 8744.18 | E79: 6640807.069 | F79: 10050.8 | H79: 2286788.278 | I79: 3142.78 | N79: 6943164.465 | O79: 7051.88 | Q79: 8020806.692 | R79: 5602.01 | T79: 2575602.3 | U79: 12664.1 | W79: 4584315.639 | X79: 2808.293333 | Z79: 2491979.405 | AA79: 2741.236667 | AF79: 4843665.163 | AG79: 3425.583333 | AI79: 7052213.236 | AJ79: 3203.7 | AL79: 2808474.082 | AM79: 13952.9 | AO79: 3318463.318 | AP79: 5885.553333 | AR79: 1359387.83 | AS79: 1594.69 | AX79: 5260759.48 | AY79: 6397.773333 | BA79: 6045444.014 | BB79: 5278.64 | BD79: 1673582.681 | BE79: 6915.05 | BJ79: 1694926.766 | BK79: 1255.91 | BP79: 4210374.856 | BQ79: 4814.52
B80: 2653400.2 | C80: 4964.73 | E80: 6060948.436 | F80: 6760.56 | H80: 1903574.028 | I80: 3087.82 | N80: 5904687.45 | O80: 6208.39 | Q80: 6578732.099 | R80: 2231.9 | T80: 2132385.912 | U80: 9877.533333 | W80: 4183054.523 | X80: 1141.35 | Z80: 2009380.957 | AA80: 2612.15 | AF80: 4462042.014 | AG80: 2242.066667 | AI80: 6122023.677 | AJ80: 2364.32 | AL80: 2165093.392 | AM80: 8299.85 | AO80: 2636393.725 | AP80: 5218.033333 | AR80: 881753.1605 | AS80: 1063.38 | AX80: 3492067.067 | AY80: 4144.45 | BA80: 5056891.783 | BB80: 4155.546667 | BD80: 1505867.122 | BE80: 5296.3 | BJ80: 1351259.247 | BK80: 1106.83 | BP80: 3354044.154 | BQ80: 2191.033333
B81: 2123327.003 | C81: 4388.35 | E81: 5375411.425 | F81: 3226.49 | H81: 1869091.619 | I81: 2328.55 | N81: 5174972.401 | O81: 5265.53 | Q81: 3780138.862 | R81: 2108.46 | T81: 1664221.872 | U81: 6689.49 | W81: 3570929.378 | X81: 1006.82 | Z81: 1993249.538 | AA81: 2009.09 | AF81: 3441922.848 | AG81: 737.7473333 | AI81: 4914472.104 | AJ81: 1176.51 | AL81: 1797613.768 | AM81: 6044.27 | AO81: 1307926.396 | AP81: 1862.05 | AR81: 574471.5059 | AS81: 547.9686667 | AX81: 2750717.553 | AY81: 2762.5 | BA81: 3519769.638 | BB81: 3059.89 | BD81: 1013014.826 | BE81: 3011.02 | BJ81: 1019502.007 | BK81: 704.8856667 | BP81: 2657365.746 | BQ81: 1853.97
B82: 1168284.463 | C82: 2067.38 | E82: 4872776.072 | F82: 1650.44 | H82: 1467351.452 | I82: 1652.01 | N82: 3740061.669 | O82: 1679.32 | Q82: 2409242.869 | R82: 1027.87 | T82: 1398452.492 | U82: 4029.97 | W82: 2330754.637 | X82: 891.804 | Z82: 1624167.04 | AA82: 1769.21 | AF82: 2334229.548 | AG82: 108.774 | AI82: 3178675.68 | AJ82: 900.8786667 | AL82: 1297755.241 | AM82: 4124.48 | AO82: 630427.6688 | AP82: 1600.95 | AR82: 473706.5661 | AS82: 443.1033333 | AX82: 1880255.515 | AY82: 1416.65 | BA82: 759053.5061 | BB82: 472.769 | BD82: 70560.83571 | BE82: 101.811 | BJ82: 706060.5975 | BK82: 435.195 | BP82: 1157408.376 | BQ82: 551.714
B83: 210400.8969 | C83: 387.451 | E83: 725842.7705 | F83: 760.903 | H83: 309698.7521 | I83: 278.176 | N83: 3283560.783 | O83: 743.574 | Q83: 1019275.884 | R83: 907.885 | T83: 91405.6797 | U83: 175.731 | W83: 16700.42208 | X83: 100.3566667 | Z83: 300456.1459 | AA83: 190.028 | AF83: 2334229.548 | AG83: 108.774 | AI83: 331267.979 | AJ83: 166.847 | AL83: 62130.12485 | AM83: 116.974 | AO83: 35157.14103 | AP83: 101.999 | AR83: 156153.8273 | AS83: 127.273 | AX83: 381062.7764 | AY83: 214.1766667 | BA83: 188854.3166 | BB83: 124.103 | BD83: 70560.83571 | BE83: 101.811 | BJ83: 210399.7478 | BK83: 107.227 | BP83: 257183.6775 | BQ83: 102.49
B86: SOA average power by WEC type
B88: Resource level (kW/m): | C88: 15
B89: Scale (m) | C89: Av. power by WEC type (kW) | J89: Key
C90: A | D90: B | E90: C | F90: D | G90: E | H90: Average of B and D | J90: A
B91: 5 | C91: 0.008159344966 | D91: 2.005312996 | E91: 9.748302057 | F91: 9.748302057 | G91: 33.52575672 | H91: =AVERAGE(D91,F91) -> 5.876807526 | J91: B
B92: 10 | C92: 0.8515387015 | D92: 23.93812067 | E92: 43.80765511 | F92: 43.80765511 | G92: 97.9186213 | H92: =AVERAGE(D92,F92) -> 33.87288789 | J92: C
B93: 15 | C93: 5.467880672 | D93: 72.25056178 | E93: 85.07051541 | F93: 85.07051541 | G93: 75.25334254 | H93: 78.66053859 | J93: D
B94: 20 | C94: 17.3051925 | D94: 138.5902403 | E94: 124.6340553 | F94: 124.6340553 | G94: 42.77849687 | H94: 131.6121478 | J94: E
B95: 25 | C95: 37.9151468 | D95: 213.5718581 | E95: 155.3809069 | F95: 155.3809069 | G95: 8.459471143 | H95: 184.4763825
B96: 30 | C96: 66.30176692 | D96: 290.0236614 | E96: 175.5530264 | F96: 175.5530264 | G96: 1.703607794 | H96: 232.7883439
B97: 35 | C97: 100.4088434 | D97: 359.8902 | E97: 185.7759287 | F97: 185.7759287 | G97: 0.3440364151 | H97: 272.8330644
B98: 40 | C98: 138.1985044 | D98: 422.7608786 | E98: 184.6936663 | F98: 184.6936663 | G98: 0 | H98: 303.7272724
B99: 45 | C99: 179.2036885 | D99: 470.0997275 | E99: 180.2784422 | F99: 180.2784422 | G99: 0 | H99: 325.1890849
B100: 50 | C100: 219.6188987 | D100: 516.9083145 | E100: 167.7030249 | F100: 167.7030249 | G100: 0 | H100: 342.3056697
B102: Resource level (kW/m): | C102: 45
B103: Scale (m) | C103: Av. power by WEC type (kW)
C104: A | D104: B | E104: C | F104: D | G104: E | H104: Average of B and D
B105: 5 | C105: 0.005300752438 | D105: 1.793987695 | E105: 16.57708851 | F105: 16.57708851 | G105: 64.03255583 | H105: =AVERAGE(D105,F105) -> 9.185538102
B106: 10 | C106: 0.656941522 | D106: 35.64504267 | E106: 89.09310425 | F106: 89.09310425 | G106: 292.4462875 | H106: =AVERAGE(D106,F106) -> 62.36907346
B107: 15 | C107: 5.107282725 | D107: 128.7052689 | E107: 200.2048206 | F107: 200.2048206 | G107: 445.0771933 | H107: 164.4550448
B108: 20 | C108: 19.10673354 | D108: 271.1810424 | E108: 320.7599266 | F108: 320.7599266 | G108: 441.3307386 | H108: 295.9704845
B109: 25 | C109: 47.83371988 | D109: 454.6308384 | E109: 437.2892832 | F109: 437.2892832 | G109: 297.8301495 | H109: 445.9600608
B110: 30 | C110: 94.76810116 | D110: 667.7873707 | E110: 542.3543171 | F110: 542.3543171 | G110: 161.3310535 | H110: 605.0708439
B111: 35 | C111: 159.74273 | D111: 895.0686125 | E111: 632.29625 | F111: 632.29625 | G111: 75.85511499 | H111: 763.6824312
B112: 40 | C112: 240.6172262 | D112: 1125.852457 | E112: 700.3285575 | F112: 700.3285575 | G112: 22.88923594 | H112: 913.0905071
B113: 45 | C113: 336.2435265 | D113: 1342.335821 | E113: 754.4519764 | F113: 754.4519764 | G113: 0 | H113: 1048.393899
B114: 50 | C114: 441.0862948 | D114: 1557.95879 | E114: 787.2218579 | F114: 787.2218579 | G114: 0 | H114: 1172.590324
B116: Resource level (kW/m): | C116: 75
B117: Scale (m) | C117: Av. power by WEC type (kW)
C118: A | D118: B | E118: C | F118: D | G118: E | H118: Average of B and D
B119: 5 | C119: 0.005077518469 | D119: 1.654895008 | E119: 25.49281155 | F119: 25.49281155 | G119: 88.49265137 | H119: =AVERAGE(D119,F119) -> 13.57385328
B120: 10 | C120: 0.4877795893 | D120: 37.7067744 | E120: 128.2773737 | F120: 128.2773737 | G120: 511.4505096 | H120: =AVERAGE(D120,F120) -> 82.99207407
B121: 15 | C121: 4.129284875 | D121: 171.038906 | E121: 327.2407276 | F121: 327.2407276 | G121: 997.4833832 | H121: 249.1398168
B122: 20 | C122: 17.051 | D122: 398.2526001 | E122: 567.3561996 | F122: 567.3561996 | G122: 1271.086409 | H122: 482.8043998
B123: 25 | C123: 46.92217551 | D123: 694.922022 | E123: 817.9833659 | F123: 817.9833659 | G123: 1239.043229 | H123: 756.4526939
B124: 30 | C124: 101.3531475 | D124: 1062.831338 | E124: 1059.935977 | F124: 1059.935977 | G124: 989.0185256 | H124: 1061.383657
B125: 35 | C125: 183.2594451 | D125: 1487.161412 | E125: 1282.970543 | F125: 1282.970543 | G125: 655.5427821 | H125: 1385.065977
B126: 40 | C126: 294.2157814 | D126: 1948.779149 | E126: 1480.089421 | F126: 1480.089421 | G126: 299.512183 | H126: 1714.434285
B127: 45 | C127: 435.4512571 | D127: 2420.336064 | E127: 1658.7321 | F127: 1658.7321 | G127: 26.44436912 | H127: 2039.534082
B128: 50 | C128: 603.2493103 | D128: 2908.901052 | E128: 1810.117111 | F128: 1810.117111 | G128: 0 | H128: 2359.509081

Sheet Lookup_Materials
C3: SOA-steel | D3: κ
C4: Default | D4: 278.76
C5: Upper | D5: =349.9 -> 349.9
C6: Lower | D6: =0.107679487179487*7800 -> 839.9
B9: Materials key (#) | C9: Materials | D9: κ (kg/m3) | E9: Raw cost: craw (€/kg) | F9: Fabricated cost: cfab (€/kg) | G9: Mass resource penalty (+% per 5kW/m) | H9: Cost improvement potential
B10: 1 | C10: Steel | D10: 278.76 | E10: 0.68 | F10: 2.69 | H10: 1
B11: 2 | C11: R. Concrete | D11: 528.77 | E11: 0.12 | F11: 0.43 | H11: 1
B12: 3 | C12: GRP | D12: 42.70833333 | E12: 2.48 | F12: 9.73 | H12: 1
B13: 4 | C13: Rubber | D13: 28.82 | E13: 1.66 | F13: 6.54 | H13: 1
B14: 5 | C14: PU-nylon | D14: 5.126879699 | E14: 2.93 | F14: 11.53 | H14: 1
B15: 6

Sheet Source_list
B2: Shape | C2: Material | D2: Scale (m) | E2: Resource (kW/m) | F2: Efficiency (%) | G2: CAPEX (€)
B3: Cuboid | C3: PU-nylon | D3: 10 | E3: 55 | F3: 0.01 | G3: 2000000
B4: Cuboid | C4: PU-nylon | D4: 10 | E4: 55 | F4: 0.01 | G4: 3000000
B5: Cuboid | C5: PU-nylon | D5: 10 | E5: 55 | F5: 1 | G5: 2000000
B6: Cuboid | C6: PU-nylon | D6: 10 | E6: 55 | F6: 1 | G6: 3000000
B7: Cuboid | C7: PU-nylon | D7: 10 | E7: 65 | F7: 0.01 | G7: 2000000
B8: Cuboid | C8: PU-nylon | D8: 10 | E8: 65 | F8: 0.01 | G8: 3000000
B9: Cuboid | C9: PU-nylon | D9: 10 | E9: 65 | F9: 1 | G9: 2000000
B10: Cuboid | C10: PU-nylon | D10: 10 | E10: 65 | F10: 1 | G10: 3000000
B11: Cuboid | C11: PU-nylon | D11: 40 | E11: 55 | F11: 0.01 | G11: 2000000
B12: Cuboid | C12: PU-nylon | D12: 40 | E12: 55 | F12: 0.01 | G12: 3000000
B13: Cuboid | C13: PU-nylon | D13: 40 | E13: 55 | F13: 1 | G13: 2000000
B14: Cuboid | C14: PU-nylon | D14: 40 | E14: 55 | F14: 1 | G14: 3000000
B15: Cuboid | C15: PU-nylon | D15: 40 | E15: 65 | F15: 0.01 | G15: 2000000
B16: Cuboid | C16: PU-nylon | D16: 40 | E16: 65 | F16: 0.01 | G16: 3000000
B17: Cuboid | C17: PU-nylon | D17: 40 | E17: 65 | F17: 1 | G17: 2000000
B18: Cuboid | C18: PU-nylon | D18: 40 | E18: 65 | F18: 1 | G18: 3000000
B19: Cuboid | C19: Steel | D19: 10 | E19: 55 | F19: 0.01 | G19: 2000000
B20: Cuboid | C20: Steel | D20: 10 | E20: 55 | F20: 0.01 | G20: 3000000
B21: Cuboid | C21: Steel | D21: 10 | E21: 55 | F21: 1 | G21: 2000000
B22: Cuboid | C22: Steel | D22: 10 | E22: 55 | F22: 1 | G22: 3000000
B23: Cuboid | C23: Steel | D23: 10 | E23: 65 | F23: 0.01 | G23: 2000000
B24: Cuboid | C24: Steel | D24: 10 | E24: 65 | F24: 0.01 | G24: 3000000
B25: Cuboid | C25: Steel | D25: 10 | E25: 65 | F25: 1 | G25: 2000000
B26: Cuboid | C26: Steel | D26: 10 | E26: 65 | F26: 1 | G26: 3000000
B27: Cuboid | C27: Steel | D27: 40 | E27: 55 | F27: 0.01 | G27: 2000000
B28: Cuboid | C28: Steel | D28: 40 | E28: 55 | F28: 0.01 | G28: 3000000
B29: Cuboid | C29: Steel | D29: 40 | E29: 55 | F29: 1 | G29: 2000000
B30: Cuboid | C30: Steel | D30: 40 | E30: 55 | F30: 1 | G30: 3000000
B31: Cuboid | C31: Steel | D31: 40 | E31: 65 | F31: 0.01 | G31: 2000000
B32: Cuboid | C32: Steel | D32: 40 | E32: 65 | F32: 0.01 | G32: 3000000
B33: Cuboid | C33: Steel | D33: 40 | E33: 65 | F33: 1 | G33: 2000000
B34: Cuboid | C34: Steel | D34: 40 | E34: 65 | F34: 1 | G34: 3000000
